Department Family,Entity,Date,Expense Type,Expense Area,Supplier,Transaction Number,Total
Ministry of Defence,Ministry of Defence,24/05/2011,Grants in aid,Central TLB,Commonwealth War Graves Commission,5000056594,9513274.34
Ministry of Defence,Ministry of Defence,10/05/2011,General services and support,Defence Equipment & Support,MARSHALL OF CAMBRIDGE AEROSPACE LIMITED,791779,9264003.32
Ministry of Defence,Ministry of Defence,19/05/2011,Food and clothing,Defence Equipment & Support,PURPLE FOODSERVICE SOLUTIONS LIMITED,796341,8042563.61
Ministry of Defence,Ministry of Defence,18/05/2011,Government Procurement Card,Ministry of Defence,BARCLAYS BANK PLC,10807,7895755.45
Ministry of Defence,Ministry of Defence,24/05/2011,"Purchase of munitions, other inventory or fuel",Defence Equipment & Support,BP OIL INTERNATIONAL LIMITED,2000011694,7818228.56
Ministry of Defence,Ministry of Defence,20/05/2011,Miscellaneous Administration Costs,Navy Command,VT FLAGSHIP LTD,797320,7531076.66
Ministry of Defence,Ministry of Defence,24/05/2011,Estate management,Defence Infrastructure Organisation ,MODERN HOUSING SOLUTIONS (PRIME)LIMITED,798555,7486017.47
Ministry of Defence,Ministry of Defence,12/05/2011,Estate management,Central TLB,MODUS SERVICES LIMITED,792889,6728784.77
Ministry of Defence,Ministry of Defence,31/05/2011,Estate management,Defence Infrastructure Organisation ,LANDMARC SUPPORT SERVICES LIMITED,801056,6599788.24
Ministry of Defence,Ministry of Defence,18/05/2011,Government Procurement Card,Ministry of Defence,BARCLAYS BANK PLC,10809,6564542.59
Ministry of Defence,Ministry of Defence,19/05/2011,Estate management,Defence Infrastructure Organisation ,DEBUT SERVICES (SOUTH WEST)LIMITED,796027,5821957.26
Ministry of Defence,Ministry of Defence,26/05/2011,Estate management,Defence Infrastructure Organisation ,LANDMARC SUPPORT SERVICES LIMITED,799778,5799031.84
Ministry of Defence,Ministry of Defence,17/05/2011,Design services and minor equipment purchases,Central TLB,METEOROLOGICAL OFFICE,794888,5673666.66
Ministry of Defence,Ministry of Defence,10/05/2011,Estate management,Defence Infrastructure Organisation ,MODERN HOUSING SOLUTIONS (PRIME)LIMITED,791798,5633274.86
Ministry of Defence,Ministry of Defence,19/05/2011,Property leases,Defence Infrastructure Organisation ,RMPA SERVICES PLC,796358,5467688.43
Ministry of Defence,Ministry of Defence,03/05/2011,Property leases,Defence Infrastructure Organisation ,RMPA SERVICES PLC,788632,5467202.84
Ministry of Defence,Ministry of Defence,23/05/2011,Estate management,Land Forces,HOLDFAST TRAINING SERVICES LTD,797704,5442921.06
Ministry of Defence,Ministry of Defence,23/05/2011,Property leases,Land Forces,HOLDFAST TRAINING SERVICES LTD,797704,4972067.02
Ministry of Defence,Ministry of Defence,20/05/2011,Estate management,Defence Infrastructure Organisation ,BABCOCK DYNCORP LIMITED,796601,4717669.99
Ministry of Defence,Ministry of Defence,19/05/2011,Estate management,Defence Infrastructure Organisation ,CARILLIONENTERPRISE LIMITED,795986,4669523.7
Ministry of Defence,Ministry of Defence,20/05/2011,Grants to NDPBs,Land Forces,COUNCIL OF RESERVE FORCES' AND CADETS' ASSOCIATIONS,796716,4199312
Ministry of Defence,Ministry of Defence,03/05/2011,Rent and rates,Defence Infrastructure Organisation ,LAND AND PROPERTY SERVICES,32256,4038237.78
Ministry of Defence,Ministry of Defence,06/05/2011,Rental of plant and machinery,Defence Equipment & Support,ALC (SPC) LIMITED,790045,3639953.43
Ministry of Defence,Ministry of Defence,05/05/2011,Estate management,Defence Infrastructure Organisation ,DEBUT SERVICES (SOUTH WEST)LIMITED,789500,3568339.51
Ministry of Defence,Ministry of Defence,12/05/2011,Purchase of buildings and military equipment ,Land Forces,HOLDFAST TRAINING SERVICES LTD,792816,3511741.99
Ministry of Defence,Ministry of Defence,16/05/2011,Property leases,Defence Infrastructure Organisation ,COAST TO COAST WATER LTD,793921,3318613.9
Ministry of Defence,Ministry of Defence,03/05/2011,Rent and rates,Defence Infrastructure Organisation ,THE MORAY COUNCIL,788723,2853497.8
Ministry of Defence,Ministry of Defence,13/05/2011,Purchase of buildings and military equipment ,Defence Infrastructure Organisation ,BABCOCK DYNCORP LIMITED,793229,2834845.07
Ministry of Defence,Ministry of Defence,25/05/2011,Property leases,Defence Infrastructure Organisation ,KELDA WATER SERVICES (ESTATES) LIMITED,799090,2675419.48
Ministry of Defence,Ministry of Defence,16/05/2011,Medical treatment & stores and welfare services.,Central TLB,UNIVERSITY HOSPITAL BIRMINGHAM NHS FOUNDATION TRUST,794509,2659617.57
Ministry of Defence,Ministry of Defence,23/05/2011,Transport hire charges,Air Command,FBS LIMITED,797655,2512846.45
Ministry of Defence,Ministry of Defence,20/05/2011,Transport hire charges,Air Command,FBS LIMITED,796815,2508618.69
Ministry of Defence,Ministry of Defence,16/05/2011,Property leases,Defence Infrastructure Organisation ,KELDA WATER SERVICES (ESTATES) LIMITED,794098,2491752.76
Ministry of Defence,Ministry of Defence,12/05/2011,Fees for professional services,Land Forces,HP ENTERPRISE SERVICES DEFENCE & SECURITY UK LIMITED,792821,2489282.32
Ministry of Defence,Ministry of Defence,17/05/2011,Transport hire charges,Land Forces,BABCOCK LAND (WHITEFLEET MANAGEMENT) LIMITED,794599,2447014.26
Ministry of Defence,Ministry of Defence,26/05/2011,Estate management,Defence Infrastructure Organisation ,INTERSERVE (DEFENCE) LTD,5000056828,2351223.37
Ministry of Defence,Ministry of Defence,20/05/2011,Purchase of buildings and military equipment ,Defence Infrastructure Organisation ,DEBUT SERVICES LIMITED,796730,2340970.93
Ministry of Defence,Ministry of Defence,06/05/2011,Rent and rates,Defence Infrastructure Organisation ,FIFE COUNCIL,790256,2325495.6
Ministry of Defence,Ministry of Defence,09/05/2011,Fees for professional services,Central TLB,DEFENCE MANAGEMENT (WATCHFIELD) LIMITED,790946,2292755.7
Ministry of Defence,Ministry of Defence,06/05/2011,Estate management,Defence Infrastructure Organisation ,INTERSERVE (DEFENCE) LTD,5000055531,2281098.18
Ministry of Defence,Ministry of Defence,18/05/2011,Grants to NDPBs,Central TLB,Commonwealth War Graves Commission,795348,2261480.5
Ministry of Defence,Ministry of Defence,11/05/2011,"Purchase of munitions, other inventory or fuel",Defence Equipment & Support,BP OIL INTERNATIONAL LIMITED,2000011584,2243876.99
Ministry of Defence,Ministry of Defence,16/05/2011,Estate management,Defence Infrastructure Organisation ,CARILLIONENTERPRISE LIMITED,793889,2203665.19
Ministry of Defence,Ministry of Defence,24/05/2011,Purchase of buildings and military equipment ,Defence Equipment & Support,A&P GROUP LIMITED,798264,2109437
Ministry of Defence,Ministry of Defence,09/05/2011,Purchase of buildings and military equipment ,Defence Infrastructure Organisation ,BABCOCK DYNCORP LIMITED,790811,2045282.74
Ministry of Defence,Ministry of Defence,25/05/2011,"Purchase of munitions, other inventory or fuel",Defence Equipment & Support,BP OIL INTERNATIONAL LIMITED,2000011711,2002597.97
Ministry of Defence,Ministry of Defence,12/05/2011,Medical treatment & stores and welfare services.,Central TLB,SERVICES SOUND & VISION CORPORATION,793063,1998559
Ministry of Defence,Ministry of Defence,04/05/2011,Property leases,Land Forces,DEFENCE TRAINING SERVICES LIMITED,788906,1923185.32
Ministry of Defence,Ministry of Defence,17/05/2011,Transport hire charges,Air Command,BABCOCK LAND (WHITEFLEET MANAGEMENT) LIMITED,794599,1889257.99
Ministry of Defence,Ministry of Defence,05/05/2011,Food and clothing,Defence Equipment & Support,PURPLE FOODSERVICE SOLUTIONS LIMITED,789840,1850345.4
Ministry of Defence,Ministry of Defence,18/05/2011,Purchase of buildings and military equipment ,Defence Equipment & Support,DEVONPORT ROYAL DOCKYARD LIMITED,795377,1750523.53
Ministry of Defence,Defence Science and Technology Laboratory,06/05/2011,Sub Contracted Research,Programme Office,SELEX GALILEO LIMITED,V - 9000132446 - 00107215,1743822
Ministry of Defence,Ministry of Defence,17/05/2011,Purchase of buildings and military equipment ,Defence Infrastructure Organisation ,BOVIS LEND LEASE LIMITED,794628,1740196.82
Ministry of Defence,Defence Science and Technology Laboratory,13/05/2011,Sub Contracted Research,Programme Office,QINETIQ LIMITED,V - 9000132656 - 00107142,1735028.81
Ministry of Defence,Ministry of Defence,23/05/2011,Property leases,Land Forces,DEFENCE TRAINING SERVICES LIMITED,797564,1726895.78
Ministry of Defence,Ministry of Defence,27/05/2011,Food and clothing,Defence Equipment & Support,PURPLE FOODSERVICE SOLUTIONS LIMITED,800599,1691346.18
Ministry of Defence,Ministry of Defence,25/05/2011,Transport hire charges,Air Command,BABCOCK AEROSPACE LIMITED,798867,1639028
Ministry of Defence,Ministry of Defence,26/05/2011,Design services and minor equipment purchases,Air Command,SERCO LIMITED,800013,1632242.26
Ministry of Defence,Ministry of Defence,12/05/2011,Purchase of buildings and military equipment ,Defence Infrastructure Organisation ,COLAS LTD,792697,1595717.07
Ministry of Defence,Ministry of Defence,13/05/2011,Food and clothing,Defence Equipment & Support,PURPLE FOODSERVICE SOLUTIONS LIMITED,793605,1565971.53
Ministry of Defence,Ministry of Defence,24/05/2011,Property leases,Defence Infrastructure Organisation ,VEOLIA WATER NEVIS LIMITED,798792,1501200.71
Ministry of Defence,Ministry of Defence,12/05/2011,Estate management,Defence Infrastructure Organisation ,MODERN HOUSING SOLUTIONS (PRIME)LIMITED,792888,1489275.01
Ministry of Defence,Defence Science and Technology Laboratory,20/05/2011,Facility Management Costs,Infrastructure,SERCO LIMITED,V - 9000132879 - 00109553,1480715.98
Ministry of Defence,Ministry of Defence,05/05/2011,Payment of utilities,Defence Infrastructure Organisation ,SSE ENERGY SUPPLY LIMITED,789920,1478231.64
Ministry of Defence,Ministry of Defence,12/05/2011,Estate management,Defence Infrastructure Organisation ,BABCOCK DYNCORP LIMITED,792619,1459183.96
Ministry of Defence,Ministry of Defence,11/05/2011,Design services and minor equipment purchases,Defence Equipment & Support,OFFSHORE SYSTEMS LTD,792398,1415421.15
Ministry of Defence,Ministry of Defence,18/05/2011,IT and communication services,Defence Equipment & Support,HP ENTERPRISE SERVICES DEFENCE & SECURITY UK LIMITED,795472,1415187.85
Ministry of Defence,Ministry of Defence,19/05/2011,Development costs for military equipment,Defence Equipment & Support,MBDA UK LIMITED,796206,1409968.8
Ministry of Defence,Ministry of Defence,06/05/2011,Property leases,Defence Infrastructure Organisation ,FALCON SUPPORT SERVICES LIMITED,790253,1393394.84
Ministry of Defence,Ministry of Defence,25/05/2011,Grants to Reserves Forces and Cadets Association,Defence Infrastructure Organisation ,COUNCIL OF RESERVE FORCES' AND CADETS' ASSOCIATIONS,798950,1338316.67
Ministry of Defence,Defence Science and Technology Laboratory,06/05/2011,Sub Contracted Work,Operations,QINETIQ LIMITED,V - 9000132443 - 00108047,1328205.39
Ministry of Defence,Ministry of Defence,04/05/2011,Fees for professional services,Central TLB,SERCO LIMITED,789245,1309136.62
Ministry of Defence,Ministry of Defence,31/05/2011,Rent and rates,Defence Infrastructure Organisation ,LONDON BOROUGH OF HILLINGDON,801066,1308214.45
Ministry of Defence,Ministry of Defence,12/05/2011,Research and development,Defence Equipment & Support,DEFENCE SCIENCE & TECHNOLOGY LABORATORY,792711,1299109.15
Ministry of Defence,Ministry of Defence,19/05/2011,Fees for professional services,Central TLB,CRANFIELD UNIVERSITY,796022,1249769.16
Ministry of Defence,Ministry of Defence,13/05/2011,Rent and rates,Defence Infrastructure Organisation ,BOROUGH COUNCIL OF KINGS LYNN & WEST NORFOLK,793254,1242710
Ministry of Defence,Ministry of Defence,09/05/2011,Payment of utilities,Land Forces,E.ON,5000055595,1222175.04
Ministry of Defence,Ministry of Defence,11/05/2011,Rent and rates,Defence Infrastructure Organisation ,LAND AND PROPERTY SERVICES,32323,1204849.45
Ministry of Defence,Ministry of Defence,05/05/2011,Payment of utilities,Defence Equipment & Support,SSE ENERGY SUPPLY LIMITED,789920,1199038.42
Ministry of Defence,Ministry of Defence,09/05/2011,Payments made in advance,Central TLB,EUROPEAN DEFENCE AGENCY,5000055601,1187956.64
Ministry of Defence,Ministry of Defence,19/05/2011,Purchase of buildings and military equipment ,Defence Infrastructure Organisation ,DEBUT SERVICES (SOUTH WEST)LIMITED,796027,1161880.73
Ministry of Defence,Ministry of Defence,06/05/2011,Food and clothing,Defence Equipment & Support,PURPLE FOODSERVICE SOLUTIONS LIMITED,790562,1147300.92
Ministry of Defence,Ministry of Defence,31/05/2011,Rent and rates,Defence Infrastructure Organisation ,PLYMOUTH CITY COUNCIL,801222,1090000
Ministry of Defence,Ministry of Defence,25/05/2011,"Transportation of personnel, freight and travel expenses",Land Forces,BUSVERKEHR OSTWESTFALEN GMBH,5000056642,1077373.23
Ministry of Defence,Ministry of Defence,18/05/2011,"Transportation of personnel, freight and travel expenses",Land Forces,BUSVERKEHR OSTWESTFALEN GMBH,4000005325,1067922.59
Ministry of Defence,Ministry of Defence,23/05/2011,Property leases,Central TLB,MINERVA EDUCATION AND TRAINING  LIMITED,797797,1052050.56
Ministry of Defence,Ministry of Defence,11/05/2011,Design services and minor equipment purchases,Defence Equipment & Support,EUROCOPTER,5000055800,1051511.51
Ministry of Defence,Ministry of Defence,24/05/2011,Estate management,Defence Infrastructure Organisation ,SODEXO LTD,798723,1049258.49
Ministry of Defence,Ministry of Defence,25/05/2011,Payment of utilities,Air Command,SSE ENERGY SUPPLY LIMITED,799369,1042608.83
Ministry of Defence,Ministry of Defence,12/05/2011,Externally delivered education and training.,Air Command,BABCOCK LAND LIMITED,792621,1011534.21
Ministry of Defence,Ministry of Defence,19/05/2011,Purchase of buildings and military equipment ,Defence Infrastructure Organisation ,BOVIS LEND LEASE LIMITED,795951,989267.75
Ministry of Defence,Ministry of Defence,25/05/2011,Purchase of buildings and military equipment ,Defence Infrastructure Organisation ,DEBUT SERVICES LIMITED,798962,980975.87
Ministry of Defence,Ministry of Defence,19/05/2011,Fees for professional services,Central TLB,SERCO LIMITED,796383,973540.05
Ministry of Defence,Ministry of Defence,31/05/2011,Property leases,Defence Infrastructure Organisation ,VEOLIA WATER NEVIS LIMITED,801366,972806.17
Ministry of Defence,Ministry of Defence,05/05/2011,Purchase of buildings and military equipment ,Defence Equipment & Support,MBDA UK LIMITED,789691,967478.4
Ministry of Defence,Ministry of Defence,27/05/2011,IT and communication services,Defence Equipment & Support,IBM UNITED KINGDOM LIMITED,800401,956369.85
Ministry of Defence,Ministry of Defence,13/05/2011,Purchase of buildings and military equipment ,Defence Infrastructure Organisation ,TURNER ESTATE SOLUTIONS LIMITED,793711,945623.4
Ministry of Defence,Ministry of Defence,18/05/2011,Purchase of buildings and military equipment ,Defence Infrastructure Organisation ,MORGAN SINDALL PLC.,795569,929040.4
Ministry of Defence,Defence Science and Technology Laboratory,13/05/2011,IS Support Service,Infrastructure,STERIA LIMITED,V - 9000132605 - 00108299,922072.26
Ministry of Defence,Ministry of Defence,10/05/2011,Grants to NDPBs,Land Forces,ROYAL HOSPITAL,791942,916750
Ministry of Defence,Ministry of Defence,17/05/2011,Externally delivered education and training.,Air Command,BABCOCK LAND LIMITED,794600,895670.31
Ministry of Defence,Ministry of Defence,31/05/2011,Transport hire charges,Land Forces,RYDER DEUTSCHLAND GMBH,5000056980,891782.18
Ministry of Defence,Ministry of Defence,03/05/2011,Rent and rates,Defence Infrastructure Organisation ,WEST BERKSHIRE DISTRICT COUNCIL,788765,859964.16
Ministry of Defence,Ministry of Defence,25/05/2011,Estate management,Defence Infrastructure Organisation ,MODERN HOUSING SOLUTIONS (PRIME)LIMITED,799134,853184.33
Ministry of Defence,Ministry of Defence,23/05/2011,General services and support,Land Forces,FBS LIMITED,797655,826293.66
Ministry of Defence,Ministry of Defence,27/05/2011,IT and communication services,Defence Equipment & Support,CAPGEMINI UK PLC,800236,824113.5
Ministry of Defence,Ministry of Defence,03/05/2011,Estate management,Defence Infrastructure Organisation ,WILTSHIRE COUNCIL,788772,821000
Ministry of Defence,Ministry of Defence,09/05/2011,Grants to NDPBs,Navy Command,SEA CADET CORPS,791337,820111
Ministry of Defence,Ministry of Defence,13/05/2011,Rent and rates,Defence Infrastructure Organisation ,MEDWAY COUNCIL,793506,818784.97
Ministry of Defence,Ministry of Defence,11/05/2011,Fees for professional services,Land Forces,HP ENTERPRISE SERVICES DEFENCE & SECURITY UK LIMITED,792237,817819
Ministry of Defence,Ministry of Defence,20/05/2011,General services and support,Land Forces,FBS LIMITED,796815,810662.45
Ministry of Defence,Ministry of Defence,18/05/2011,Government Procurement Card,Ministry of Defence,BARCLAYS BANK PLC,10808,806447.85
Ministry of Defence,Ministry of Defence,04/05/2011,Estate management,Defence Infrastructure Organisation ,MODERN HOUSING SOLUTIONS (PRIME)LIMITED,789075,784899.85
Ministry of Defence,Ministry of Defence,19/05/2011,Rental of plant and machinery,Defence Equipment & Support,BARLOWORLD HANDLING LTD,795937,778062.32
Ministry of Defence,Ministry of Defence,16/05/2011,Purchase of buildings and military equipment ,Defence Infrastructure Organisation ,DEBUT SERVICES LIMITED,793944,775108.75
Ministry of Defence,Ministry of Defence,03/05/2011,Payment of utilities,Air Command,SSE ENERGY SUPPLY LIMITED,788697,756430.02
Ministry of Defence,Ministry of Defence,11/05/2011,Estate management,Defence Infrastructure Organisation ,SERCO LIMITED,792473,734693.61
Ministry of Defence,Ministry of Defence,05/05/2011,Purchase of plant and machinery,Defence Equipment & Support,G3 SYSTEMS LIMITED,789573,732190.8
Ministry of Defence,Ministry of Defence,27/05/2011,Property leases,Defence Infrastructure Organisation ,TRICOMM HOUSING LIMITED,800726,731982.08
Ministry of Defence,Ministry of Defence,05/05/2011,Payment of utilities,Air Command,SSE ENERGY SUPPLY LIMITED,789920,723630.98
Ministry of Defence,Ministry of Defence,19/05/2011,Rent and rates,Defence Infrastructure Organisation ,WILTSHIRE COUNCIL,796529,716098.31
Ministry of Defence,Ministry of Defence,18/05/2011,"Purchase of munitions, other inventory or fuel",Defence Equipment & Support,SOUTHERN SCIENTIFIC LIMITED,795758,715000
Ministry of Defence,Ministry of Defence,31/05/2011,Estate management,Air Command,VT FLAGSHIP LTD,801375,714971.45
Ministry of Defence,Ministry of Defence,09/05/2011,Estate management,Defence Infrastructure Organisation ,TURNER FACILITIES MANAGEMENT LTD,791425,704084.83
Ministry of Defence,Ministry of Defence,09/05/2011,"Purchase of munitions, other inventory or fuel",Defence Equipment & Support,THE MAERSK COMPANY LTD,791410,698450
Ministry of Defence,Ministry of Defence,17/05/2011,Transport hire charges,Defence Equipment & Support,BABCOCK LAND (WHITEFLEET MANAGEMENT) LIMITED,794599,680892.32
Ministry of Defence,Ministry of Defence,06/05/2011,Estate management,Air Command,VT FLAGSHIP LTD,790736,676214.09
Ministry of Defence,Ministry of Defence,12/05/2011,Payment of utilities,Air Command,TOTAL GAS & POWER LIMITED,793134,661953.36
Ministry of Defence,Ministry of Defence,11/05/2011,General services and support,Defence Equipment & Support,MARSHALL OF CAMBRIDGE AEROSPACE LIMITED,792286,650000
Ministry of Defence,Ministry of Defence,16/05/2011,Purchase of buildings and military equipment ,Defence Infrastructure Organisation ,BEZIRKSREGIERUNG DUESSELDORF,5000056055,649638.71
Ministry of Defence,Ministry of Defence,26/05/2011,Payment of utilities,Defence Infrastructure Organisation ,TOTAL GAS & POWER LIMITED,800081,647002.57
Ministry of Defence,Ministry of Defence,31/05/2011,Purchase of buildings and military equipment ,Defence Equipment & Support,AMDAC - CARMICHAEL LTD,800803,642258.2
Ministry of Defence,Ministry of Defence,23/05/2011,Payment of utilities,Air Command,SSE ENERGY SUPPLY LIMITED,798122,633263.02
Ministry of Defence,Ministry of Defence,11/05/2011,Estate management,Defence Infrastructure Organisation ,TURNER FACILITIES MANAGEMENT LTD,792541,631771.92
Ministry of Defence,Ministry of Defence,13/05/2011,Payment of utilities,Air Command,TOTAL GAS & POWER LIMITED,793706,628535.74
Ministry of Defence,Ministry of Defence,26/05/2011,IT and communication services,Central TLB,LOGICA UK LIMITED,799792,627861.67
Ministry of Defence,Ministry of Defence,18/05/2011,Food and clothing,Defence Infrastructure Organisation ,ARAMARK LTD,795207,618375.01
Ministry of Defence,Ministry of Defence,03/05/2011,Payment of utilities,Air Command,TOTAL GAS & POWER LIMITED,788734,617050.41
Ministry of Defence,Ministry of Defence,13/05/2011,"Purchase of munitions, other inventory or fuel",Defence Equipment & Support,MOLECULAR PRODUCTS LIMITED,793518,606420
Ministry of Defence,Ministry of Defence,10/05/2011,Estate management,Land Forces,HOLDFAST TRAINING SERVICES LTD,791723,599085.46
Ministry of Defence,Ministry of Defence,09/05/2011,Estate management,Defence Infrastructure Organisation ,PRIDE (SERP) LTD,791286,596488
Ministry of Defence,Defence Science and Technology Laboratory,27/05/2011,Repairs & Maintenance,Infrastructure,SERCO LIMITED,V - 9000133106 - 00110227,596279.08
Ministry of Defence,Ministry of Defence,16/05/2011,Payment of utilities,Defence Infrastructure Organisation ,ELECTRICITY AUTHORITY OF CYPRUS,4000005317,593952.02
Ministry of Defence,Ministry of Defence,05/05/2011,"Purchase of major spares armaments, medical & general stores",Defence Equipment & Support,ELECTRO SERVICES (MIDLANDS) LTD,789539,593623.43
Ministry of Defence,Ministry of Defence,23/05/2011,Fees for professional services,Land Forces,BABCOCK LAND LIMITED,797405,585713.58
Ministry of Defence,Ministry of Defence,06/05/2011,Payment of utilities,Air Command,TOTAL GAS & POWER LIMITED,790700,585503.66
Ministry of Defence,Ministry of Defence,04/05/2011,Estate management,Defence Infrastructure Organisation ,MODERN HOUSING SOLUTIONS (PRIME)LIMITED,789074,584794.83
Ministry of Defence,Ministry of Defence,20/05/2011,Design services and minor equipment purchases,Air Command,BABCOCK SUPPORT SERVICES LIMITED,796608,584621.46
Ministry of Defence,Ministry of Defence,16/05/2011,Purchase of buildings and military equipment ,Defence Infrastructure Organisation ,CARILLIONENTERPRISE LIMITED,793889,584262.5
Ministry of Defence,Ministry of Defence,03/05/2011,Design services and minor equipment purchases,Air Command,BABCOCK SUPPORT SERVICES LIMITED,788197,582465.16
Ministry of Defence,Ministry of Defence,25/05/2011,Estate management,Defence Infrastructure Organisation ,INTERSERVE (DEFENCE) LTD,5000056683,568504.11
Ministry of Defence,Ministry of Defence,20/05/2011,Design services and minor equipment purchases,Air Command,FBS LIMITED,796815,561959.54
Ministry of Defence,Ministry of Defence,23/05/2011,Design services and minor equipment purchases,Air Command,FBS LIMITED,797655,559836.22
Ministry of Defence,Ministry of Defence,23/05/2011,Research and development,Defence Equipment & Support,DEFENCE SCIENCE & TECHNOLOGY LABORATORY,797561,551976.3
Ministry of Defence,Ministry of Defence,23/05/2011,IT and communication services,Central TLB,IBM UNITED KINGDOM LIMITED,797712,544811.35
Ministry of Defence,Ministry of Defence,25/05/2011,Estate management,Defence Infrastructure Organisation ,SODEXO LTD,799356,537278.4
Ministry of Defence,Ministry of Defence,27/05/2011,Property leases,Defence Infrastructure Organisation ,ASPIRE DEFENCE LIMITED,800168,533983.53
Ministry of Defence,Ministry of Defence,04/05/2011,Payment of utilities,Defence Infrastructure Organisation ,TOTAL GAS & POWER LIMITED,789299,530410.98
Ministry of Defence,Ministry of Defence,18/05/2011,"Purchase of munitions, other inventory or fuel",Defence Equipment & Support,BP OIL INTERNATIONAL LIMITED,2000011646,528691.2
Ministry of Defence,Ministry of Defence,20/05/2011,"Purchase of munitions, other inventory or fuel",Defence Equipment & Support,BP OIL INTERNATIONAL LIMITED,2000011670,525602.05
Ministry of Defence,Ministry of Defence,25/05/2011,Fuel for military use,Land Forces,ARVAL UK LTD,798850,525364.11
Ministry of Defence,Ministry of Defence,16/05/2011,Estate management,Defence Infrastructure Organisation ,BEZIRKSREGIERUNG DUESSELDORF,5000056055,524964.8
Ministry of Defence,Ministry of Defence,26/05/2011,Food and clothing,Defence Infrastructure Organisation ,COMPASS CONTRACT SERVICES (U K)LIMITED,799604,521622.53
Ministry of Defence,Defence Science and Technology Laboratory,20/05/2011,Sub Contracted Research,Programme Office,QINETIQ LIMITED,V - 9000132877 - 00109383,520609
Ministry of Defence,Ministry of Defence,17/05/2011,Fees for professional services,Central TLB,IBM UNITED KINGDOM LIMITED,794816,517250
Ministry of Defence,Met Office,16/05/2011,Accommodation,Chief Financial Officer,Stratus Integrated Services Ltd,307703,515922.99
Ministry of Defence,Defence Science and Technology Laboratory,06/05/2011,Sub Contracted Research,Programme Office,QINETIQ LIMITED,V - 9000132443 - 00107105,500000
Ministry of Defence,Ministry of Defence,20/05/2011,Design services and minor equipment purchases,Defence Equipment & Support,CENTERPRISE INTERNATIONAL LTD,796680,498409.95
Ministry of Defence,Ministry of Defence,13/05/2011,Estate management,Defence Infrastructure Organisation ,BABCOCK DYNCORP LIMITED,793229,498317
Ministry of Defence,Ministry of Defence,19/05/2011,Estate management,Defence Infrastructure Organisation ,SODEXO LTD,796399,497212.02
Ministry of Defence,Ministry of Defence,04/05/2011,Purchase of information and communications technology,Defence Equipment & Support,HP ENTERPRISE SERVICES DEFENCE & SECURITY UK LIMITED,789001,491896.8
Ministry of Defence,Ministry of Defence,05/05/2011,Estate management,Defence Infrastructure Organisation ,COMPASS CONTRACT SERVICES (U K)LIMITED,789477,490843.65
Ministry of Defence,Ministry of Defence,19/05/2011,Purchase of buildings and military equipment ,Defence Equipment & Support,MEGGITT TRAINING SYSTEMS INC,796214,490633.5
Ministry of Defence,Ministry of Defence,31/05/2011,Payment of utilities,Defence Infrastructure Organisation ,TOTAL GAS & POWER LIMITED,801335,481732.3
Ministry of Defence,Ministry of Defence,23/05/2011,Payment of utilities,Defence Infrastructure Organisation ,STADTWERKE BOEHMETAL GMBH,5000056571,478315.76
Ministry of Defence,Ministry of Defence,11/05/2011,Rent and rates,Defence Infrastructure Organisation ,HARROGATE BOROUGH COUNCIL,792219,472628.58
Ministry of Defence,Ministry of Defence,17/05/2011,Externally delivered education and training.,Land Forces,G4S FSI LIMITED,794763,470193.65
Ministry of Defence,Ministry of Defence,27/05/2011,Externally delivered education and training.,Land Forces,G4S FSI LIMITED,800359,470193.65
Ministry of Defence,Ministry of Defence,26/05/2011,Design services and minor equipment purchases,Land Forces,MORSON WYNNWITH LIMITED,799820,469627.19
Ministry of Defence,Ministry of Defence,24/05/2011,Estate management,Air Command,SERCO LIMITED,798714,467236.82
Ministry of Defence,Ministry of Defence,11/05/2011,Purchase of buildings and military equipment ,Air Command,TURNER FACILITIES MANAGEMENT LTD,792541,463119.84
Ministry of Defence,Ministry of Defence,23/05/2011,Rental of plant and machinery,Defence Equipment & Support,BARLOWORLD HANDLING LTD,797426,461775.19
Ministry of Defence,Ministry of Defence,09/05/2011,Purchase of buildings and military equipment ,Defence Infrastructure Organisation ,PRIDE (SERP) LTD,791286,459315.6
Ministry of Defence,Ministry of Defence,17/05/2011,Payment of utilities,Defence Infrastructure Organisation ,TOTAL GAS & POWER LIMITED,795131,448984.34
Ministry of Defence,Ministry of Defence,12/05/2011,Payment of utilities,Defence Infrastructure Organisation ,TOTAL GAS & POWER LIMITED,793134,442214.96
Ministry of Defence,Defence Science and Technology Laboratory,20/05/2011,Sub Contracted Research,Programme Office,QINETIQ LIMITED,V - 9000132877 - 00107090,438489
Ministry of Defence,Ministry of Defence,19/05/2011,Food and clothing,Defence Infrastructure Organisation ,SODEXO LTD,796399,437674.59
Ministry of Defence,Ministry of Defence,06/05/2011,Payment of utilities,Defence Infrastructure Organisation ,TOTAL GAS & POWER LIMITED,790700,437538.65
Ministry of Defence,Ministry of Defence,27/05/2011,Payment of utilities,Defence Equipment & Support,SSE ENERGY SUPPLY LIMITED,800677,437280.32
Ministry of Defence,Ministry of Defence,23/05/2011,Design services and minor equipment purchases,Air Command,COMPASS GROUP UK AND IRELAND LIMITED,797527,433764.74
Ministry of Defence,Ministry of Defence,13/05/2011,Food and clothing,Defence Infrastructure Organisation ,AVENANCE PLC,793222,433606.2
Ministry of Defence,Defence Science and Technology Laboratory,27/05/2011,Repairs & Maintenance,Infrastructure,SERCO LIMITED,V - 9000133106 - 00110221,432754.04
Ministry of Defence,Ministry of Defence,16/05/2011,Estate management,Defence Infrastructure Organisation ,TURNER FACILITIES MANAGEMENT LTD,794500,426912.66
Ministry of Defence,Ministry of Defence,17/05/2011,Food and clothing,Defence Infrastructure Organisation ,ISS MEDICLEAN LIMITED,794833,412930.21
Ministry of Defence,Ministry of Defence,31/05/2011,Estate management,Defence Infrastructure Organisation ,TURNER FACILITIES MANAGEMENT LTD,801346,411941.45
Ministry of Defence,Ministry of Defence,19/05/2011,Payment of utilities,Defence Infrastructure Organisation ,NEW ENERGIE GMBH,5000056409,409406.33
Ministry of Defence,Ministry of Defence,20/05/2011,Purchase of buildings and military equipment ,Defence Infrastructure Organisation ,BABCOCK DYNCORP LIMITED,796601,403548
Ministry of Defence,Ministry of Defence,25/05/2011,Purchase of buildings and military equipment ,Defence Infrastructure Organisation ,CARILLIONENTERPRISE LIMITED,798925,391367.5
Ministry of Defence,Ministry of Defence,03/05/2011,Food and clothing,Defence Infrastructure Organisation ,SODEXO LTD,788675,387657.58
Ministry of Defence,Ministry of Defence,06/05/2011,Design services and minor equipment purchases,Air Command,VT FLAGSHIP LTD,790736,384598.48
Ministry of Defence,Ministry of Defence,17/05/2011,Design services and minor equipment purchases,Defence Equipment & Support,BAE SYSTEMS INTEGRATED SYSTEM TECHNOLOGIES LIMITED,794612,377914
Ministry of Defence,Ministry of Defence,04/05/2011,Purchase of buildings and military equipment ,Defence Infrastructure Organisation ,MODERN HOUSING SOLUTIONS (PRIME)LIMITED,789074,377649.38
Ministry of Defence,Ministry of Defence,13/05/2011,Estate management,Defence Infrastructure Organisation ,MODERN HOUSING SOLUTIONS (PRIME)LIMITED,793516,374129.45
Ministry of Defence,Ministry of Defence,25/05/2011,Property leases,Defence Infrastructure Organisation ,ROSELEAD LIMITED,799332,373653.44
Ministry of Defence,Ministry of Defence,13/05/2011,Purchase of buildings and military equipment ,Defence Infrastructure Organisation ,DEBUT SERVICES (SOUTH WEST)LIMITED,793333,373603.91
Ministry of Defence,Ministry of Defence,12/05/2011,Purchase of buildings and military equipment ,Defence Infrastructure Organisation ,DEBUT SERVICES (SOUTH WEST)LIMITED,792710,365838.38
Ministry of Defence,Defence Science and Technology Laboratory,20/05/2011,Sub Contracted Research,Programme Office,SELEX GALILEO LIMITED,V - 9000132880 - 00109090,364595.74
Ministry of Defence,Ministry of Defence,24/05/2011,Payment of utilities,Air Command,SSE ENERGY SUPPLY LIMITED,798739,363583.9
Ministry of Defence,Ministry of Defence,31/05/2011,Purchase of buildings and military equipment ,Defence Infrastructure Organisation ,VOLKER STEVIN LIMITED,801372,361095.6
Ministry of Defence,Ministry of Defence,26/05/2011,Estate management,Air Command,SERCO LIMITED,800013,361026.26
Ministry of Defence,Ministry of Defence,18/05/2011,Fees for professional services,Defence Equipment & Support,HP ENTERPRISE SERVICES DEFENCE & SECURITY UK LIMITED,795472,356529.45
Ministry of Defence,Ministry of Defence,26/05/2011,Design services and minor equipment purchases,Defence Equipment & Support,POLAR SHIP INVEST II AS,2000000870,356250
Ministry of Defence,Ministry of Defence,27/05/2011,Purchase of buildings and military equipment ,Defence Infrastructure Organisation ,VSM ESTATES LIMITED,800756,351574.8
Ministry of Defence,Defence Science and Technology Laboratory,20/05/2011,Sub Contracted Research,Programme Office,QINETIQ LIMITED,V - 9000132877 - 00107131,350000
Ministry of Defence,Ministry of Defence,09/05/2011,Estate management,Defence Infrastructure Organisation ,MODERN HOUSING SOLUTIONS (PRIME)LIMITED,791142,349926.43
Ministry of Defence,Ministry of Defence,20/05/2011,Property leases,Defence Infrastructure Organisation ,COVESEA LIMITED,796717,348781.25
Ministry of Defence,Ministry of Defence,13/05/2011,Payment of utilities,Defence Infrastructure Organisation ,SSE ENERGY SUPPLY LIMITED,793660,348574.86
Ministry of Defence,Ministry of Defence,31/05/2011,Rent and rates,Land Forces,GUY'S & ST THOMAS NHS FOUNDATION TRUST,2.00E+11,346560.6
Ministry of Defence,Ministry of Defence,26/05/2011,IT and communication services,Defence Equipment & Support,LOCKHEED MARTIN UK LIMITED,799790,346406
Ministry of Defence,Ministry of Defence,24/05/2011,Estate management,Central TLB,Granada Enterprises Ltd,Cash Office AP02 04,345811.5
Ministry of Defence,Ministry of Defence,18/05/2011,"Transportation of personnel, freight and travel expenses",Central TLB,Hafif Travel & Tourism Co. Ltd,Cash Office AP02 11,340307.88
Ministry of Defence,Ministry of Defence,17/05/2011,Estate management,Defence Infrastructure Organisation ,BOVIS LEND LEASE LIMITED,794628,340000
Ministry of Defence,Ministry of Defence,25/05/2011,Estate management,Defence Infrastructure Organisation ,COMPASS CONTRACT SERVICES (U K)LIMITED,798943,335762.64
Ministry of Defence,Ministry of Defence,18/05/2011,Design services and minor equipment purchases,Defence Equipment & Support,COBHAM FLIGHT INSPECTION  LIMITED,795346,332965
Ministry of Defence,Ministry of Defence,17/05/2011,Transport hire charges,Navy Command,BABCOCK LAND (WHITEFLEET MANAGEMENT) LIMITED,794599,330059.76
Ministry of Defence,Ministry of Defence,17/05/2011,Estate management,Defence Infrastructure Organisation ,ISS MEDICLEAN LIMITED,794833,329540.15
Ministry of Defence,Ministry of Defence,13/05/2011,Design services and minor equipment purchases,Command Joint Operations,VAN WIJNGAARDEN MARINE SERVICES B V,3000005499,328449
Ministry of Defence,Ministry of Defence,17/05/2011,Estate management,Defence Infrastructure Organisation ,SODEXO LTD,795075,327213.13
Ministry of Defence,Ministry of Defence,06/05/2011,General services and support,Defence Equipment & Support,MARSHALL OF CAMBRIDGE AEROSPACE LIMITED,790395,324094.22
Ministry of Defence,Ministry of Defence,20/05/2011,Property leases,Defence Infrastructure Organisation ,ASPIRE DEFENCE LIMITED,796583,322484.33
Ministry of Defence,Ministry of Defence,09/05/2011,Payment of utilities,Defence Infrastructure Organisation ,TOTAL GAS & POWER LIMITED,791415,322428.96
Ministry of Defence,Ministry of Defence,04/05/2011,Transport hire charges,Land Forces,BABCOCK LAND (WHITEFLEET MANAGEMENT) LIMITED,788823,320930.65
Ministry of Defence,Defence Science and Technology Laboratory,06/05/2011,Sub Contracted Research,Programme Office,ROLLS ROYCE PLC,V - 9000132362 - 00108548,320247
Ministry of Defence,Ministry of Defence,03/05/2011,Fuel for military use,Land Forces,MOBENE GMBH & CO. KG,5000055202,320239.3
Ministry of Defence,Defence Science and Technology Laboratory,20/05/2011,Sub Contracted Research,Programme Office,QINETIQ LIMITED,V - 9000132877 - 00106222,318618
Ministry of Defence,Ministry of Defence,31/05/2011,Purchase of buildings and military equipment ,Defence Infrastructure Organisation ,TURNER FACILITIES MANAGEMENT LTD,801346,313746.92
Ministry of Defence,Ministry of Defence,17/05/2011,Medical treatment & stores and welfare services.,Central TLB,CHAS.A.BLATCHFORD & SONS LIMITED,794671,312843.07
Ministry of Defence,Ministry of Defence,23/05/2011,Estate management,Defence Infrastructure Organisation ,BEZIRKSREGIERUNG DUESSELDORF,5000056518,309539.16
Ministry of Defence,Ministry of Defence,25/05/2011,General services and support,Defence Equipment & Support,WESTLAND HELICOPTERS LTD,2000011723,308925.61
Ministry of Defence,Ministry of Defence,13/05/2011,Purchase of buildings and military equipment ,Defence Equipment & Support,HARRINGTON GENERATORS INTERNATIONAL LTD,793417,304128
Ministry of Defence,Ministry of Defence,31/05/2011,IT and communication services,Central TLB,IBM UNITED KINGDOM LIMITED,801023,302719
Ministry of Defence,Ministry of Defence,26/05/2011,Estate management,Defence Infrastructure Organisation ,QINETIQ LIMITED,799964,300971.6
Ministry of Defence,Ministry of Defence,04/05/2011,Medical treatment & stores and welfare services.,Land Forces,GUY'S & ST THOMAS NHS FOUNDATION TRUST,5000055302,300450.14
Ministry of Defence,Defence Science and Technology Laboratory,06/05/2011,Sub Contracted Research,Programme Office,CRANFIELD AEROSPACE LIMITED,V - 9000132457 - 00107402,300000
Ministry of Defence,Defence Science and Technology Laboratory,27/05/2011,Sub Contracted Research,Programme Office,QINETIQ LIMITED,V - 9000133104 - 00109497,300000
Ministry of Defence,Ministry of Defence,11/05/2011,Externally delivered education and training.,Land Forces,BABCOCK TRAINING LIMITED,159778,297993.53
Ministry of Defence,Ministry of Defence,06/05/2011,Purchase of buildings and military equipment ,Defence Equipment & Support,ANGLOCO LTD,790056,297449.23
Ministry of Defence,Ministry of Defence,11/05/2011,Purchase of buildings and military equipment ,Defence Infrastructure Organisation ,TURNER FACILITIES MANAGEMENT LTD,792541,295735.51
Ministry of Defence,Ministry of Defence,23/05/2011,IT and communication services,Defence Equipment & Support,LSC GROUP LTD,797766,295645.8
Ministry of Defence,Ministry of Defence,17/05/2011,Property leases,Defence Infrastructure Organisation ,BANNOCKBURN HOMES LIMITED,794617,294744.06
Ministry of Defence,Ministry of Defence,20/05/2011,Externally delivered education and training.,Land Forces,DEFLOG VQ TRUST LIMITED,796734,293267.97
Ministry of Defence,Ministry of Defence,10/05/2011,Estate management,Defence Infrastructure Organisation ,BEZIRKSREGIERUNG DUESSELDORF,5000055666,292835.46
Ministry of Defence,Ministry of Defence,04/05/2011,Payment of utilities,Land Forces,TOTAL GAS & POWER LIMITED,789299,292462.97
Ministry of Defence,Defence Science and Technology Laboratory,20/05/2011,Sub Contracted Research,Programme Office,MBDA UK LIMITED,V - 9000132766 - 00106577,292000
Ministry of Defence,Ministry of Defence,13/05/2011,Fees for professional services,Central TLB,TNT UK LIMITED,793703,291834.63
Ministry of Defence,Ministry of Defence,06/05/2011,Payment of utilities,Defence Equipment & Support,TOTAL GAS & POWER LIMITED,790700,288252.02
Ministry of Defence,United Kingdom Hydrographic Office,11/05/2011,Data Storage for e-Navigator service,ICT Delivery Business Group,Kelway Uk Ltd,2000054104,286591.85
Ministry of Defence,Ministry of Defence,26/05/2011,Property leases,Defence Infrastructure Organisation ,ASPIRE DEFENCE LIMITED,799493,285831.94
Ministry of Defence,Ministry of Defence,03/05/2011,Rent and rates,Defence Infrastructure Organisation ,MIDLOTHIAN COUNCIL,788473,285509.7
Ministry of Defence,Ministry of Defence,13/05/2011,Design services and minor equipment purchases,Air Command,T.G. POWER LTD,793676,283539.27
Ministry of Defence,Ministry of Defence,18/05/2011,Fuel for military use,Land Forces,ARVAL UK LTD,795209,283409.91
Ministry of Defence,Ministry of Defence,04/05/2011,Payment of utilities,Land Forces,SVO VERTRIEB GMBH,5000055405,282205.75
Ministry of Defence,Ministry of Defence,31/05/2011,Property leases,Defence Infrastructure Organisation ,ASPIRE DEFENCE LIMITED,800822,281178.66
Ministry of Defence,Ministry of Defence,20/05/2011,Purchase of buildings and military equipment ,Air Command,TURNER FACILITIES MANAGEMENT LTD,797297,280293.12
Ministry of Defence,Defence Science and Technology Laboratory,10/05/2011,Materials & Equipment,Operations,VWR INTERNATIONAL,V - 9000132508 - 00108634,278710.48
Ministry of Defence,Ministry of Defence,09/05/2011,Estate management,Defence Infrastructure Organisation ,SERCO LIMITED,791342,278681.93
Ministry of Defence,Ministry of Defence,12/05/2011,Estate management,Defence Infrastructure Organisation ,TURNER ESTATE SOLUTIONS LIMITED,793137,272758.9
Ministry of Defence,Ministry of Defence,31/05/2011,Payment of utilities,Air Command,TOTAL GAS & POWER LIMITED,801335,270230.51
Ministry of Defence,Ministry of Defence,23/05/2011,Estate management,Defence Infrastructure Organisation ,TURNER FACILITIES MANAGEMENT LTD,798198,269144.85
Ministry of Defence,Ministry of Defence,26/05/2011,Purchase of inventory and services ,Defence Equipment & Support,HESCO BASTION LTD,799738,263412.39
Ministry of Defence,Ministry of Defence,09/05/2011,Estate management,Defence Infrastructure Organisation ,SODEXO LTD,791354,263254.98
Ministry of Defence,Ministry of Defence,10/05/2011,IT and communication services,Defence Equipment & Support,IBM UNITED KINGDOM LIMITED,791732,262145.44
Ministry of Defence,Defence Science and Technology Laboratory,27/05/2011,Materials & Equipment,Operations,SMITH MYERS COMMUNICATIONS LIMITED,V - 9000133065 - 00110246,261000
Ministry of Defence,Defence Science and Technology Laboratory,27/05/2011,Energy & Utility,Infrastructure,WILTSHIRE COUNTY COUNCIL,V - 9000133036 - 00109849,257635
Ministry of Defence,Ministry of Defence,13/05/2011,Medical treatment & stores and welfare services.,Central TLB,UNIVERSITY HOSPITAL BIRMINGHAM NHS FOUNDATION TRUST,793723,255735.49
Ministry of Defence,Ministry of Defence,25/05/2011,Estate management,Defence Infrastructure Organisation ,TURNER FACILITIES MANAGEMENT LTD,799420,254407.81
Ministry of Defence,Ministry of Defence,26/05/2011,Payment of utilities,Defence Equipment & Support,SSE ENERGY SUPPLY LIMITED,800038,254381.5
Ministry of Defence,Ministry of Defence,24/05/2011,Payment of utilities,Defence Infrastructure Organisation ,SSE ENERGY SUPPLY LIMITED,798739,253697.9
Ministry of Defence,Ministry of Defence,18/05/2011,"Purchase of munitions, other inventory or fuel",Defence Equipment & Support,FUCHS LUBRICANTS (UK) PLC,795433,253539.86
Ministry of Defence,Met Office,25/05/2011,International,Government Business,Ecmwf,307762,253363.16
Ministry of Defence,Ministry of Defence,19/05/2011,"Purchase of munitions, other inventory or fuel",Defence Equipment & Support,ENERSYS LTD.,796068,253152
Ministry of Defence,Ministry of Defence,27/05/2011,Property leases,Defence Infrastructure Organisation ,TRICOMM HOUSING (PORTSMOUTH) LIMITED,800725,252552.33
Ministry of Defence,Ministry of Defence,19/05/2011,Estate management,Defence Infrastructure Organisation ,OBERFINANZDIREKTION NIEDERSACHSEN,5000056411,252395.47
Ministry of Defence,Ministry of Defence,24/05/2011,"Purchase of munitions, other inventory or fuel",Defence Equipment & Support,FUCHS LUBRICANTS (UK) PLC,798448,251556.7
Ministry of Defence,Ministry of Defence,31/05/2011,Estate management,Defence Infrastructure Organisation ,CARILLIONENTERPRISE LIMITED,800894,250926.16
Ministry of Defence,Defence Science and Technology Laboratory,13/05/2011,Capital Asset expenditure,Infrastructure,BCD ENGINEERING (UK) LIMITED,V - 9000132642 - 00107725,250000
Ministry of Defence,Defence Science and Technology Laboratory,20/05/2011,Sub Contracted Work,Operations,LGC LIMITED,V - 9000132794 - 00107240,250000
Ministry of Defence,Ministry of Defence,11/05/2011,Purchase of buildings and military equipment ,Defence Infrastructure Organisation ,TRAVIS PERKINS TRADING COMPANY LIMITED,792539,248908.66
Ministry of Defence,Defence Science and Technology Laboratory,20/05/2011,Sub Contracted Research,Programme Office,QINETIQ LIMITED,V - 9000132877 - 00107114,248765
Ministry of Defence,Ministry of Defence,31/05/2011,Purchase of buildings and military equipment ,Defence Infrastructure Organisation ,MODERN HOUSING SOLUTIONS (PRIME)LIMITED,801098,248190.61
Ministry of Defence,Ministry of Defence,04/05/2011,Property leases,Defence Infrastructure Organisation ,TRICOMM HOUSING (PORTSMOUTH) LIMITED,789300,247113.76
Ministry of Defence,Ministry of Defence,20/05/2011,Fees for professional services,Central TLB,SERCO LIMITED,797196,246820.45
Ministry of Defence,Ministry of Defence,26/05/2011,Food and clothing,Defence Equipment & Support,SODEXO LTD,800021,246566.33
Ministry of Defence,Ministry of Defence,26/05/2011,Fees for professional services,Central TLB,LOGICA UK LIMITED,799792,246108.08
Ministry of Defence,Ministry of Defence,03/05/2011,Rent and rates,Defence Infrastructure Organisation ,RUSHMOOR BOROUGH COUNCIL,788648,245347.89
Ministry of Defence,Ministry of Defence,18/05/2011,Rent and rates,Defence Infrastructure Organisation ,RUSHMOOR BOROUGH COUNCIL,795709,245347.89
Ministry of Defence,Ministry of Defence,20/05/2011,Design services and minor equipment purchases,Defence Equipment & Support,QINETIQ LIMITED,797144,244202.8
Ministry of Defence,Ministry of Defence,26/05/2011,Fees for professional services,Defence Equipment & Support,LOGICA UK LIMITED,799792,242938.27
Ministry of Defence,Ministry of Defence,13/05/2011,Payment of utilities,Defence Infrastructure Organisation ,ELECTRICITY AUTHORITY OF CYPRUS,4000005311,242577.14
Ministry of Defence,Ministry of Defence,10/05/2011,Development costs for military equipment,Defence Equipment & Support,MBDA UK LIMITED,791781,241140
Ministry of Defence,Ministry of Defence,04/05/2011,Medical treatment & stores and welfare services.,Air Command,THE SOLDIERS  SAILORS  AIRMEN AND FAMILIES ASS - FORCES HELP,789291,240485.25
Ministry of Defence,Ministry of Defence,18/05/2011,Medical treatment & stores and welfare services.,Central TLB,PORTSMOUTH HOSPITALS N H S TRUST,160005,237500
Ministry of Defence,Ministry of Defence,25/05/2011,Medical treatment & stores and welfare services.,Central TLB,PORTSMOUTH HOSPITALS N H S TRUST,160236,237500
Ministry of Defence,Ministry of Defence,26/05/2011,Estate management,Defence Infrastructure Organisation ,BEZIRKSREGIERUNG DUESSELDORF,5000056778,236544.02
Ministry of Defence,Ministry of Defence,03/05/2011,Rent and rates,Defence Infrastructure Organisation ,RICHMONDSHIRE DISTRICT COUNCIL,788631,236416.14
Ministry of Defence,Ministry of Defence,18/05/2011,Rent and rates,Defence Infrastructure Organisation ,RICHMONDSHIRE DISTRICT COUNCIL,795695,236416.14
Ministry of Defence,Ministry of Defence,10/05/2011,Medical treatment & stores and welfare services.,Central TLB,PETERBOROUGH AND STAMFORD  HOSPITALS NHS FOUNDATION TRUST,791908,235604.59
Ministry of Defence,Ministry of Defence,04/05/2011,IT and communication services,Defence Equipment & Support,HP ENTERPRISE SERVICES DEFENCE & SECURITY UK LIMITED,789001,235341.45
Ministry of Defence,Ministry of Defence,16/05/2011,Purchase of buildings and military equipment ,Defence Equipment & Support,MUSTANG MARINE (WALES) LIMITED,794180,234726.24
Ministry of Defence,Ministry of Defence,19/05/2011,Payment of utilities,Land Forces,NEW ENERGIE GMBH,5000056409,234530.75
Ministry of Defence,Ministry of Defence,18/05/2011,Payment of utilities,Central TLB,SSE ENERGY SUPPLY LIMITED,795763,234129.8
Ministry of Defence,Ministry of Defence,31/05/2011,Purchase of buildings and military equipment ,Defence Infrastructure Organisation ,DEBUT SERVICES LIMITED,800939,233485.66
Ministry of Defence,Ministry of Defence,16/05/2011,Medical treatment & stores and welfare services.,Central TLB,BAE Systems Saudi Arabia Ltd,Cash Office AP02 06,232237.92
Ministry of Defence,Ministry of Defence,20/05/2011,Purchase of inventory and services ,Defence Equipment & Support,BOC LIMITED,796642,230721.95
Ministry of Defence,Ministry of Defence,17/05/2011,Design services and minor equipment purchases,Defence Equipment & Support,DEFENCE SUPPORT GROUP  (DSG),794708,230366.5
Ministry of Defence,Ministry of Defence,17/05/2011,Transport hire charges,Defence Infrastructure Organisation ,BABCOCK LAND (WHITEFLEET MANAGEMENT) LIMITED,794599,230074.55
Ministry of Defence,Ministry of Defence,16/05/2011,Purchase of information and communications technology,Defence Equipment & Support,IBM UNITED KINGDOM LIMITED,794071,227307.37
Ministry of Defence,Ministry of Defence,27/05/2011,Estate management,Land Forces,ASPIRE DEFENCE LIMITED,800168,227203.84
Ministry of Defence,Ministry of Defence,05/05/2011,Design services and minor equipment purchases,Defence Equipment & Support,FLIR SYSTEMS LTD,789562,227139.09
Ministry of Defence,Ministry of Defence,19/05/2011,Purchase of buildings and military equipment ,Defence Infrastructure Organisation ,CENTRAL NETWORKS SERVICES LTD,795997,223788.78
Ministry of Defence,Ministry of Defence,06/05/2011,Fees for professional services,Land Forces,CENTRAL OFFICE OF INFORMATION,790156,223499.96
Ministry of Defence,Ministry of Defence,13/05/2011,Estate management,Air Command,CARILLIONENTERPRISE LIMITED,793286,221748.75
Ministry of Defence,Ministry of Defence,06/05/2011,Interest paid PFIs and finance leases,Defence Infrastructure Organisation ,FALCON SUPPORT SERVICES LIMITED,790253,220003.1
Ministry of Defence,Ministry of Defence,12/05/2011,Purchase of information and communications technology,Defence Equipment & Support,IBM UNITED KINGDOM LIMITED,792826,220000
Ministry of Defence,Ministry of Defence,18/05/2011,Estate management,Defence Infrastructure Organisation ,ARAMARK LTD,795207,219038.51
Ministry of Defence,Ministry of Defence,23/05/2011,Food and clothing,Defence Equipment & Support,PURPLE FOODSERVICE SOLUTIONS LIMITED,798026,218913.18
Ministry of Defence,Ministry of Defence,05/05/2011,Transport hire charges,Land Forces,BABCOCK LAND (WHITEFLEET MANAGEMENT) LIMITED,789383,217331.07
Ministry of Defence,Ministry of Defence,25/05/2011,Food and clothing,Defence Infrastructure Organisation ,ARAMARK LTD,798846,216966.62
Ministry of Defence,Ministry of Defence,12/05/2011,Payment of utilities,Defence Infrastructure Organisation ,STADTWERKE DETMOLD GMBH,5000055925,216814.16
Ministry of Defence,Ministry of Defence,05/05/2011,Purchase of buildings and military equipment ,Defence Equipment & Support,GE AVIATION SYSTEMS LIMITED,789580,216481.2
Ministry of Defence,Defence Science and Technology Laboratory,27/05/2011,Sub Contracted Research,Programme Office,QINETIQ LIMITED,V - 9000133104 - 00106229,214226
Ministry of Defence,Defence Science and Technology Laboratory,13/05/2011,Sub Contracted Research,Programme Office,QINETIQ LIMITED,V - 9000132656 - 00106119,214175
Ministry of Defence,Ministry of Defence,24/05/2011,Design services and minor equipment purchases,Air Command,SERCO LIMITED,798714,212635.86
Ministry of Defence,Ministry of Defence,13/05/2011,Purchase of buildings and military equipment ,Defence Infrastructure Organisation ,CARILLIONENTERPRISE LIMITED,793286,211866.58
Ministry of Defence,Ministry of Defence,27/05/2011,Estate management,Defence Infrastructure Organisation ,BEZIRKSREGIERUNG DUESSELDORF,5000056899,211547.87
Ministry of Defence,Ministry of Defence,10/05/2011,Purchase of buildings and military equipment ,Defence Infrastructure Organisation ,MODERN HOUSING SOLUTIONS (PRIME)LIMITED,791798,211217.02
Ministry of Defence,Council of Reserve Forces and Cadets Associations,05/05/2011,Assets in the Course of Construction,Capital Expenditure,CONLON CONSTRUCTION LTD,1320,209640
Ministry of Defence,Ministry of Defence,19/05/2011,Payment of utilities,Air Command,TOTAL GAS & POWER LIMITED,796467,209082.73
Ministry of Defence,Ministry of Defence,11/05/2011,Design services and minor equipment purchases,Defence Equipment & Support,THALES UK LIMITED,792516,208486.5
Ministry of Defence,Ministry of Defence,16/05/2011,Preparation of land & buildings for disposal,Defence Infrastructure Organisation ,GRONTMIJ LIMITED,794045,207205.17
Ministry of Defence,Ministry of Defence,23/05/2011,Estate management,Defence Infrastructure Organisation ,INTERSERVE (DEFENCE) LTD,5000056543,206883.58
Ministry of Defence,Ministry of Defence,31/05/2011,Payment of utilities,Land Forces,TOTAL GAS & POWER LIMITED,801335,206185.24
Ministry of Defence,Ministry of Defence,11/05/2011,Payment of utilities,Land Forces,WEST ENERGIE UND VERKEHR (1),5000055868,205545.28
Ministry of Defence,Ministry of Defence,06/05/2011,Design services and minor equipment purchases,Defence Equipment & Support,BAE SYSTEMS (OPERATIONS) LIMITED,159619,205528.55
Ministry of Defence,Ministry of Defence,11/05/2011,Design services and minor equipment purchases,Defence Equipment & Support,DEFENCE SCIENCE & TECHNOLOGY LABORATORY,792168,204820.72
Ministry of Defence,Ministry of Defence,05/05/2011,Medical treatment & stores and welfare services.,Defence Equipment & Support,FENTON PHARMACEUTICALS LTD,789556,204000
Ministry of Defence,Defence Science and Technology Laboratory,27/05/2011,Sub Contracted Research,Programme Office,QINETIQ LIMITED,V - 9000133104 - 00109486,204000
Ministry of Defence,Ministry of Defence,27/05/2011,Purchase of buildings and military equipment ,Defence Infrastructure Organisation ,DEBUT SERVICES LIMITED,800292,202666.11
Ministry of Defence,Ministry of Defence,19/05/2011,Purchase of inventory and services ,Defence Equipment & Support,NHS BLOOD AND TRANSPLANT,796250,202362.28
Ministry of Defence,Ministry of Defence,23/05/2011,Purchase of inventory and services ,Defence Equipment & Support,DHS SYSTEMS INT'L LIMITED,797573,201895.2
Ministry of Defence,Ministry of Defence,03/05/2011,Estate management,Defence Infrastructure Organisation ,TURNER FACILITIES MANAGEMENT LTD,788742,201727.57
Ministry of Defence,Ministry of Defence,06/05/2011,Estate management,Defence Infrastructure Organisation ,INTERSERVE (DEFENCE) LTD,790333,200845.39
Ministry of Defence,Ministry of Defence,26/05/2011,Estate management,Defence Infrastructure Organisation ,INTERSERVE (DEFENCE) LTD,799756,200845.39
Ministry of Defence,Ministry of Defence,06/05/2011,Payment of utilities,Air Command,SSE ENERGY SUPPLY LIMITED,790649,200113.18
Ministry of Defence,Defence Science and Technology Laboratory,06/05/2011,Professional Services,Operations,ROKE MANOR RESEARCH LIMITED,V - 9000132365 - 00106582,199665
Ministry of Defence,Ministry of Defence,20/05/2011,Estate management,Air Command,TURNER FACILITIES MANAGEMENT LTD,797297,199155.07
Ministry of Defence,Ministry of Defence,19/05/2011,Estate management,Defence Infrastructure Organisation ,MODERN HOUSING SOLUTIONS (PRIME)LIMITED,796221,198382.58
Ministry of Defence,Defence Science and Technology Laboratory,27/05/2011,Sub Contracted Research,Programme Office,QINETIQ LIMITED,V - 9000133104 - 00108658,198000
Ministry of Defence,Ministry of Defence,20/05/2011,Fees for professional services,Defence Equipment & Support,IBM UNITED KINGDOM LIMITED,796896,197015.2
Ministry of Defence,Ministry of Defence,27/05/2011,Transport hire charges,Land Forces,BABCOCK LAND (WHITEFLEET MANAGEMENT) LIMITED,800183,194074.89
Ministry of Defence,Ministry of Defence,09/05/2011,"Public relations, including marketing and advertising.",Central TLB,THE NEWSPAPER LICENSING AGENCY  LIMITED,791412,193827.16
Ministry of Defence,Ministry of Defence,23/05/2011,Estate management,Defence Infrastructure Organisation ,SODEXO LTD,798105,193791.79
Ministry of Defence,Ministry of Defence,03/05/2011,IT and communication services,Defence Equipment & Support,LOCKHEED MARTIN UK LIMITED,2000011503,191653.41
Ministry of Defence,Ministry of Defence,18/05/2011,Miscellaneous Administration Costs,Central TLB,BAE Systems Saudi Arabia Ltd,Cash Office AP02 08,191150.03
Ministry of Defence,Ministry of Defence,09/05/2011,Estate management,Air Command,VT FLAGSHIP LTD,791452,190417.15
Ministry of Defence,Ministry of Defence,13/05/2011,Medical treatment & stores and welfare services.,Central TLB,ST JOHN & RED CROSS DEFENCE MEDICAL WELFARE SERVICE,793662,190071.08
Ministry of Defence,Ministry of Defence,19/05/2011,Fees for professional services,Central TLB,S.COM GROUP LTD,796369,190000
Ministry of Defence,Met Office,25/05/2011,Services,Technology,Bt Plc,307078,189428.66
Ministry of Defence,Ministry of Defence,19/05/2011,Design services and minor equipment purchases,Defence Infrastructure Organisation ,SCHAL INTERNATIONAL MANAGEMENT LIMITED,796372,189176.47
Ministry of Defence,Ministry of Defence,23/05/2011,Purchase of inventory and services ,Defence Equipment & Support,MEGGITT AEROSPACE LIMITED,160131,187740
Ministry of Defence,Ministry of Defence,25/05/2011,Payment of utilities,Defence Infrastructure Organisation ,STADTWERKE GUETERSLOH GMBH,5000056739,187512.98
Ministry of Defence,Ministry of Defence,23/05/2011,Purchase of plant and machinery,Navy Command,CARL ZEISS NTS LIMITED,797491,187470
Ministry of Defence,Ministry of Defence,03/05/2011,IT and communication services,Defence Equipment & Support,HP ENTERPRISE SERVICES DEFENCE & SECURITY UK LIMITED,788418,187326
Ministry of Defence,Ministry of Defence,25/05/2011,Purchase of inventory and services ,Defence Equipment & Support,HARSCO INFRASTRUCTURE SERVICES LIMITED,799056,186917.12
Ministry of Defence,Ministry of Defence,13/05/2011,Food and clothing,Air Command,AVENANCE PLC,793222,186671.87
Ministry of Defence,Ministry of Defence,13/05/2011,Estate management,Defence Infrastructure Organisation ,AVENANCE PLC,793222,186400.29
Ministry of Defence,Ministry of Defence,26/05/2011,Purchase of inventory and services ,Defence Equipment & Support,CALUMET PHOTOGRAPHIC LTD,799573,185997.9
Ministry of Defence,Ministry of Defence,04/05/2011,Payment of utilities,Land Forces,NVV AG,5000055370,183370.49
Ministry of Defence,Ministry of Defence,23/05/2011,Estate management,Defence Infrastructure Organisation ,SERCO LIMITED,798090,182201.48
Ministry of Defence,Ministry of Defence,10/05/2011,Payment of utilities,Defence Infrastructure Organisation ,TOTAL GAS & POWER LIMITED,792015,181889.48
Ministry of Defence,Ministry of Defence,03/05/2011,Purchase of inventory and services ,Defence Equipment & Support,DHS SYSTEMS INT'L LIMITED,788303,181188
Ministry of Defence,Ministry of Defence,26/05/2011,Design services and minor equipment purchases,Defence Equipment & Support,MBDA UK LIMITED,799808,180912.71
Ministry of Defence,Ministry of Defence,10/05/2011,"Purchase of munitions, other inventory or fuel",Land Forces,ANTEON LIMITED,791507,180910.8
Ministry of Defence,Ministry of Defence,27/05/2011,Purchase of buildings and military equipment ,Defence Infrastructure Organisation ,MODERN HOUSING SOLUTIONS (PRIME)LIMITED,800485,180648.13
Ministry of Defence,Defence Science and Technology Laboratory,27/05/2011,Sub Contracted Research,Programme Office,QINETIQ LIMITED,V - 9000133104 - 00107119,180000
Ministry of Defence,Ministry of Defence,04/05/2011,Payment of utilities,Defence Infrastructure Organisation ,SVO VERTRIEB GMBH,5000055405,179247.8
Ministry of Defence,Ministry of Defence,20/05/2011,Purchase of buildings and military equipment ,Defence Equipment & Support,ASPIRE DEFENCE LIMITED,796583,178696.81
Ministry of Defence,Ministry of Defence,13/05/2011,Property leases,Defence Infrastructure Organisation ,THE RIVERSIDE GROUP LIMITED,793696,178026.59
Ministry of Defence,Ministry of Defence,27/05/2011,Design services and minor equipment purchases,Defence Equipment & Support,KELLOGG BROWN & ROOT LIMITED,800438,176973.28
Ministry of Defence,Ministry of Defence,09/05/2011,IT and communication services,Defence Equipment & Support,ULTRA ELECTRONICS LIMITED,791428,175336.41
Ministry of Defence,Ministry of Defence,06/05/2011,Estate management,Land Forces,HOLDFAST TRAINING SERVICES LTD,790312,175091.54
Ministry of Defence,Ministry of Defence,09/05/2011,Purchase of inventory and services ,Land Forces,CORPORATE DOCUMENT SERVICES  LIMITED,790921,173637.77
Ministry of Defence,Ministry of Defence,17/05/2011,"Purchase of munitions, other inventory or fuel",Defence Equipment & Support,FUCHS LUBRICANTS (UK) PLC,794759,172975.44
Ministry of Defence,Ministry of Defence,05/05/2011,Payment of utilities,Defence Infrastructure Organisation ,TOTAL GAS & POWER LIMITED,789966,170573.8
Ministry of Defence,Ministry of Defence,05/05/2011,Estate management,Defence Infrastructure Organisation ,MODERN HOUSING SOLUTIONS (PRIME)LIMITED,789702,170472.94
Ministry of Defence,Ministry of Defence,04/05/2011,Payment of utilities,Defence Equipment & Support,ESSO PETROLEUM COMPANY LIMITED,788948,170107.43
Ministry of Defence,Ministry of Defence,18/05/2011,Food and clothing,Defence Infrastructure Organisation ,AVENANCE PLC,795218,169867.21
Ministry of Defence,Defence Science and Technology Laboratory,27/05/2011,Sub Contracted Work,Operations,DETICA LIMITED,V - 9000132967 - 00104516,169776
Ministry of Defence,Ministry of Defence,10/05/2011,Estate management,Air Command,SODEXO LTD,791969,169732.72
Ministry of Defence,Ministry of Defence,19/05/2011,Estate management,Defence Infrastructure Organisation ,MODERN HOUSING SOLUTIONS (PRIME)LIMITED,796222,168428.71
Ministry of Defence,Ministry of Defence,31/05/2011,Estate management,Defence Infrastructure Organisation ,QINETIQ LIMITED,801229,168318.47
Ministry of Defence,Ministry of Defence,19/05/2011,Food and clothing,Central TLB,DIMENSIONS CLOTHING LIMITED,796037,167508
Ministry of Defence,Ministry of Defence,25/05/2011,Purchase of buildings and military equipment ,Defence Infrastructure Organisation ,COUNCIL OF RESERVE FORCES' AND CADETS' ASSOCIATIONS,798950,167237
Ministry of Defence,Ministry of Defence,17/05/2011,Medical treatment & stores and welfare services.,Land Forces,GUY'S & ST THOMAS NHS FOUNDATION TRUST,5000056207,166768.84
Ministry of Defence,Ministry of Defence,25/05/2011,Estate management,Defence Infrastructure Organisation ,QINETIQ LIMITED,799307,166379
Ministry of Defence,Ministry of Defence,20/05/2011,Transport hire charges,Land Forces,BABCOCK LAND (WHITEFLEET MANAGEMENT) LIMITED,796604,166141.93
Ministry of Defence,Ministry of Defence,06/05/2011,Payment of utilities,Defence Infrastructure Organisation ,STADTWERKE BIELEFELD GMBH,5000055564,166006.19
Ministry of Defence,Ministry of Defence,24/05/2011,Payment of utilities,Defence Infrastructure Organisation ,STADTWERKE BIELEFELD GMBH,5000056621,165983.19
Ministry of Defence,Ministry of Defence,11/05/2011,Purchase of inventory and services ,Defence Equipment & Support,UNIDRUG DISTRIBUTION GROUP LIMITED,792544,165438
Ministry of Defence,Defence Science and Technology Laboratory,13/05/2011,Communications,Infrastructure,BT - DFTS,V - 9000132551 - 00108209,165435.79
Ministry of Defence,Ministry of Defence,13/05/2011,IT and communication services,Defence Equipment & Support,ULTRA ELECTRONICS LIMITED,793719,165120
Ministry of Defence,Ministry of Defence,06/05/2011,Payment of utilities,Land Forces,TOTAL GAS & POWER LIMITED,790700,164877.99
Ministry of Defence,Ministry of Defence,13/05/2011,Design services and minor equipment purchases,Land Forces,SERCO LIMITED,793643,164324.25
Ministry of Defence,Ministry of Defence,11/05/2011,Transport hire charges,Land Forces,BABCOCK LAND (WHITEFLEET MANAGEMENT) LIMITED,792083,164197.86
Ministry of Defence,Defence Science and Technology Laboratory,20/05/2011,Energy & Utility,Infrastructure,SCOTTISH HYDRO ELECTRIC GAS LIMITED,V - 9000132876 - 00109387,161900.69
Ministry of Defence,Ministry of Defence,11/05/2011,Externally delivered education and training.,Air Command,COMPASS GROUP UK AND IRELAND LIMITED,792152,161050.97
Ministry of Defence,Ministry of Defence,11/05/2011,International contributions,Central TLB,LANGUAGE SPECIALISTS (INTERNATIONAL) LIMITED,792265,160000.12
Ministry of Defence,Ministry of Defence,23/05/2011,IT and communication services,Defence Equipment & Support,IBM UNITED KINGDOM LIMITED,797712,159959.48
Ministry of Defence,Defence Science and Technology Laboratory,20/05/2011,Sub Contracted Work,Programme Office,QINETIQ LIMITED,V - 9000132877 - 00108499,159847
Ministry of Defence,Ministry of Defence,09/05/2011,Purchase of inventory and services ,Defence Equipment & Support,AAH PHARMACEUTICALS LTD,790765,159347.57
Ministry of Defence,Met Office,09/05/2011,Procurement Card,Other,Barclaycard Commercial,307359,159086.68
Ministry of Defence,Ministry of Defence,25/05/2011,"Transportation of personnel, freight and travel expenses",Land Forces,RAIL SETTLEMENT PLAN LIMITED,799312,158802.9
Ministry of Defence,Ministry of Defence,25/05/2011,Purchase of buildings and military equipment ,Defence Equipment & Support,TURNER FACILITIES MANAGEMENT LTD,799420,158400
Ministry of Defence,Defence Science and Technology Laboratory,13/05/2011,Sub Contracted Research,Programme Office,QINETIQ LIMITED,V - 9000132656 - 00105397,158345
Ministry of Defence,Ministry of Defence,31/05/2011,Estate management,Defence Infrastructure Organisation ,VOLKER STEVIN LIMITED,801372,158237
Ministry of Defence,Ministry of Defence,18/05/2011,IT and communication services,Defence Equipment & Support,PROBRAND LIMITED,795673,157308.08
Ministry of Defence,Ministry of Defence,18/05/2011,Purchase of inventory and services ,Defence Equipment & Support,DHS SYSTEMS INT'L LIMITED,795380,157124.4
Ministry of Defence,Ministry of Defence,18/05/2011,Externally delivered education and training.,Central TLB,UNIVERSITY HOSPITAL BIRMINGHAM NHS FOUNDATION TRUST,795824,156638.67
Ministry of Defence,Ministry of Defence,03/05/2011,Purchase of buildings and military equipment ,Command Joint Operations,SECURITY SERVICES GROUP,2.00E+11,156047.1
Ministry of Defence,Ministry of Defence,26/05/2011,Purchase of inventory and services ,Land Forces,CORPORATE DOCUMENT SERVICES  LIMITED,799613,156038.94
Ministry of Defence,Ministry of Defence,19/05/2011,Food and clothing,Land Forces,TECHNOGYM U K LIMITED,796439,155973.25
Ministry of Defence,Ministry of Defence,06/05/2011,Estate management,Navy Command,VT FLAGSHIP LTD,790735,155437.7
Ministry of Defence,Defence Support Group,19/05/2011,Barclaycard Control a/c,Corporate,Barclays Bank ( Visa),10126301,155238.28
Ministry of Defence,Ministry of Defence,19/05/2011,Payment of utilities,Command Joint Operations,ELECTRICITY AUTHORITY OF CYPRUS,4000005328,153497.36
Ministry of Defence,Ministry of Defence,27/05/2011,Payment of utilities,Air Command,SSE ENERGY SUPPLY LIMITED,800677,153083.2
Ministry of Defence,Ministry of Defence,19/05/2011,Rent and rates,Defence Infrastructure Organisation ,VALE OF WHITE HORSE DISTRICT COUNCIL,796499,152789.42
Ministry of Defence,Met Office,20/05/2011,Services,Science,Nerc,307813,152636.48
Ministry of Defence,Defence Science and Technology Laboratory,20/05/2011,Sub Contracted Research,Programme Office,ATLAS ELEKTRONIK UK LIMITED,V - 9000132882 - 00109489,152564.6
Ministry of Defence,Ministry of Defence,10/05/2011,Fees for professional services,Defence Infrastructure Organisation ,RIDER LEVETT BUCKNALL UK LIMITED,791933,150521
Ministry of Defence,Defence Science and Technology Laboratory,06/05/2011,Sub Contracted Research,Programme Office,QINETIQ LIMITED,V - 9000132443 - 00108043,150000
Ministry of Defence,Defence Science and Technology Laboratory,20/05/2011,Sub Contracted Research,Programme Office,MBDA UK LIMITED,V - 9000132766 - 00099873,149915
Ministry of Defence,Met Office,11/05/2011,Equipment Maintenance,Technology,Hewlett Packard Ltd,307510,149675.34
Ministry of Defence,Ministry of Defence,31/05/2011,Purchase of buildings and military equipment ,Air Command,TURNER FACILITIES MANAGEMENT LTD,801346,148886.4
Ministry of Defence,Ministry of Defence,23/05/2011,Estate management,Air Command,CUDDY DEMOLITION & DISMANTLING LTD,797546,148812.64
Ministry of Defence,Ministry of Defence,23/05/2011,Purchase of inventory and services ,Land Forces,CORPORATE DOCUMENT SERVICES  LIMITED,797536,148696.24
Ministry of Defence,Ministry of Defence,05/05/2011,Purchase of buildings and military equipment ,Defence Infrastructure Organisation ,TURNER FACILITIES MANAGEMENT LTD,789974,147413.61
Ministry of Defence,Ministry of Defence,13/05/2011,Estate management,Defence Infrastructure Organisation ,TURNER FACILITIES MANAGEMENT LTD,793712,146207.65
Ministry of Defence,Ministry of Defence,18/05/2011,Nuclear decommissioning and restoration,Defence Equipment & Support,DEVONPORT ROYAL DOCKYARD LIMITED,795377,145330.89
Ministry of Defence,Ministry of Defence,16/05/2011,Transport hire charges,Land Forces,BABCOCK LAND (WHITEFLEET MANAGEMENT) LIMITED,793815,144573.26
Ministry of Defence,Met Office,20/05/2011,Accommodation,Chief Financial Officer,Scottish Hydro-Electric,307745,144032.75
Ministry of Defence,Ministry of Defence,04/05/2011,Payment of utilities,Air Command,SSE ENERGY SUPPLY LIMITED,789262,143340.71
Ministry of Defence,Ministry of Defence,13/05/2011,Payment of utilities,Navy Command,TOTAL GAS & POWER LIMITED,793706,143016.5
Ministry of Defence,Ministry of Defence,27/05/2011,Design services and minor equipment purchases,Defence Equipment & Support,POLAR SHIP INVEST II AS,2000000871,142950
Ministry of Defence,Ministry of Defence,10/05/2011,Food and clothing,Defence Equipment & Support,COMPASS GROUP PLC,791594,142693.21
Ministry of Defence,Ministry of Defence,05/05/2011,Research and development,Central TLB,DEFENCE SCIENCE & TECHNOLOGY LABORATORY,789502,142334.18
Ministry of Defence,Ministry of Defence,27/05/2011,Purchase of buildings and military equipment ,Defence Infrastructure Organisation ,MODERN HOUSING SOLUTIONS (PRIME)LIMITED,800486,141761.2
Ministry of Defence,Ministry of Defence,04/05/2011,"Transportation of personnel, freight and travel expenses",Land Forces,ROYAL BRUNEI AIRLINES SDN BHD,789229,141676.81
Ministry of Defence,Ministry of Defence,13/05/2011,Purchase of inventory and services ,Central TLB,THE ROYAL MINT,793698,141286.44
Ministry of Defence,Ministry of Defence,18/05/2011,Fees for professional services,Central TLB,SERCO LIMITED,795725,141216.41
Ministry of Defence,Ministry of Defence,17/05/2011,Payment of utilities,Defence Equipment & Support,ESSO PETROLEUM COMPANY LIMITED,794744,140439.93
Ministry of Defence,Met Office,27/05/2011,Equipment,Science,Vaisala Oyj,5012,139601.65
Ministry of Defence,Ministry of Defence,20/05/2011,Food and clothing,Defence Infrastructure Organisation ,AVENANCE PLC,796590,138680.12
Ministry of Defence,Ministry of Defence,19/05/2011,Food and clothing,Central TLB,HUNTER APPAREL SOLUTIONS LIMITED,160024,138666.23
Ministry of Defence,Ministry of Defence,05/05/2011,Fees for professional services,Central TLB,DEFENCE SCIENCE & TECHNOLOGY LABORATORY,789502,138652.86
Ministry of Defence,Ministry of Defence,04/05/2011,Food and clothing,Defence Infrastructure Organisation ,AVENANCE PLC,788817,138460.33
Ministry of Defence,Ministry of Defence,16/05/2011,Design services and minor equipment purchases,Defence Equipment & Support,BABCOCK MARINE (ROSYTH) LTD,793818,138392.52
Ministry of Defence,Ministry of Defence,10/05/2011,Estate management,Defence Infrastructure Organisation ,BALFOUR BEATTY GROUP LIMITED,791538,138251.94
Ministry of Defence,Ministry of Defence,09/05/2011,Externally delivered education and training.,Land Forces,RYDER PUBLIC LIMITED COMPANY,791324,138191.52
Ministry of Defence,Ministry of Defence,06/05/2011,IT and communication services,Defence Equipment & Support,FRETWELL-DOWNING HOSPITALITY LTD,790268,137540.77
Ministry of Defence,Ministry of Defence,18/05/2011,Fuel for military use,Air Command,EXXONMOBIL PETROLEUM & CHEMICAL BVBA,2000011649,137490.79
Ministry of Defence,Ministry of Defence,16/05/2011,Rent and rates,Air Command,COMPASS CONTRACT SERVICES (U K)LIMITED,793925,136184
Ministry of Defence,Ministry of Defence,31/05/2011,Purchase of inventory and services ,Defence Equipment & Support,ITALIAN GOVERNMENT,5000056961,135004.35
Ministry of Defence,Ministry of Defence,03/05/2011,Rent and rates,Defence Infrastructure Organisation ,THE MORAY COUNCIL,788722,133361.91
Ministry of Defence,Ministry of Defence,18/05/2011,Rent and rates,Defence Infrastructure Organisation ,THE MORAY COUNCIL,795793,133361.91
Ministry of Defence,Ministry of Defence,03/05/2011,Rent and rates,Defence Infrastructure Organisation ,CITY OF EDINBURGH COUNCIL,788270,132996.63
Ministry of Defence,Ministry of Defence,26/05/2011,Payment of utilities,Air Command,SSE ENERGY SUPPLY LIMITED,800038,132174.99
Ministry of Defence,Ministry of Defence,13/05/2011,Payment of utilities,Defence Equipment & Support,TOTAL GAS & POWER LIMITED,793706,131044.35
Ministry of Defence,Ministry of Defence,11/05/2011,Estate management,Defence Equipment & Support,ARAMARK LTD,792074,130551.37
Ministry of Defence,Ministry of Defence,23/05/2011,Payment of utilities,Defence Equipment & Support,SSE ENERGY SUPPLY LIMITED,798122,130087.48
Ministry of Defence,Ministry of Defence,16/05/2011,Medical treatment & stores and welfare services.,Land Forces,ASCB CHARITABLE FUND,793797,130000
Ministry of Defence,Ministry of Defence,18/05/2011,Payment of utilities,Defence Infrastructure Organisation ,SSE ENERGY SUPPLY LIMITED,795763,129988.9
Ministry of Defence,Ministry of Defence,05/05/2011,Design services and minor equipment purchases,Defence Equipment & Support,FR AVIATION LIMITED,789566,129669.08
Ministry of Defence,Ministry of Defence,10/05/2011,Design services and minor equipment purchases,Defence Equipment & Support,HONEYWELL AEROSPACE UK,791726,129102.24
Ministry of Defence,Ministry of Defence,25/05/2011,Design services and minor equipment purchases,Defence Equipment & Support,QINETIQ LIMITED,799307,128957.63
Ministry of Defence,Ministry of Defence,23/05/2011,Grants in aid,Navy Command,THE NATIONAL MUSEUM OF THE ROYAL NAVY,798170,128919
Ministry of Defence,Ministry of Defence,19/05/2011,Rent and rates,Defence Infrastructure Organisation ,WYCOMBE DISTRICT COUNCIL,796543,128656.66
Ministry of Defence,Defence Support Group,19/05/2011,IT Services,Corporate,INFOR GLOBAL SOLUTIONS LTD,10125511,128190.83
Ministry of Defence,Ministry of Defence,11/05/2011,Design services and minor equipment purchases,Defence Equipment & Support,FR AVIATION LIMITED,792210,127974
Ministry of Defence,Ministry of Defence,24/05/2011,Food and clothing,Defence Equipment & Support,SODEXHO PRESTIGE LIMITED,798722,127958.45
Ministry of Defence,Ministry of Defence,13/05/2011,Estate management,Defence Infrastructure Organisation ,OBERFINANZDIREKTION NIEDERSACHSEN,5000056009,127913.2
Ministry of Defence,Defence Science and Technology Laboratory,13/05/2011,IT Hardware,Infrastructure,STERIA LIMITED,V - 9000132605 - 00108295,127515.36
Ministry of Defence,Ministry of Defence,11/05/2011,Estate management,Air Command,TURNER FACILITIES MANAGEMENT LTD,792541,127458.08
Ministry of Defence,Ministry of Defence,13/05/2011,Design services and minor equipment purchases,Air Command,COMPASS GROUP UK AND IRELAND LIMITED,793316,127307.03
Ministry of Defence,Ministry of Defence,23/05/2011,Payment of utilities,Defence Infrastructure Organisation ,NVV AG,5000056555,126465.77
Ministry of Defence,Ministry of Defence,16/05/2011,Food and clothing,Defence Equipment & Support,PURPLE FOODSERVICE SOLUTIONS LIMITED,794366,125747.32
Ministry of Defence,Ministry of Defence,09/05/2011,Purchase of buildings and military equipment ,Defence Equipment & Support,FENDER CARE NAVAL SOLUTIONS LIMITED,159679,125112
Ministry of Defence,Ministry of Defence,11/05/2011,Estate management,Defence Infrastructure Organisation ,TURNER ESTATE SOLUTIONS LIMITED,792540,125074.38
Ministry of Defence,Ministry of Defence,18/05/2011,Design services and minor equipment purchases,Defence Equipment & Support,MARSHALL SPECIALIST VEHICLES  LIMITED,795553,125000
Ministry of Defence,Ministry of Defence,17/05/2011,IT and communication services,Defence Equipment & Support,L.A. INTERNATIONAL COMPUTER  CONSULTANTS LIMITED,794854,124853
Ministry of Defence,Ministry of Defence,09/05/2011,Fees for professional services,Defence Equipment & Support,ENTEC U K LTD,790981,124587.22
Ministry of Defence,Ministry of Defence,03/05/2011,Rent and rates,Defence Infrastructure Organisation ,PLYMOUTH CITY COUNCIL,788601,124193.84
Ministry of Defence,Ministry of Defence,18/05/2011,Rent and rates,Defence Infrastructure Organisation ,PLYMOUTH CITY COUNCIL,795661,124193.84
Ministry of Defence,Ministry of Defence,19/05/2011,Rent and rates,Defence Infrastructure Organisation ,WEST OXFORDSHIRE DISTRICT  COUNCIL,796522,124100.27
Ministry of Defence,Ministry of Defence,20/05/2011,Design services and minor equipment purchases,Defence Equipment & Support,THALES UK LIMITED,797260,123893.4
Ministry of Defence,Ministry of Defence,24/05/2011,IT and communication services,Defence Equipment & Support,HP ENTERPRISE SERVICES DEFENCE & SECURITY UK LIMITED,798488,122851.89
Ministry of Defence,Ministry of Defence,16/05/2011,Purchase of buildings and military equipment ,Defence Infrastructure Organisation ,DEBUT SERVICES (SOUTH WEST)LIMITED,793943,122182.36
Ministry of Defence,Ministry of Defence,31/05/2011,Purchase of buildings and military equipment ,Defence Equipment & Support,BLAKLEY ELECTRICS LTD,800859,121602.19
Ministry of Defence,Defence Science and Technology Laboratory,20/05/2011,Sub Contracted Research,Programme Office,QINETIQ LIMITED,V - 9000132877 - 00108667,121582
Ministry of Defence,Ministry of Defence,24/05/2011,Food and clothing,Defence Equipment & Support,COMPASS SERVICES (U.K.) LIMITED,798388,121405.53
Ministry of Defence,Ministry of Defence,03/05/2011,Rent and rates,Defence Infrastructure Organisation ,GOSPORT BOROUGH COUNCIL,788387,121160.19
Ministry of Defence,Ministry of Defence,20/05/2011,Rent and rates,Defence Infrastructure Organisation ,GOSPORT BOROUGH COUNCIL,796852,121160.19
Ministry of Defence,Ministry of Defence,18/05/2011,Payment of utilities,Defence Infrastructure Organisation ,WEST ENERGIE UND VERKEHR (1),5000056361,121129.85
Ministry of Defence,Ministry of Defence,13/05/2011,"Public relations, including marketing and advertising.",Navy Command,CENTRAL OFFICE OF INFORMATION,793297,120749.49
Ministry of Defence,Ministry of Defence,31/05/2011,Payment of utilities,Navy Command,TOTAL GAS & POWER LIMITED,801335,120624.28
Ministry of Defence,Ministry of Defence,18/05/2011,Food and clothing,Air Command,ARAMARK LTD,795207,120103.14
Ministry of Defence,Ministry of Defence,17/05/2011,Purchase of buildings and military equipment ,Defence Equipment & Support,POWERFIELD LIMITED,795005,120000
Ministry of Defence,Defence Science and Technology Laboratory,27/05/2011,Sub Contracted Work,Operations,QINETIQ LIMITED,V - 9000133104 - 00109755,120000
Ministry of Defence,Ministry of Defence,20/05/2011,Fees for professional services,Central TLB,DEFENCE SCIENCE & TECHNOLOGY LABORATORY,796731,119300.9
Ministry of Defence,Ministry of Defence,04/05/2011,Medical treatment & stores and welfare services.,Central TLB,SERVICES SOUND & VISION CORPORATION,789247,118542
Ministry of Defence,Ministry of Defence,31/05/2011,Estate management,Defence Infrastructure Organisation ,W T PARKER LTD,801376,117863.1
Ministry of Defence,Ministry of Defence,11/05/2011,Design services and minor equipment purchases,Air Command,SERCO LIMITED,792473,117599.05
Ministry of Defence,Ministry of Defence,11/05/2011,Transport hire charges,Land Forces,RYDER DEUTSCHLAND GMBH,5000055853,117569.69
Ministry of Defence,Ministry of Defence,24/05/2011,Food and clothing,Defence Equipment & Support,PURPLE FOODSERVICE SOLUTIONS LIMITED,798674,117316.68
Ministry of Defence,Ministry of Defence,03/05/2011,Miscellaneous Administration Costs,Defence Infrastructure Organisation ,WILTSHIRE COUNCIL,788772,117260
Ministry of Defence,Ministry of Defence,19/05/2011,Estate management,Land Forces,HAGS PLAY LIMITED,796111,117112.25
Ministry of Defence,Ministry of Defence,09/05/2011,Dilapidation charges� ,Defence Infrastructure Organisation ,ANNINGTON PROPERTY LTD,790790,117000
Ministry of Defence,Ministry of Defence,05/05/2011,Design services and minor equipment purchases,Defence Equipment & Support,ITT DEFENCE LIMITED,789633,116643.66
Ministry of Defence,Ministry of Defence,27/05/2011,Design services and minor equipment purchases,Air Command,BABCOCK SUPPORT SERVICES LIMITED,800188,116434.07
Ministry of Defence,Ministry of Defence,13/05/2011,Food and clothing,Central TLB,SODEXO LTD,793650,116221.92
Ministry of Defence,Ministry of Defence,16/05/2011,Miscellaneous Administration Costs,Central TLB,HOGG ROBINSON (TRAVEL) LIMITED,794063,115371
Ministry of Defence,Defence Science and Technology Laboratory,20/05/2011,Sub Contracted Research,Programme Office,INTELLIGENT TEXTILES LIMITED,V - 9000132867 - 00108187,115000
Ministry of Defence,Ministry of Defence,03/05/2011,Rent and rates,Defence Infrastructure Organisation ,LONDON BOROUGH OF HILLINGDON,788450,114926.65
Ministry of Defence,Ministry of Defence,18/05/2011,Rent and rates,Defence Infrastructure Organisation ,LONDON BOROUGH OF HILLINGDON,795529,114926.65
Ministry of Defence,Ministry of Defence,11/05/2011,Purchase of buildings and military equipment ,Defence Infrastructure Organisation ,TURNER ESTATE SOLUTIONS LIMITED,792540,114836.8
Ministry of Defence,Defence Science and Technology Laboratory,24/05/2011,Materials & Equipment,Operations,VWR INTERNATIONAL,V - 9000132922 - 00109788,114594.15
Ministry of Defence,Ministry of Defence,18/05/2011,Rent and rates,Defence Infrastructure Organisation ,COLCHESTER BOROUGH COUNCIL,795347,114553.45
Ministry of Defence,Ministry of Defence,27/05/2011,Food and clothing,Defence Infrastructure Organisation ,ARAMARK LTD,800162,114391.74
Ministry of Defence,Ministry of Defence,04/05/2011,Miscellaneous Administration Costs,Navy Command,VT FLAGSHIP LTD,789317,114051
Ministry of Defence,Ministry of Defence,04/05/2011,Payment of utilities,Land Forces,SSE ENERGY SUPPLY LIMITED,789262,113155.55
Ministry of Defence,Ministry of Defence,11/05/2011,IT and communication services,Defence Equipment & Support,BEARINGPOINT LIMITED,792098,112413.26
Ministry of Defence,Ministry of Defence,27/05/2011,Estate management,Defence Infrastructure Organisation ,TURNER FACILITIES MANAGEMENT LTD,800733,112296.65
Ministry of Defence,Defence Support Group,19/05/2011,Works - Fees,Business Stream 2,BABCOCK SUPPORT SERVICES LTD,10124121,111462.9
Ministry of Defence,Defence Support Group,19/05/2011,Works - Fees,Business Stream 2,BABCOCK SUPPORT SERVICES LTD,10126229,111462.9
Ministry of Defence,Ministry of Defence,18/05/2011,Payment of utilities,Defence Infrastructure Organisation ,STADTWERKE GUETERSLOH GMBH,5000056347,111315.77
Ministry of Defence,Ministry of Defence,05/05/2011,Food and clothing,Defence Infrastructure Organisation ,ARAMARK LTD,789364,110581.17
Ministry of Defence,Ministry of Defence,25/05/2011,Fuel for military use,Air Command,ARVAL UK LTD,798850,110419.12
Ministry of Defence,Defence Science and Technology Laboratory,27/05/2011,Professional Services,Operations,SELEX GALILEO LIMITED,V - 9000133108 - 00106878,109974
Ministry of Defence,Ministry of Defence,23/05/2011,Purchase of buildings and military equipment ,Defence Infrastructure Organisation ,BEZIRKSREGIERUNG DUESSELDORF,5000056518,109466.69
Ministry of Defence,Ministry of Defence,31/05/2011,Property leases,Defence Infrastructure Organisation ,FALCON SUPPORT SERVICES LIMITED,800981,109310.79
Ministry of Defence,Defence Science and Technology Laboratory,27/05/2011,Sub Contracted Work,Operations,ROKE MANOR RESEARCH LIMITED,V - 9000132984 - 00109661,109300
Ministry of Defence,Ministry of Defence,17/05/2011,Food and clothing,Defence Infrastructure Organisation ,ARAMARK LTD,794582,109021.04
Ministry of Defence,Defence Science and Technology Laboratory,20/05/2011,Materials & Equipment,Operations,VWR INTERNATIONAL,V - 9000132906 - 00109513,108907.2
Ministry of Defence,Defence Science and Technology Laboratory,27/05/2011,IT Hardware,Infrastructure,SERCO LIMITED,V - 9000133106 - 00110166,108455
Ministry of Defence,Ministry of Defence,26/05/2011,Purchase of buildings and military equipment ,Air Command,TURNER FACILITIES MANAGEMENT LTD,800087,108444.95
Ministry of Defence,Ministry of Defence,19/05/2011,Payment of utilities,Navy Command,TOTAL GAS & POWER LIMITED,796467,107537.07
Ministry of Defence,Ministry of Defence,20/05/2011,Rent and rates,Land Forces,Gila Bend America's Choice Hotel,Cash Office AP02 03,107212.22
Ministry of Defence,Ministry of Defence,20/05/2011,Fees for professional services,Central TLB,LOGICA UK LIMITED,796952,107198.44
Ministry of Defence,Ministry of Defence,20/05/2011,IT and communication services,Defence Equipment & Support,IBM UNITED KINGDOM LIMITED,796896,107189.01
Ministry of Defence,Ministry of Defence,09/05/2011,Estate management,Navy Command,VT FLAGSHIP LTD,791452,107023.61
Ministry of Defence,Ministry of Defence,03/05/2011,Fees for professional services,Central TLB,GIFFORD OWEN LTD,788379,106750
Ministry of Defence,Ministry of Defence,25/05/2011,"Purchase of munitions, other inventory or fuel",Defence Equipment & Support,UNIVAR LIMITED,799425,106712.25
Ministry of Defence,Ministry of Defence,25/05/2011,"Transportation of personnel, freight and travel expenses",Central TLB,RAIL SETTLEMENT PLAN LIMITED,799312,106511.2
Ministry of Defence,Ministry of Defence,27/05/2011,Design services and minor equipment purchases,Defence Equipment & Support,STELLA-META  LIMITED,800678,106462.97
Ministry of Defence,Ministry of Defence,10/05/2011,Purchase of buildings and military equipment ,Defence Infrastructure Organisation ,TURNER FACILITIES MANAGEMENT LTD,792019,106240.26
Ministry of Defence,Ministry of Defence,11/05/2011,Estate management,Defence Infrastructure Organisation ,BEZIRKSREGIERUNG DUESSELDORF,5000055781,105862.48
Ministry of Defence,Ministry of Defence,19/05/2011,Estate management,Defence Infrastructure Organisation ,BOVIS LEND LEASE LIMITED,795951,105142
Ministry of Defence,Ministry of Defence,03/05/2011,Fees for professional services,Land Forces,INTUITION PUBLISHING LIMITED,788427,105093
Ministry of Defence,Ministry of Defence,03/05/2011,Rent and rates,Defence Infrastructure Organisation ,SHROPSHIRE COUNCIL,788674,104751.46
Ministry of Defence,Ministry of Defence,18/05/2011,Rent and rates,Defence Infrastructure Organisation ,SHROPSHIRE COUNCIL,795736,104751.46
Ministry of Defence,Ministry of Defence,13/05/2011,Estate management,Central TLB,SODEXO LTD,793650,104153.39
Ministry of Defence,Ministry of Defence,26/05/2011,Food and clothing,Defence Infrastructure Organisation ,ARAMARK LTD,799487,104136.81
Ministry of Defence,Ministry of Defence,24/05/2011,Research and development,Defence Equipment & Support,GKN AEROSPACE SERVICES LIMITED,798460,103608
Ministry of Defence,Defence Science and Technology Laboratory,06/05/2011,Sub Contracted Work,Operations,FLUID GRAVITY ENGINEERING LIMITED,V - 9000132394 - 00106374,103593.76
Ministry of Defence,Defence Science and Technology Laboratory,27/05/2011,Sub Contracted Work,Programme Office,ULTRA ELECTRONICS LIMITED,V - 9000133003 - 00107907,103570.8
Ministry of Defence,Ministry of Defence,06/05/2011,Estate management,Defence Equipment & Support,JACOBS ENGINEERING U.K. LIMITED,790345,103462.06
Ministry of Defence,Ministry of Defence,25/05/2011,Fuel for military use,Air Command,BP INTERNATIONAL LIMITED,2000011710,103147.47
Ministry of Defence,Ministry of Defence,19/05/2011,Fees for professional services,Land Forces,HAYMARKET NETWORK LIMITED,796118,103093
Ministry of Defence,Ministry of Defence,11/05/2011,Design services and minor equipment purchases,Defence Infrastructure Organisation ,TURNER FACILITIES MANAGEMENT LTD,792541,102785.94
Ministry of Defence,Ministry of Defence,19/05/2011,Food and clothing,Defence Infrastructure Organisation ,ARAMARK LTD,795900,102616.19
Ministry of Defence,Ministry of Defence,18/05/2011,Food and clothing,Central TLB,ISS MEDICLEAN LIMITED,795494,102605.93
Ministry of Defence,Ministry of Defence,26/05/2011,Purchase of inventory and services ,Defence Equipment & Support,CORPORATE DOCUMENT SERVICES  LIMITED,799613,102311.46
Ministry of Defence,Ministry of Defence,23/05/2011,"Transportation of personnel, freight and travel expenses",Defence Equipment & Support,ROYAL MAIL GROUP LIMITED,798064,102247.35
Ministry of Defence,Met Office,12/05/2011,Services,Commercial Business,University Of Southern Queensland,306887,102129.91
Ministry of Defence,Ministry of Defence,31/05/2011,Research and development,Defence Equipment & Support,QINETIQ LIMITED,801229,102040.96
Ministry of Defence,Ministry of Defence,18/05/2011,"Purchase of munitions, other inventory or fuel",Defence Equipment & Support,ITW LIMITED,795495,101717.71
Ministry of Defence,Ministry of Defence,13/05/2011,"Transportation of personnel, freight and travel expenses",Land Forces,Logistec Stevedoring Inc ,Cash Office AP02 01,101692.14
Ministry of Defence,Defence Science and Technology Laboratory,20/05/2011,Sub Contracted Work,Programme Office,THALES MISSILE ELECTRONICS LIMITED,V - 9000132775 - 00106743,101650
Ministry of Defence,Ministry of Defence,24/05/2011,Fuel for military use,Air Command,WORLD FUEL SERVICES EUROPE  LTD.,2000011708,101145.12
Ministry of Defence,Ministry of Defence,16/05/2011,Fees for professional services,Air Command,KELLOGG BROWN & ROOT LIMITED,794099,100928.24
Ministry of Defence,Ministry of Defence,06/05/2011,Design services and minor equipment purchases,Defence Equipment & Support,ALC (FMC) LIMITED,790044,100781
Ministry of Defence,Ministry of Defence,16/05/2011,Design services and minor equipment purchases,Defence Equipment & Support,DEFENCE SUPPORT GROUP  (DSG),793948,100239.33
Ministry of Defence,Defence Science and Technology Laboratory,06/05/2011,Sub Contracted Research,Programme Office,ATLAS ELEKTRONIK UK LIMITED,V - 9000132450 - 00108405,100000
Ministry of Defence,Ministry of Defence,20/05/2011,Purchase of information and communications technology,Defence Equipment & Support,IBM UNITED KINGDOM LIMITED,796896,100000
Ministry of Defence,Defence Science and Technology Laboratory,20/05/2011,Sub Contracted Research,Programme Office,QINETIQ LIMITED,V - 9000132877 - 00105441,100000
Ministry of Defence,Ministry of Defence,26/05/2011,Design services and minor equipment purchases,Defence Equipment & Support,POWERFIELD LIMITED,799954,100000
Ministry of Defence,Defence Science and Technology Laboratory,27/05/2011,Professional Services,Operations,QINETIQ LIMITED,V - 9000133104 - 00108914,100000
Ministry of Defence,Defence Science and Technology Laboratory,20/05/2011,Sub Contracted Research,Programme Office,MBDA UK LIMITED,V - 9000132766 - 00105252,99981
Ministry of Defence,Ministry of Defence,03/05/2011,Rent and rates,Defence Infrastructure Organisation ,NORTH KESTEVEN DISTRICT COUNCIL,788564,99952.99
Ministry of Defence,Ministry of Defence,18/05/2011,Rent and rates,Defence Infrastructure Organisation ,NORTH KESTEVEN DISTRICT COUNCIL,795623,99952.99
Ministry of Defence,Ministry of Defence,18/05/2011,Estate management,Defence Infrastructure Organisation ,BEZIRKSREGIERUNG DUESSELDORF,5000056279,99885.61
Ministry of Defence,Ministry of Defence,18/05/2011,Rent and rates,Defence Infrastructure Organisation ,CENTRAL BEDFORDSHIRE COUNCIL,795322,99600.85
Ministry of Defence,Ministry of Defence,18/05/2011,Medical treatment & stores and welfare services.,Land Forces,GUY'S & ST THOMAS NHS FOUNDATION TRUST,5000056305,99249.78
Ministry of Defence,Royal Hospital Chelsea GIA,26/05/2011,Property Management,Royal Hospital Chelsea,Norland Managed Services Ltd,PIN118127,99128.5
Ministry of Defence,Ministry of Defence,04/05/2011,Payment of utilities,Defence Infrastructure Organisation ,GEMEINDEFREIER BEZIRK LOHHEIDE,5000055298,99006.55
Ministry of Defence,Ministry of Defence,03/05/2011,Rent and rates,Defence Infrastructure Organisation ,HAMBLETON DISTRICT COUNCIL,788394,98317.7
Ministry of Defence,Ministry of Defence,20/05/2011,Rent and rates,Defence Infrastructure Organisation ,HAMBLETON DISTRICT COUNCIL,796863,98317.7
Ministry of Defence,Ministry of Defence,04/05/2011,Payment of utilities,Central TLB,TOTAL GAS & POWER LIMITED,789299,98314.18
Ministry of Defence,Defence Science and Technology Laboratory,27/05/2011,Sub Contracted Work,Programme Office,DETICA LIMITED,V - 9000132967 - 00109823,98292.61
Ministry of Defence,Ministry of Defence,24/05/2011,Estate management,Defence Equipment & Support,SODEXO LTD,798723,98010.94
Ministry of Defence,Ministry of Defence,27/05/2011,IT and communication services,Defence Equipment & Support,HP ENTERPRISE SERVICES DEFENCE & SECURITY UK LIMITED,800399,97644.09
Ministry of Defence,Ministry of Defence,27/05/2011,"Transportation of personnel, freight and travel expenses",Air Command,DHL GLOBAL FORWARDING (UK)  LIMITED,800299,97544.05
Ministry of Defence,Ministry of Defence,20/05/2011,Design services and minor equipment purchases,Defence Equipment & Support,LAND ROVER,796941,97481.09
Ministry of Defence,Defence Science and Technology Laboratory,20/05/2011,Sub Contracted Work,Operations,FLUID GRAVITY ENGINEERING LIMITED,V - 9000132811 - 00109361,96910.4
Ministry of Defence,Ministry of Defence,16/05/2011,"Purchase of major spares armaments, medical & general stores",Defence Equipment & Support,ELECTRO SERVICES (MIDLANDS) LTD,793995,96675.98
Ministry of Defence,Council of Reserve Forces and Cadets Associations,13/05/2011,Injections / Projects RDEL and MNW,Estates Management,FLEMING BUILDINGS LTD,747,96610
Ministry of Defence,Ministry of Defence,03/05/2011,Rent and rates,Defence Infrastructure Organisation ,HART DISTRICT COUNCIL,788399,96522.37
Ministry of Defence,Ministry of Defence,20/05/2011,Rent and rates,Defence Infrastructure Organisation ,HART DISTRICT COUNCIL,796868,96522.37
Ministry of Defence,Ministry of Defence,16/05/2011,"Transportation of personnel, freight and travel expenses",Central TLB,HOGG ROBINSON (TRAVEL) LIMITED,794063,96259.15
Ministry of Defence,United Kingdom Hydrographic Office,11/05/2011,Computer maintenance & hire,ICT Delivery Business Group,HP Enterprise Services UK Ltd,2000054099,95440
Ministry of Defence,Ministry of Defence,10/05/2011,Transport hire charges,Land Forces,BABCOCK LAND (WHITEFLEET MANAGEMENT) LIMITED,791525,95359.67
Ministry of Defence,Defence Science and Technology Laboratory,13/05/2011,Sub Contracted Research,Programme Office,QINETIQ LIMITED,V - 9000132656 - 00108926,95000
Ministry of Defence,Ministry of Defence,09/05/2011,Purchase of buildings and military equipment ,Defence Infrastructure Organisation ,TURNER FACILITIES MANAGEMENT LTD,791425,94866.01
Ministry of Defence,Ministry of Defence,20/05/2011,Transport hire charges,Defence Infrastructure Organisation ,RYDER DEUTSCHLAND GMBH,5000056489,94590.9
Ministry of Defence,Defence Science and Technology Laboratory,13/05/2011,Sub Contracted Work,Operations,QINETIQ LIMITED,V - 9000132656 - 00107129,94356.76
Ministry of Defence,Defence Science and Technology Laboratory,06/05/2011,Sub Contracted Work,Operations,QINETIQ LIMITED,V - 9000132443 - 00108048,93748.56
Ministry of Defence,Ministry of Defence,16/05/2011,Estate management,Defence Infrastructure Organisation ,MODERN HOUSING SOLUTIONS (PRIME)LIMITED,794151,93644.61
Ministry of Defence,Ministry of Defence,06/05/2011,"Transportation of personnel, freight and travel expenses",Land Forces,HOEBER-REISEN KG,5000055529,93606.35
Ministry of Defence,Defence Science and Technology Laboratory,27/05/2011,Materials & Equipment,Operations,SMITH MYERS COMMUNICATIONS LIMITED,V - 9000133065 - 00110212,93450
Ministry of Defence,Ministry of Defence,24/05/2011,Estate management,Central TLB,ARAMARK LTD,798290,93449.5
Ministry of Defence,Defence Science and Technology Laboratory,13/05/2011,Repairs & Maintenance,Operations,THERMO FISHER SCIENTIFIC,V - 9000132618 - 00106690,93317.25
Ministry of Defence,Ministry of Defence,04/05/2011,Payment of utilities,Defence Infrastructure Organisation ,SSE ENERGY SUPPLY LIMITED,789262,93182.74
Ministry of Defence,Ministry of Defence,18/05/2011,Transport hire charges,Land Forces,BABCOCK LAND (WHITEFLEET MANAGEMENT) LIMITED,795228,93065.13
Ministry of Defence,Defence Science and Technology Laboratory,20/05/2011,Sub Contracted Research,Programme Office,QINETIQ LIMITED,V - 9000132877 - 00107147,92935
Ministry of Defence,Ministry of Defence,27/05/2011,Purchase of information and communications technology,Defence Equipment & Support,HP ENTERPRISE SERVICES DEFENCE & SECURITY UK LIMITED,800399,92842.6
Ministry of Defence,Ministry of Defence,23/05/2011,IT and communication services,Navy Command,OCEAN ACOUSTIC DEVELOPMENTS   LIMITED,797967,92750
Ministry of Defence,Defence Science and Technology Laboratory,06/05/2011,IT Hardware,Operations,HARRIS CORPORATION,V - 0000000594 - 00108478,92627.32
Ministry of Defence,Ministry of Defence,11/05/2011,Design services and minor equipment purchases,Defence Equipment & Support,QINETIQ LIMITED,792434,92511
Ministry of Defence,Ministry of Defence,04/05/2011,Payment of utilities,Defence Infrastructure Organisation ,GEMEINDEFREIER BEZIRK OSTERHEIDE,5000055299,92501.18
Ministry of Defence,Ministry of Defence,05/05/2011,Design services and minor equipment purchases,Central TLB,DEFENCE SCIENCE & TECHNOLOGY LABORATORY,789502,92382.83
Ministry of Defence,Ministry of Defence,23/05/2011,IT and communication services,Defence Equipment & Support,BRITISH TELECOMMUNICATIONS PUBLIC LIMITED COMPANY,797464,92370
Ministry of Defence,Council of Reserve Forces and Cadets Associations,19/05/2011,Assets in the Course of Construction,Capital Expenditure,ELITE SYSTEMS (GB) LTD,1456,92215.44
Ministry of Defence,Ministry of Defence,12/05/2011,Estate management,Defence Infrastructure Organisation ,BEZIRKSREGIERUNG DUESSELDORF,5000055882,91988.74
Ministry of Defence,Ministry of Defence,09/05/2011,Purchase of buildings and military equipment ,Defence Equipment & Support,JACOBS U.K. LTD,791077,91958
Ministry of Defence,Ministry of Defence,09/05/2011,Fees for professional services,Central TLB,KPMG LLP,791095,91942
Ministry of Defence,Ministry of Defence,16/05/2011,Purchase of inventory and services ,Defence Equipment & Support,DHS SYSTEMS INT'L LIMITED,793957,91888.2
Ministry of Defence,Ministry of Defence,16/05/2011,Design services and minor equipment purchases,Air Command,SERCO LIMITED,794416,91546
Ministry of Defence,Ministry of Defence,12/05/2011,Payment of utilities,Land Forces,TOTAL GAS & POWER LIMITED,793134,91464.52
Ministry of Defence,Ministry of Defence,05/05/2011,Energy conservation and environmental charges.,Central TLB,DEFENCE SCIENCE & TECHNOLOGY LABORATORY,789502,91297.94
Ministry of Defence,Ministry of Defence,27/05/2011,Payment of utilities,Defence Infrastructure Organisation ,SSE ENERGY SUPPLY LIMITED,800677,91274.62
Ministry of Defence,Ministry of Defence,13/05/2011,Design services and minor equipment purchases,Defence Equipment & Support,SOARING (OXFORD) LTD,793649,90823.15
Ministry of Defence,Ministry of Defence,03/05/2011,Rent and rates,Defence Infrastructure Organisation ,SOUTH OXFORDSHIRE DISTRICT  COUNCIL,788687,90822.6
Ministry of Defence,Ministry of Defence,18/05/2011,Rent and rates,Defence Infrastructure Organisation ,SOUTH OXFORDSHIRE DISTRICT  COUNCIL,795754,90822.6
Ministry of Defence,Ministry of Defence,18/05/2011,"Purchase of major spares armaments, medical & general stores",Defence Equipment & Support,ELECTRO SERVICES (MIDLANDS) LTD,795405,90206.8
Ministry of Defence,Ministry of Defence,05/05/2011,Design services and minor equipment purchases,Defence Equipment & Support,SOFTWARE BOX LTD,789907,90000
Ministry of Defence,Ministry of Defence,12/05/2011,Estate management,Land Forces,HOLDFAST TRAINING SERVICES LTD,792816,90000
Ministry of Defence,Defence Science and Technology Laboratory,27/05/2011,Sub Contracted Work,Operations,E2V TECHNOLOGIES (UK) LIMITED,V - 9000132937 - 00106914,90000
Ministry of Defence,Ministry of Defence,13/05/2011,Estate management,Air Command,AVENANCE PLC,793222,89894.69
Ministry of Defence,Ministry of Defence,03/05/2011,Rent and rates,Defence Infrastructure Organisation ,PORTSMOUTH CITY COUNCIL,788603,89681.18
Ministry of Defence,Ministry of Defence,18/05/2011,Rent and rates,Defence Infrastructure Organisation ,PORTSMOUTH CITY COUNCIL,795663,89681.18
Ministry of Defence,Ministry of Defence,11/05/2011,Payment of utilities,Defence Equipment & Support,HENTY OIL LTD,792226,89522.37
Ministry of Defence,Defence Science and Technology Laboratory,13/05/2011,Sub Contracted Work,Programme Office,UNIVERSITY OF MANCHESTER,V - 9000132583 - 00106745,89271
Ministry of Defence,Ministry of Defence,11/05/2011,Externally delivered education and training.,Land Forces,PHOENIX HOLIDAYS LIMITED,792420,88900
Ministry of Defence,Ministry of Defence,16/05/2011,Externally delivered education and training.,Land Forces,PHOENIX HOLIDAYS LIMITED,794343,88900
Ministry of Defence,Ministry of Defence,09/05/2011,Estate management,Air Command,TURNER FACILITIES MANAGEMENT LTD,791425,88878.65
Ministry of Defence,Ministry of Defence,20/05/2011,Payment of utilities,Central TLB,SSE ENERGY SUPPLY LIMITED,797227,88847.35
Ministry of Defence,Ministry of Defence,25/05/2011,Estate management,Defence Infrastructure Organisation ,ARAMARK LTD,798846,88673.65
Ministry of Defence,Ministry of Defence,20/05/2011,Rent and rates,Defence Infrastructure Organisation ,CITY OF EDINBURGH COUNCIL,796689,88571.73
Ministry of Defence,Defence Science and Technology Laboratory,06/05/2011,Materials & Equipment,Operations,METROPOLITAN POLICE SERVICE,V - 9000132440 - 00108531,88515.35
Ministry of Defence,Defence Science and Technology Laboratory,27/05/2011,Sub Contracted Work,Operations,QIOPTIQ LIMITED,V - 9000132979 - 00109251,88414.38
Ministry of Defence,Ministry of Defence,16/05/2011,Fees for professional services,Land Forces,CENTRAL OFFICE OF INFORMATION,793901,88329.59
Ministry of Defence,Defence Science and Technology Laboratory,13/05/2011,Sub Contracted Work,Operations,QINETIQ LIMITED,V - 9000132656 - 00108645,88324.09
Ministry of Defence,Ministry of Defence,06/05/2011,Grants to NDPBs,Central TLB,THE NATIONAL MEMORIAL ARBORETUM COMPANY LIMITED,790686,88205
Ministry of Defence,Ministry of Defence,19/05/2011,Purchase of buildings and military equipment ,Defence Infrastructure Organisation ,MODERN HOUSING SOLUTIONS (PRIME)LIMITED,796221,88111.44
Ministry of Defence,Ministry of Defence,13/05/2011,Research and development,Defence Equipment & Support,QINETIQ LIMITED,793607,87904.02
Ministry of Defence,Ministry of Defence,18/05/2011,IT and communication services,Navy Command,BLUE ARROW,GPC AP02 018,87764.22
Ministry of Defence,Ministry of Defence,19/05/2011,Rent and rates,Defence Infrastructure Organisation ,TEST VALLEY BOROUGH COUNCIL,796441,86819.01
Ministry of Defence,Defence Science and Technology Laboratory,20/05/2011,Sub Contracted Research,Programme Office,SYSTEMS ENGINEERING & ASSESSMENT LIMITED,V - 9000132778 - 00107835,86564
Ministry of Defence,Ministry of Defence,31/05/2011,Purchase of plant and machinery,Defence Equipment & Support,STS DEFENCE LIMITED,160402,86502.6
Ministry of Defence,Defence Science and Technology Laboratory,20/05/2011,Sub Contracted Work,Operations,FLUID GRAVITY ENGINEERING LIMITED,V - 9000132811 - 00109311,86196.87
Ministry of Defence,Ministry of Defence,18/05/2011,Estate management,Land Forces,HOLDFAST TRAINING SERVICES LTD,795465,86098.42
Ministry of Defence,Defence Science and Technology Laboratory,20/05/2011,Sub Contracted Research,Programme Office,QINETIQ LIMITED,V - 9000132877 - 00108665,86000
Ministry of Defence,Defence Science and Technology Laboratory,20/05/2011,Materials & Equipment,Operations,BARCLAYCARD,G - 9000132907 - 00110525,85372.57
Ministry of Defence,Ministry of Defence,03/05/2011,Rent and rates,Defence Infrastructure Organisation ,SOUTH AYRSHIRE COUNCIL,788679,85235.72
Ministry of Defence,Ministry of Defence,18/05/2011,Building maintenance and accommodation stores,Land Forces,IAN MCGURK PROPERTIES,GPC AP02 017,84989
Ministry of Defence,Ministry of Defence,03/05/2011,"Adminstration, claims, compensation and awards",Land Forces,BUNDESANSTALT FUER IMMOBILIENAUGABEN,5000055173,84331.39
Ministry of Defence,Defence Science and Technology Laboratory,13/05/2011,Sub Contracted Research,Programme Office,QINETIQ LIMITED,V - 9000132656 - 00107118,84109
Ministry of Defence,Council of Reserve Forces and Cadets Associations,05/05/2011,Rates/NDR,Infrastructure,POWYS COUNTY COUNCIL,504,83935.96
Ministry of Defence,Ministry of Defence,11/05/2011,"Transportation of personnel, freight and travel expenses",Defence Equipment & Support,ROYAL MAIL GROUP LIMITED,792460,83617.33
Ministry of Defence,Ministry of Defence,26/05/2011,Estate management,Defence Infrastructure Organisation ,TURNER FACILITIES MANAGEMENT LTD,800087,83526.23
Ministry of Defence,United Kingdom Hydrographic Office,09/05/2011,Data Storage for e-Navigator service,ICT Delivery Business Group,Kelway Uk Ltd,2000054051,83409.12
Ministry of Defence,Ministry of Defence,10/05/2011,Payment of utilities,Air Command,TOTAL GAS & POWER LIMITED,792015,83134.76
Ministry of Defence,Ministry of Defence,04/05/2011,IT and communication services,Central TLB,CENTRAL OFFICE OF INFORMATION,788880,83000
Ministry of Defence,Ministry of Defence,10/05/2011,Purchase of inventory and services ,Defence Equipment & Support,UNIDRUG DISTRIBUTION GROUP LIMITED,792023,82719
Ministry of Defence,Ministry of Defence,18/05/2011,IT and communication services,Defence Equipment & Support,ORACLE CORPORATION U K LTD,795641,82379.52
Ministry of Defence,Ministry of Defence,06/05/2011,Purchase of buildings and military equipment ,Defence Equipment & Support,DEVONPORT ROYAL DOCKYARD LIMITED,790202,82082.06
Ministry of Defence,Ministry of Defence,24/05/2011,Estates-Equipment/Works,DIO-SSG,SECURE ACCESS TECHNOLOGY LTD,PMT-AP021112001,81744.45
Ministry of Defence,Ministry of Defence,25/05/2011,Fuel for military use,Defence Equipment & Support,ARVAL UK LTD,798850,81321.45
Ministry of Defence,Ministry of Defence,04/05/2011,Payment of utilities,Defence Infrastructure Organisation ,WILHELM SCHROEDER GMBH,5000055428,81253.89
Ministry of Defence,Ministry of Defence,26/05/2011,Design services and minor equipment purchases,Defence Equipment & Support,SALT SEPARATION SERVICES LIMITED,800005,81133
Ministry of Defence,Ministry of Defence,17/05/2011,Purchase of buildings and military equipment ,Defence Infrastructure Organisation ,CARILLIONENTERPRISE LIMITED,794659,81003.61
Ministry of Defence,Defence Science and Technology Laboratory,06/05/2011,Sub Contracted Research,Programme Office,QINETIQ LIMITED,V - 9000132443 - 00106564,81000
Ministry of Defence,Defence Science and Technology Laboratory,27/05/2011,Sub Contracted Research,Programme Office,QINETIQ LIMITED,V - 9000133104 - 00108671,81000
Ministry of Defence,Ministry of Defence,26/05/2011,Purchase of buildings and military equipment ,Defence Equipment & Support,JACOBS U.K. LTD,799763,80895
Ministry of Defence,Ministry of Defence,27/05/2011,Payment of utilities,Defence Infrastructure Organisation ,TOTAL GAS & POWER LIMITED,800723,80840.15
Ministry of Defence,Ministry of Defence,03/05/2011,Payment of utilities,Defence Equipment & Support,TOTAL GAS & POWER LIMITED,788734,80770.48
Ministry of Defence,Ministry of Defence,18/05/2011,Property leases,Defence Infrastructure Organisation ,ASPIRE DEFENCE LIMITED,795213,80431.43
Ministry of Defence,United Kingdom Hydrographic Office,12/05/2011,Project External Costs,Infrastructure Programme,BAE Systems,2000054118,80295
Ministry of Defence,Ministry of Defence,23/05/2011,Purchase of buildings and military equipment ,Defence Infrastructure Organisation ,TURNER ESTATE SOLUTIONS LIMITED,798197,80242
Ministry of Defence,Ministry of Defence,25/05/2011,Externally delivered education and training.,Land Forces,THE ROYAL ENGINEERS VOCATIONAL EDUCATION AND TRAINING TRUST,799406,80127.6
Ministry of Defence,Ministry of Defence,24/05/2011,Preparation of land & buildings for disposal,Defence Infrastructure Organisation ,GRONTMIJ LIMITED,798468,80000
Ministry of Defence,Ministry of Defence,27/05/2011,Estate management,Defence Infrastructure Organisation ,A T G AIRPORTS LTD,800128,79950
Ministry of Defence,Ministry of Defence,19/05/2011,Payment of utilities,Air Command,SSE ENERGY SUPPLY LIMITED,796414,79880.81
Ministry of Defence,Ministry of Defence,06/05/2011,Rent and rates,Land Forces,JONES LANG LASALLE LIMITED,790350,79817.39
Ministry of Defence,Defence Science and Technology Laboratory,27/05/2011,Energy & Utility,Infrastructure,TOTAL GAS & POWER LIMITED,V - 9000133092 - 00110060,79760.18
Ministry of Defence,Ministry of Defence,18/05/2011,Estate management,Defence Infrastructure Organisation ,AVENANCE PLC,795218,79744.7
Ministry of Defence,Ministry of Defence,24/05/2011,Estate management,Defence Infrastructure Organisation ,TURNER FACILITIES MANAGEMENT LTD,798781,79459.67
Ministry of Defence,Ministry of Defence,04/05/2011,Estate management,Defence Infrastructure Organisation ,LENGELING SERVICE GMBH,5000055345,79419.47
Ministry of Defence,Ministry of Defence,19/05/2011,Purchase of information and communications technology,Defence Equipment & Support,PARITY SOLUTIONS LTD,796314,79205
Ministry of Defence,Met Office,16/05/2011,Services,Government Business,Bbc,307330,79166.67
Ministry of Defence,Ministry of Defence,09/05/2011,Food and clothing,Defence Infrastructure Organisation ,AVENANCE PLC,790806,78627.79
Ministry of Defence,Ministry of Defence,26/05/2011,Fees for professional services,Land Forces,L.A. INTERNATIONAL COMPUTER  CONSULTANTS LIMITED,799776,78534.64
Ministry of Defence,Ministry of Defence,12/05/2011,Payment of utilities,Defence Infrastructure Organisation ,STADTWERKE HAMELN,5000055926,78265.49
Ministry of Defence,Ministry of Defence,05/05/2011,Miscellaneous Administration Costs,Central TLB,HOGG ROBINSON (TRAVEL) LIMITED,789617,78089.56
Ministry of Defence,Ministry of Defence,09/05/2011,Preparation of land & buildings for disposal,Defence Infrastructure Organisation ,GRONTMIJ LIMITED,791035,77959.13
Ministry of Defence,Ministry of Defence,03/05/2011,Rent and rates,Defence Infrastructure Organisation ,HARROGATE BOROUGH COUNCIL,788397,77659.68
Ministry of Defence,Ministry of Defence,20/05/2011,Rent and rates,Defence Infrastructure Organisation ,HARROGATE BOROUGH COUNCIL,796865,77659.68
Ministry of Defence,Ministry of Defence,25/05/2011,Payment of utilities,Land Forces,GB OILS LIMITED,799038,77537.04
Ministry of Defence,Ministry of Defence,11/05/2011,Fees for professional services,Navy Command,HP ENTERPRISE SERVICES DEFENCE & SECURITY UK LIMITED,792237,77228
Ministry of Defence,Ministry of Defence,03/05/2011,Rent and rates,Defence Infrastructure Organisation ,RUTLAND COUNTY COUNCIL  DISTRICT COUNCIL,788649,77169.16
Ministry of Defence,Ministry of Defence,18/05/2011,Rent and rates,Defence Infrastructure Organisation ,RUTLAND COUNTY COUNCIL  DISTRICT COUNCIL,795710,77169.16
Ministry of Defence,Ministry of Defence,20/05/2011,Fees for professional services,Land Forces,L.A. INTERNATIONAL COMPUTER  CONSULTANTS LIMITED,796936,77080.08
Ministry of Defence,Ministry of Defence,12/05/2011,Payment of utilities,Defence Infrastructure Organisation ,STADTWERKE RINTELN GMBH,5000055927,77012.39
Ministry of Defence,Defence Science and Technology Laboratory,27/05/2011,Sub Contracted Work,Operations,ATKINS LIMITED,V - 9000132965 - 00109817,77006.5
Ministry of Defence,Defence Science and Technology Laboratory,20/05/2011,Sub Contracted Research,Programme Office,QINETIQ LIMITED,V - 9000132877 - 00106151,77000
Ministry of Defence,Ministry of Defence,06/05/2011,Design services and minor equipment purchases,Defence Equipment & Support,MUIRHEAD AEROSPACE LIMITED,790441,76933.04
Ministry of Defence,Ministry of Defence,31/05/2011,Estate management,Defence Infrastructure Organisation ,COUNCIL OF RESERVE FORCES' AND CADETS' ASSOCIATIONS,800927,76480.5
Ministry of Defence,Ministry of Defence,17/05/2011,"Transportation of personnel, freight and travel expenses",Land Forces,RAIL SETTLEMENT PLAN LIMITED,795025,76398.35
Ministry of Defence,Ministry of Defence,16/05/2011,General services and support,Defence Equipment & Support,MARSHALL OF CAMBRIDGE AEROSPACE LIMITED,794136,76307.4
Ministry of Defence,Ministry of Defence,11/05/2011,Payment of utilities,Defence Infrastructure Organisation ,ANGLIAN WATER SERVICES LIMITED,792070,76254.62
Ministry of Defence,Defence Science and Technology Laboratory,27/05/2011,Sub Contracted Work,Operations,DETICA LIMITED,V - 9000132967 - 00109822,76184.93
Ministry of Defence,Ministry of Defence,05/05/2011,IT and communication services,Central TLB,DEFENCE SCIENCE & TECHNOLOGY LABORATORY,789502,76122.45
Ministry of Defence,Defence Science and Technology Laboratory,06/05/2011,Materials & Equipment,Operations,VISION RESEARCH LIMITED,V - 9000132429 - 00106425,75790.56
Ministry of Defence,Ministry of Defence,19/05/2011,"Purchase of munitions, other inventory or fuel",Defence Equipment & Support,FUCHS LUBRICANTS (UK) PLC,796088,75651.87
Ministry of Defence,Ministry of Defence,05/05/2011,Payment of utilities,Land Forces,SSE ENERGY SUPPLY LIMITED,789918,75608.85
Ministry of Defence,Ministry of Defence,09/05/2011,Purchase of inventory and services ,Defence Equipment & Support,FENTON PHARMACEUTICALS LTD,790993,75600
Ministry of Defence,Ministry of Defence,23/05/2011,Purchase of inventory and services ,Defence Equipment & Support,FENTON PHARMACEUTICALS LTD,797656,75600
Ministry of Defence,Ministry of Defence,27/05/2011,Fees for professional services,Land Forces,CENTRAL OFFICE OF INFORMATION,800253,75498.7
Ministry of Defence,Ministry of Defence,04/05/2011,Estate management,Air Command,QINETIQ LIMITED,789209,75487.29
Ministry of Defence,Ministry of Defence,24/05/2011,General services and support,Navy Command,LIFE FITNESS (U K) LTD,798523,75325.9
Ministry of Defence,Ministry of Defence,11/05/2011,Fees for professional services,Central TLB,HP ENTERPRISE SERVICES DEFENCE & SECURITY UK LIMITED,792237,75290
Ministry of Defence,Ministry of Defence,27/05/2011,IT and communication services,Defence Equipment & Support,LOCKHEED MARTIN UK LIMITED,2000011738,75259.15
Ministry of Defence,Ministry of Defence,23/05/2011,Estate management,Defence Infrastructure Organisation ,GEM MBH,5000056533,75221.24
Ministry of Defence,Ministry of Defence,17/05/2011,Food and clothing,Defence Equipment & Support,COMPASS GROUP PLC,794690,75115.87
Ministry of Defence,Met Office,06/05/2011,Software Licences,Technology,Insight Direct (Uk) Ltd,307329,75009
Ministry of Defence,Defence Science and Technology Laboratory,13/05/2011,Sub Contracted Work,Operations,QINETIQ LIMITED,V - 9000132656 - 00106561,75000
Ministry of Defence,Ministry of Defence,19/05/2011,Rent and rates,Defence Infrastructure Organisation ,SURREY HEATH BOROUGH COUNCIL,796424,74867.36
Ministry of Defence,Ministry of Defence,31/05/2011,Estate management,Defence Equipment & Support,TURNER ESTATE SOLUTIONS LIMITED,801344,74821
Ministry of Defence,Defence Science and Technology Laboratory,13/05/2011,Sub Contracted Research,Programme Office,BAE SYSTEMS (OPERATIONS) LIMITED,V - 9000132533 - 00106416,74608.99
Ministry of Defence,Ministry of Defence,10/05/2011,Purchase of buildings and military equipment ,Defence Infrastructure Organisation ,CARILLIONENTERPRISE LIMITED,791572,74450.25
Ministry of Defence,Ministry of Defence,13/05/2011,Rent and rates,Defence Infrastructure Organisation ,NORTHUMBERLAND COUNTY COUNCIL,793560,74349.22
Ministry of Defence,Met Office,16/05/2011,Accommodation,Chief Financial Officer,Stratus Integrated Services Ltd,307533,74335.23
Ministry of Defence,Defence Science and Technology Laboratory,27/05/2011,Sub Contracted Work,Operations,DETICA LIMITED,V - 9000132967 - 00109821,74221.69
Ministry of Defence,Ministry of Defence,13/05/2011,"Transportation of personnel, freight and travel expenses",Defence Equipment & Support,PALLETWAYS (U K) LTD,793583,74213.17
Ministry of Defence,Ministry of Defence,03/05/2011,Rent and rates,Defence Infrastructure Organisation ,FIFE COUNCIL,788357,74159.48
Ministry of Defence,Ministry of Defence,20/05/2011,Rent and rates,Defence Infrastructure Organisation ,FIFE COUNCIL,796817,74159.48
Ministry of Defence,Met Office,20/05/2011,Services,Science,Imperial College,306914,74100
Ministry of Defence,Ministry of Defence,06/05/2011,Rent and rates,Defence Infrastructure Organisation ,RICHMONDSHIRE DISTRICT COUNCIL,790579,74098.01
Ministry of Defence,Defence Science and Technology Laboratory,20/05/2011,Sub Contracted Research,Programme Office,QINETIQ LIMITED,V - 9000132877 - 00106539,73709
Ministry of Defence,Ministry of Defence,11/05/2011,Externally delivered education and training.,Land Forces,THE BRITISH SCHOOL OF MOTORING LIMITED,159814,73603.03
Ministry of Defence,Ministry of Defence,01/05/2011,Medical treatment & stores and welfare services.,Central TLB,BAE Systems Saudi Arabia Ltd,Cash Office AP02 07,73405.83
Ministry of Defence,Ministry of Defence,27/05/2011,Transport hire charges,Defence Equipment & Support,BABCOCK LAND (WHITEFLEET MANAGEMENT) LIMITED,800183,73337.67
Ministry of Defence,Ministry of Defence,24/05/2011,Design services and minor equipment purchases,Defence Equipment & Support,A&P GROUP LIMITED,798264,73319.5
Ministry of Defence,Defence Science and Technology Laboratory,13/05/2011,Sub Contracted Research,Programme Office,BAE SYSTEMS (OPERATIONS) LIMITED,V - 9000132533 - 00106612,72600.53
Ministry of Defence,Ministry of Defence,18/05/2011,IT and communication services,Navy Command,BLUE ARROW,GPC AP02 016,72489.97
Ministry of Defence,Ministry of Defence,16/05/2011,Medical treatment & stores and welfare services.,Central TLB,QUEEN ELIZABETHS FOUNDATION FOR DISABLED PEOPLE,794371,72315.95
Ministry of Defence,Ministry of Defence,31/05/2011,Payment of utilities,Defence Equipment & Support,TOTAL GAS & POWER LIMITED,801335,72298.75
Ministry of Defence,Ministry of Defence,18/05/2011,Payment of utilities,Land Forces,STADTWERKE MUNSTER GMBH,5000056349,72243.19
Ministry of Defence,Ministry of Defence,04/05/2011,Estate management,Defence Infrastructure Organisation ,TURNER FACILITIES MANAGEMENT LTD,789302,72137.04
Ministry of Defence,Ministry of Defence,11/05/2011,Transport hire charges,Defence Equipment & Support,BABCOCK LAND (WHITEFLEET MANAGEMENT) LIMITED,792083,71766.15
Ministry of Defence,Ministry of Defence,18/05/2011,Fees for professional services,Land Forces,L.A. INTERNATIONAL COMPUTER  CONSULTANTS LIMITED,795514,71760
Ministry of Defence,Ministry of Defence,26/05/2011,Estate management,Air Command,VT FLAGSHIP LTD,800108,71634.98
Ministry of Defence,Ministry of Defence,17/05/2011,"Purchase of munitions, other inventory or fuel",Defence Equipment & Support,ITW LIMITED,794834,71397.86
Ministry of Defence,Ministry of Defence,04/05/2011,Food and clothing,Defence Infrastructure Organisation ,SODEXO LTD,789254,71156.37
Ministry of Defence,Defence Support Group,19/05/2011,Works - Fees,Land Supply,BABCOCK SUPPORT SERVICES LTD,10126230,71125.59
Ministry of Defence,Ministry of Defence,11/05/2011,Fees for professional services,Air Command,HP ENTERPRISE SERVICES DEFENCE & SECURITY UK LIMITED,792237,71058
Ministry of Defence,Ministry of Defence,31/05/2011,Purchase of inventory and services ,Land Forces,AAH PHARMACEUTICALS LTD,800786,70957.29
Ministry of Defence,Ministry of Defence,26/05/2011,Medical treatment & stores and welfare services.,Land Forces,SSAFA FAMILY HEALTH SERVICES,800036,70700
Ministry of Defence,Ministry of Defence,26/05/2011,Estate management,Defence Infrastructure Organisation ,ARAMARK LTD,799487,70645.4
Ministry of Defence,Ministry of Defence,09/05/2011,Food and clothing,Land Forces,BRISTOL MANAGED SERVICES LTD,790850,70560.2
Ministry of Defence,Ministry of Defence,09/05/2011,Estate management,Defence Infrastructure Organisation ,ARAMARK LTD,790796,70474.1
Ministry of Defence,Ministry of Defence,05/05/2011,Payment of utilities,Central TLB,GB OILS LIMITED,789576,70397.4
Ministry of Defence,Ministry of Defence,05/05/2011,Purchase of inventory and services ,Defence Equipment & Support,FENTON PHARMACEUTICALS LTD,789556,70261.44
Ministry of Defence,Ministry of Defence,17/05/2011,Design services and minor equipment purchases,Defence Equipment & Support,CATERPILLAR REMANUFACTURING LIMITED,794664,70124
Ministry of Defence,Ministry of Defence,11/05/2011,Fees for professional services,Central TLB,DEFENCE SCIENCE & TECHNOLOGY LABORATORY,792168,70118
Ministry of Defence,Ministry of Defence,18/05/2011,Design services and minor equipment purchases,Air Command,COMPASS GROUP UK AND IRELAND LIMITED,795350,70068.14
Ministry of Defence,Ministry of Defence,24/05/2011,Design services and minor equipment purchases,Defence Equipment & Support,IBM UNITED KINGDOM LIMITED,798491,70000
Ministry of Defence,Ministry of Defence,18/05/2011,Food and clothing,Defence Infrastructure Organisation ,ISS MEDICLEAN LIMITED,795494,69986.37
Ministry of Defence,Defence Science and Technology Laboratory,27/05/2011,Materials & Equipment,Operations,APPLIED PHYSICAL ELECTRONICS LC,S - 0000000608 - 00110420,69836.74
Ministry of Defence,Defence Science and Technology Laboratory,20/05/2011,Sub Contracted Research,Programme Office,QINETIQ LIMITED,V - 9000132877 - 00107094,69788.8
Ministry of Defence,Ministry of Defence,27/05/2011,Estate management,Defence Infrastructure Organisation ,ASPIRE DEFENCE LIMITED,800168,69389.59
Ministry of Defence,Ministry of Defence,31/05/2011,Payment of utilities,Air Command,SSE ENERGY SUPPLY LIMITED,801294,69312.41
Ministry of Defence,Ministry of Defence,24/05/2011,Medical treatment & stores and welfare services.,Land Forces,GUY'S & ST THOMAS NHS FOUNDATION TRUST,5000056607,68927.08
Ministry of Defence,Ministry of Defence,09/05/2011,Payment of utilities,Defence Infrastructure Organisation ,ELECTRICITY AUTHORITY OF CYPRUS,4000005298,68657.15
Ministry of Defence,Ministry of Defence,06/05/2011,"Purchase of munitions, other inventory or fuel",Defence Equipment & Support,WINCANTON GROUP LIMITED,790748,68398.84
Ministry of Defence,Ministry of Defence,09/05/2011,Externally delivered education and training.,Land Forces,WBL SERVICES LIMITED,791456,68265.65
Ministry of Defence,Defence Science and Technology Laboratory,06/05/2011,Sub Contracted Work,Operations,MILLBROOK PROVING GROUND LIMITED,V - 9000132422 - 00106678,68265
Ministry of Defence,Ministry of Defence,18/05/2011,Transport hire charges,Defence Equipment & Support,DAWSONRENTALS TRUCK & TRAILER LTD,795366,68197.8
Ministry of Defence,Defence Science and Technology Laboratory,13/05/2011,Sub Contracted Research,Programme Office,QINETIQ LIMITED,V - 9000132656 - 00102794,68166.96
Ministry of Defence,Ministry of Defence,09/05/2011,Payment of utilities,Land Forces,MABANAFT DEUTSCHLAND GMBH,5000055629,68089.6
Ministry of Defence,Defence Science and Technology Laboratory,06/05/2011,Materials & Equipment,Operations,TRUCKEAST LIMITED,V - 9000132466 - 00108256,68049
Ministry of Defence,Defence Science and Technology Laboratory,20/05/2011,Sub Contracted Research,Programme Office,QINETIQ LIMITED,V - 9000132877 - 00107668,68016.34
Ministry of Defence,Defence Science and Technology Laboratory,20/05/2011,Sub Contracted Research,Programme Office,IMPERIAL COLLEGE LONDON,V - 9000132842 - 00107287,67808
Ministry of Defence,Ministry of Defence,23/05/2011,Purchase of inventory and services ,Defence Equipment & Support,AAH PHARMACEUTICALS LTD,797348,67792.59
Ministry of Defence,Defence Science and Technology Laboratory,20/05/2011,Sub Contracted Research,Programme Office,HEALTH & SAFETY LABORATORY,V - 9000132798 - 00105718,67710
Ministry of Defence,Defence Science and Technology Laboratory,06/05/2011,Other Services & Office costs,Corporate,ALTA INNOVATIONS LIMITED,V - 9000132334 - 00108105,67557
Ministry of Defence,Ministry of Defence,03/05/2011,Design services and minor equipment purchases,Defence Equipment & Support,HAMWORTHY WATER SYSTEMS LIMITED,788395,67392
Ministry of Defence,Ministry of Defence,06/05/2011,Estate management,Defence Infrastructure Organisation ,LENGELING SERVICE GMBH,5000055536,67344.52
Ministry of Defence,Ministry of Defence,13/05/2011,Rent and rates,Defence Infrastructure Organisation ,BRAINTREE DISTRICT COUNCIL,793256,66963.4
Ministry of Defence,Defence Science and Technology Laboratory,13/05/2011,Professional Services,Operations,QINETIQ LIMITED,V - 9000132656 - 00108629,66867.05
Ministry of Defence,Ministry of Defence,11/05/2011,Fees for professional services,Defence Infrastructure Organisation ,BUILDING COST INFORMATION SERVICE LIMITED,792118,66844.75
Ministry of Defence,Ministry of Defence,11/05/2011,Design services and minor equipment purchases,Defence Equipment & Support,BAE SYSTEMS (OPERATIONS) LIMITED,159780,66825.13
Ministry of Defence,Defence Science and Technology Laboratory,06/05/2011,Consumable Materials,Operations,ANALYTIK LIMITED,V - 9000132432 - 00106148,66760
Ministry of Defence,Ministry of Defence,20/05/2011,Payment of utilities,Defence Infrastructure Organisation ,DEPARTMENT FOR REGIONAL DEVELOPMENT,32410,66696.73
Ministry of Defence,Ministry of Defence,18/05/2011,Design services and minor equipment purchases,Defence Equipment & Support,SELEX GALILEO LTD,795723,66566.7
Ministry of Defence,Defence Science and Technology Laboratory,13/05/2011,Sub Contracted Work,Programme Office,NORTHROP GRUMMAN MISSION SYSTEMS EUROPE,V - 9000132528 - 00105601,66500
Ministry of Defence,Ministry of Defence,13/05/2011,Purchase of plant and machinery,Defence Equipment & Support,MARINE & INDUSTRIAL TRANSMISSIONS LTD,793497,66414.96
Ministry of Defence,Ministry of Defence,16/05/2011,Estate management,Air Command,COMPASS SERVICES (U.K.) LIMITED,793927,66249.78
Ministry of Defence,Ministry of Defence,03/05/2011,Rent and rates,Defence Infrastructure Organisation ,NORTH DORSET DISTRICT COUNCIL,788563,66235.76
Ministry of Defence,Ministry of Defence,18/05/2011,Rent and rates,Defence Infrastructure Organisation ,NORTH DORSET DISTRICT COUNCIL,795622,66235.76
Ministry of Defence,Ministry of Defence,05/05/2011,Fuel for military use,Air Command,EXXONMOBIL PETROLEUM & CHEMICAL BVBA,2000011522,66198.82
Ministry of Defence,Ministry of Defence,03/05/2011,Estate management,Defence Infrastructure Organisation ,SODEXO LTD,788675,66173.47
Ministry of Defence,Ministry of Defence,20/05/2011,"Purchase of munitions, other inventory or fuel",Defence Equipment & Support,ROLLS-ROYCE POWER ENGINEERING PLC,797170,66023.86
Ministry of Defence,Ministry of Defence,19/05/2011,Payment of utilities,Defence Infrastructure Organisation ,STADTWERKE BIELEFELD GMBH,5000056425,66013.92
Ministry of Defence,Defence Support Group,12/05/2011,Works - Fees,Land Supply,BABCOCK SUPPORT SERVICES LTD,10125144,65975.76
Ministry of Defence,Ministry of Defence,10/05/2011,"Transportation of personnel, freight and travel expenses",Air Command,EUROCONTROL,5000055685,65786.21
Ministry of Defence,Ministry of Defence,26/05/2011,Food and clothing,Defence Equipment & Support,SERCO LIMITED,800013,65785.52
Ministry of Defence,Ministry of Defence,03/05/2011,Rent and rates,Defence Infrastructure Organisation ,BOROUGH COUNCIL OF KINGS LYNN & WEST NORFOLK,788220,65651.16
Ministry of Defence,Ministry of Defence,18/05/2011,Rent and rates,Defence Infrastructure Organisation ,BOROUGH COUNCIL OF KINGS LYNN & WEST NORFOLK,795266,65651.16
Ministry of Defence,Ministry of Defence,19/05/2011,Purchase of inventory and services ,Central TLB,CAMBRIDGE INFORMATION LTD,795980,65617.37
Ministry of Defence,Ministry of Defence,04/05/2011,Purchase of inventory and services ,Defence Equipment & Support,HAEMONETICS LIMITED,788981,65564.89
Ministry of Defence,Ministry of Defence,06/05/2011,Food and clothing,Defence Infrastructure Organisation ,AVENANCE PLC,790071,65444.39
Ministry of Defence,Ministry of Defence,03/05/2011,Rent and rates,Defence Infrastructure Organisation ,GUILDFORD BOROUGH COUNCIL,788391,65273.23
Ministry of Defence,Ministry of Defence,20/05/2011,Rent and rates,Defence Infrastructure Organisation ,GUILDFORD BOROUGH COUNCIL,796857,65273.23
Ministry of Defence,Defence Science and Technology Laboratory,13/05/2011,Sub Contracted Work,Operations,C SOFTWARE LIMITED,V - 9000132586 - 00106085,65040
Ministry of Defence,Defence Science and Technology Laboratory,13/05/2011,Sub Contracted Work,Operations,C SOFTWARE LIMITED,V - 9000132586 - 00106089,65040
Ministry of Defence,Ministry of Defence,17/05/2011,Fees for professional services,Land Forces,L.A. INTERNATIONAL COMPUTER  CONSULTANTS LIMITED,794854,64868
Ministry of Defence,Ministry of Defence,12/05/2011,Externally delivered education and training.,Land Forces,NORD ANGLIA VOCATIONAL EDUCATION AND TRAINING SERVICES LIMITED,159846,64752.48
Ministry of Defence,Ministry of Defence,12/05/2011,Food and clothing,Defence Infrastructure Organisation ,ARAMARK LTD,792606,64693.52
Ministry of Defence,Ministry of Defence,03/05/2011,Rent and rates,Defence Infrastructure Organisation ,CORNWALL COUNCIL,788280,64578.39
Ministry of Defence,Ministry of Defence,20/05/2011,Rent and rates,Defence Infrastructure Organisation ,CORNWALL COUNCIL,796709,64578.39
Ministry of Defence,Ministry of Defence,23/05/2011,Purchase of inventory and services ,Land Forces,AAH PHARMACEUTICALS LTD,797348,64340.24
Ministry of Defence,Ministry of Defence,16/05/2011,Purchase of inventory and services ,Land Forces,AAH PHARMACEUTICALS LTD,793755,64222.29
Ministry of Defence,Defence Science and Technology Laboratory,20/05/2011,Sub Contracted Research,Programme Office,QINETIQ LIMITED,V - 9000132877 - 00107086,64001
Ministry of Defence,Defence Science and Technology Laboratory,20/05/2011,Sub Contracted Research,Programme Office,QINETIQ LIMITED,V - 9000132877 - 00107087,64001
Ministry of Defence,Ministry of Defence,25/05/2011,Development costs for military equipment,Defence Equipment & Support,BAE SYSTEMS INTEGRATED SYSTEM TECHNOLOGIES LIMITED,798882,63980.4
Ministry of Defence,Ministry of Defence,18/05/2011,Rent and rates,Defence Infrastructure Organisation ,AYLESBURY VALE DISTRICT COUNCIL,795223,63905.22
Ministry of Defence,Ministry of Defence,11/05/2011,Fees for professional services,Land Forces,GVA GRIMLEY LIMITED,792218,63720
Ministry of Defence,Defence Science and Technology Laboratory,20/05/2011,Energy & Utility,Infrastructure,SCOTTISH HYDRO ELECTRIC GAS LIMITED,V - 9000132876 - 00109384,63537.57
Ministry of Defence,Defence Science and Technology Laboratory,10/05/2011,Consumable Materials,Operations,VWR INTERNATIONAL,V - 9000132508 - 00108611,63457.77
Ministry of Defence,Defence Science and Technology Laboratory,24/05/2011,Consumable Materials,Operations,VWR INTERNATIONAL,V - 9000132922 - 00109787,63457.77
Ministry of Defence,Ministry of Defence,23/05/2011,Transport hire charges,Land Forces,BABCOCK LAND (WHITEFLEET MANAGEMENT) LIMITED,797404,63377.72
Ministry of Defence,Defence Science and Technology Laboratory,13/05/2011,Materials & Equipment,Operations,EVERGREEN TRADE INC,V - 0000000600 - 00103132,63192.77
Ministry of Defence,Ministry of Defence,20/05/2011,Estate management,Defence Infrastructure Organisation ,SODEXO LTD,797210,63179.66
Ministry of Defence,Ministry of Defence,25/05/2011,"Transportation of personnel, freight and travel expenses",Air Command,EUROCONTROL,5000056661,63163.21
Ministry of Defence,Ministry of Defence,10/05/2011,Purchase of inventory and services ,Central TLB,DEFENCE MANAGEMENT (WATCHFIELD) LIMITED,791609,62922.97
Ministry of Defence,Ministry of Defence,13/05/2011,International contributions,Central TLB,FOREIGN & COMMONWEALTH OFFICE,2.00E+11,62639.25
Ministry of Defence,Ministry of Defence,20/05/2011,Estate management,Defence Infrastructure Organisation ,MODERN HOUSING SOLUTIONS (PRIME)LIMITED,796984,62619.22
Ministry of Defence,Ministry of Defence,04/05/2011,Payment of utilities,Defence Infrastructure Organisation ,SWB SERVICES GMBH & CO KG,5000055406,62363.58
Ministry of Defence,Defence Science and Technology Laboratory,20/05/2011,Sub Contracted Work,Operations,ROKE MANOR RESEARCH LIMITED,V - 9000132783 - 00106670,62300
Ministry of Defence,Defence Science and Technology Laboratory,27/05/2011,Materials & Equipment,Operations,SELEX SENSORS & AIRBORNE SYSTEMS LIMITED,V - 9000132981 - 00108758,62249
Ministry of Defence,Ministry of Defence,16/05/2011,Food and clothing,Defence Infrastructure Organisation ,ARAMARK LTD,793793,62168.35
Ministry of Defence,Ministry of Defence,20/05/2011,Design services and minor equipment purchases,Defence Equipment & Support,YOUNGMAN GROUP LTD,797341,62163
Ministry of Defence,Ministry of Defence,25/05/2011,Fuel for military use,Central TLB,ARVAL UK LTD,798850,62136.66
Ministry of Defence,Ministry of Defence,20/05/2011,Research and development,Defence Equipment & Support,ROLLS-ROYCE MARINE ELECTRICAL SYSTEMS LIMITED,797167,62065
Ministry of Defence,Ministry of Defence,31/05/2011,IT and communication services,Central TLB,LOGICA UK LIMITED,801063,61974.26
Ministry of Defence,Ministry of Defence,16/05/2011,Transport hire charges,Land Forces,BUSVERKEHR OSTWESTFALEN GMBH,5000056059,61783.17
Ministry of Defence,Defence Science and Technology Laboratory,20/05/2011,Sub Contracted Work,Programme Office,BAE SYSTEMS (OPERATIONS) LIMITED,V - 9000132760 - 00107840,61757.61
Ministry of Defence,Defence Science and Technology Laboratory,06/05/2011,Sub Contracted Research,Operations,UNIVERSITY OF BATH,V - 9000132372 - 00106737,61704
Ministry of Defence,Ministry of Defence,05/05/2011,Estate management,Air Command,TURNER FACILITIES MANAGEMENT LTD,789974,61555.7
Ministry of Defence,Council of Reserve Forces and Cadets Associations,13/05/2011,Assets in the Course of Construction,Capital Expenditure,Elite System ,1477,61386.25
Ministry of Defence,Council of Reserve Forces and Cadets Associations,13/05/2011,Assets in the Course of Construction,Capital Expenditure,Elite System ,1478,61386.25
Ministry of Defence,Defence Science and Technology Laboratory,13/05/2011,Sub Contracted Research,Programme Office,QINETIQ LIMITED,V - 9000132656 - 00105420,61300.7
Ministry of Defence,Ministry of Defence,12/05/2011,Estate management,Central TLB,EUROPA FACILITIES MANAGEMENT LTD,792762,61207.52
Ministry of Defence,Ministry of Defence,03/05/2011,"Transportation of personnel, freight and travel expenses",Land Forces,RAIL SETTLEMENT PLAN LIMITED,788622,61096.7
Ministry of Defence,Royal Hospital Chelsea GIA,11/05/2011,Contracted Out Security,Royal Hospital Chelsea,Wilson James Ltd,PIN118056,60981.46
Ministry of Defence,Defence Science and Technology Laboratory,27/05/2011,Sub Contracted Work,Programme Office,SVGC LIMITED,V - 9000132982 - 00106896,60980.89
Ministry of Defence,Ministry of Defence,20/05/2011,Rent and rates,Central TLB,GVA GRIMLEY LIMITED,796859,60821.92
Ministry of Defence,Ministry of Defence,18/05/2011,Fuel for military use,Air Command,ARVAL UK LTD,795209,60676.89
Ministry of Defence,Defence Science and Technology Laboratory,06/05/2011,Sub Contracted Research,Programme Office,QINETIQ LIMITED,V - 9000132443 - 00107106,60659
Ministry of Defence,Ministry of Defence,18/05/2011,Design services and minor equipment purchases,Defence Equipment & Support,APPH BASINGSTOKE LTD,795202,60631
Ministry of Defence,Ministry of Defence,20/05/2011,Property leases,Air Command,KELDA WATER SERVICES (ESTATES) LIMITED,796924,60629.79
Ministry of Defence,Defence Support Group,19/05/2011,Telephone - Lines & Rental,Corporate,British Telecommunications PLC,10126106,60565.52
Ministry of Defence,Ministry of Defence,11/05/2011,"Transportation of personnel, freight and travel expenses",Land Forces,RAILION NEDERLANDS NV,5000055849,60520.8
Ministry of Defence,Ministry of Defence,16/05/2011,Purchase of inventory and services ,Central TLB,CAMBRIDGE INFORMATION LTD,793880,60484.8
Ministry of Defence,Ministry of Defence,23/05/2011,"Purchase of munitions, other inventory or fuel",Defence Equipment & Support,FUCHS LUBRICANTS (UK) PLC,797668,60461.33
Ministry of Defence,Ministry of Defence,05/05/2011,Food and clothing,Air Command,ARAMARK LTD,789364,60227.71
Ministry of Defence,Ministry of Defence,25/05/2011,Estate management,Land Forces,COMPASS CONTRACT SERVICES (U K)LIMITED,798943,60223.65
Ministry of Defence,Met Office,06/05/2011,Services,Operations,Science & Technology Facilities Council,307292,60201.07
Ministry of Defence,Met Office,06/05/2011,Services,Commercial Business,International Civil Aviation Organization,307306,60106
Ministry of Defence,Ministry of Defence,04/05/2011,Design services and minor equipment purchases,Defence Equipment & Support,QINETIQ LIMITED,789209,60000
Ministry of Defence,Defence Science and Technology Laboratory,06/05/2011,Sub Contracted Work,Programme Office,DETICA LIMITED,V - 9000132356 - 00107922,60000
Ministry of Defence,Ministry of Defence,06/05/2011,Rent and rates,Defence Infrastructure Organisation ,NATIONALTRUST FOR SCOTLAND ENTERPRISES LTD.,790443,60000
Ministry of Defence,Defence Science and Technology Laboratory,06/05/2011,Sub Contracted Research,Operations,QUANTITATIVE SOFTWARE CONSULTING LIMITED,V - 9000132456 - 00108539,60000
Ministry of Defence,Defence Science and Technology Laboratory,13/05/2011,Sub Contracted Research,Programme Office,QINETIQ LIMITED,V - 9000132656 - 00106106,60000
Ministry of Defence,Defence Science and Technology Laboratory,27/05/2011,Sub Contracted Research,Programme Office,QINETIQ LIMITED,V - 9000133104 - 00108938,60000
Ministry of Defence,Ministry of Defence,10/05/2011,Purchase of inventory and services ,Land Forces,XMA LTD,792042,59996.8
Ministry of Defence,Defence Science and Technology Laboratory,27/05/2011,Sub Contracted Work,Operations,THALES AIR DEFENCE LIMITED,V - 9000132976 - 00109679,59966
Ministry of Defence,Ministry of Defence,04/05/2011,Fees for professional services,Defence Equipment & Support,PARITY TRAINING LTD,159571,59706
Ministry of Defence,Defence Science and Technology Laboratory,27/05/2011,Sub Contracted Research,Operations,UNIVERSITY OF BATH,V - 9000132997 - 00107581,59504
Ministry of Defence,Ministry of Defence,19/05/2011,Rent and rates,Defence Infrastructure Organisation ,WINDSOR AND MAIDENHEAD ROYAL BOROUGH COUNCIL,796531,59326.7
Ministry of Defence,Ministry of Defence,19/05/2011,Rent and rates,Defence Infrastructure Organisation ,TEWKESBURY BOROUGH COUNCIL,796442,59120.34
Ministry of Defence,Ministry of Defence,06/05/2011,"Transportation of personnel, freight and travel expenses",Land Forces,BROKMAN BUSREISEN GMBH,5000055500,59070.79
Ministry of Defence,Ministry of Defence,11/05/2011,International contributions,Central TLB,THE BRITISH COUNCIL,792519,59055.62
Ministry of Defence,Ministry of Defence,13/05/2011,General services and support,Defence Equipment & Support,MARSHALL OF CAMBRIDGE AEROSPACE LIMITED,793499,58886.4
Ministry of Defence,Ministry of Defence,24/05/2011,Estate management,Defence Infrastructure Organisation ,BEZIRKSREGIERUNG DUESSELDORF,5000056590,58569.32
Ministry of Defence,Ministry of Defence,16/05/2011,Design services and minor equipment purchases,Defence Equipment & Support,MUIRHEAD AEROSPACE LIMITED,794175,58519.82
Ministry of Defence,Ministry of Defence,04/05/2011,Payment of utilities,Land Forces,STADTWERKE DULMEN GMBH,5000055402,58407.97
Ministry of Defence,Ministry of Defence,18/05/2011,Medical treatment & stores and welfare services.,Central TLB,ALLIANCE MEDICAL LIMITED,795192,58177.63
Ministry of Defence,Ministry of Defence,18/05/2011,Fees for professional services,Central TLB,DEFENCE SCIENCE & TECHNOLOGY LABORATORY,795369,58166.93
Ministry of Defence,Ministry of Defence,26/05/2011,Payment of utilities,Navy Command,SSE ENERGY SUPPLY LIMITED,800038,58076.78
Ministry of Defence,Defence Science and Technology Laboratory,13/05/2011,Local Authority Rates,Infrastructure,SEVENOAKS DISTRICT COUNCIL,V - 9000132589 - 00108846,58022
Ministry of Defence,Ministry of Defence,06/05/2011,IT and communication services,Navy Command,S.COM GROUP LTD,790600,58015
Ministry of Defence,Ministry of Defence,06/05/2011,Miscellaneous Administration Costs,Central TLB,DENNIS CARTER LIMITED,790200,57858.9
Ministry of Defence,Ministry of Defence,05/05/2011,Payment of utilities,Air Command,TOTAL GAS & POWER LIMITED,789966,57772.37
Ministry of Defence,Ministry of Defence,11/05/2011,Estate management,Air Command,ARAMARK LTD,792074,57685.01
Ministry of Defence,Ministry of Defence,03/05/2011,Fees for professional services,Central TLB,DEFENCE SCIENCE & TECHNOLOGY LABORATORY,788297,57607.26
Ministry of Defence,Ministry of Defence,06/05/2011,Property leases,Defence Infrastructure Organisation ,ASPIRE DEFENCE LIMITED,790066,57607.04
Ministry of Defence,Ministry of Defence,04/05/2011,Transport hire charges,Defence Equipment & Support,BABCOCK LAND (WHITEFLEET MANAGEMENT) LIMITED,788823,57388.99
Ministry of Defence,Defence Science and Technology Laboratory,20/05/2011,Sub Contracted Research,Programme Office,QINETIQ LIMITED,V - 9000132877 - 00106096,57275
Ministry of Defence,Ministry of Defence,06/05/2011,Fees for professional services,Land Forces,HONEYBEERECRUITMENT.COM LTD,790315,57148.37
Ministry of Defence,Ministry of Defence,12/05/2011,Purchase of buildings and military equipment ,Air Command,TAMDOWN REGENERATION LIMITED,793100,56879.71
Ministry of Defence,Ministry of Defence,31/05/2011,Design services and minor equipment purchases,Defence Equipment & Support,SELEX GALILEO LTD,801268,56837.6
Ministry of Defence,Ministry of Defence,05/05/2011,Design services and minor equipment purchases,Defence Equipment & Support,STELLA-META  LIMITED,789923,56512.63
Ministry of Defence,Met Office,11/05/2011,Information Technology,Technology,Ibm United Kingdom Ltd,307361,56445.64
Ministry of Defence,Ministry of Defence,31/05/2011,Design services and minor equipment purchases,Defence Equipment & Support,BAE SYSTEMS INTEGRATED SYSTEM TECHNOLOGIES LIMITED,800846,56347.22
Ministry of Defence,Ministry of Defence,17/05/2011,Payment of utilities,Air Command,TOTAL GAS & POWER LIMITED,795131,56328.73
Ministry of Defence,Defence Science and Technology Laboratory,06/05/2011,Sub Contracted Research,Programme Office,QINETIQ LIMITED,V - 9000132443 - 00106153,56225
Ministry of Defence,Ministry of Defence,12/05/2011,Payment of utilities,Defence Equipment & Support,TOTAL GAS & POWER LIMITED,793134,56207.45
Ministry of Defence,Ministry of Defence,23/05/2011,Miscellaneous Administration Costs,Air Command,CIVIL AVIATION AUTHORITY,797515,56100
Ministry of Defence,Ministry of Defence,24/05/2011,"Transportation of personnel, freight and travel expenses",Defence Equipment & Support,DHL GLOBAL FORWARDING (UK)  LIMITED,798406,56078.12
Ministry of Defence,Ministry of Defence,11/05/2011,Estate management,Defence Infrastructure Organisation ,KARL CREISCHER BEZIRKSCHORNSTEINFEGERMEISTER,5000055826,56075.18
Ministry of Defence,Ministry of Defence,23/05/2011,Estate management,Defence Equipment & Support,DEBUT SERVICES (SOUTH WEST)LIMITED,797560,56030.55
Ministry of Defence,Ministry of Defence,03/05/2011,Rent and rates,Defence Infrastructure Organisation ,SHEPWAY DISTRICT COUNCIL,788671,55985.02
Ministry of Defence,Ministry of Defence,18/05/2011,Rent and rates,Defence Infrastructure Organisation ,SHEPWAY DISTRICT COUNCIL,795734,55985.02
Ministry of Defence,Defence Support Group,19/05/2011,Works - Fees,Business Stream 2,BABCOCK SUPPORT SERVICES LTD,10125142,55692.95
Ministry of Defence,Ministry of Defence,06/05/2011,"Purchase of munitions, other inventory or fuel",Defence Equipment & Support,WARTSILA UK LIMITED,5000055581,55660.64
Ministry of Defence,Ministry of Defence,31/05/2011,Design services and minor equipment purchases,Defence Equipment & Support,CATERPILLAR REMANUFACTURING LIMITED,800901,55659.45
Ministry of Defence,Ministry of Defence,10/05/2011,Design services and minor equipment purchases,Defence Equipment & Support,DRAEGER SAFETY U K LTD,791652,55618.21
Ministry of Defence,Ministry of Defence,26/05/2011,Food and clothing,Air Command,ARAMARK LTD,799487,55536.21
Ministry of Defence,Defence Science and Technology Laboratory,20/05/2011,Professional Services,Programme Office,BAE SYSTEMS (OPERATIONS) LIMITED,V - 9000132759 - 00106329,55482.35
Ministry of Defence,Ministry of Defence,25/05/2011,Fuel for military use,Navy Command,ARVAL UK LTD,798850,55414.5
Ministry of Defence,Defence Science and Technology Laboratory,20/05/2011,Other Services & Office costs,Corporate,VWR INTERNATIONAL,V - 9000132906 - 00109396,55384.66
Ministry of Defence,Ministry of Defence,11/05/2011,Payment of utilities,Air Command,TOTAL GAS & POWER LIMITED,792536,55246.47
Ministry of Defence,Ministry of Defence,20/05/2011,"Transportation of personnel, freight and travel expenses",Defence Equipment & Support,CARTUS LTD,796676,55071.24
Ministry of Defence,Ministry of Defence,05/05/2011,Payment of utilities,Land Forces,SSE ENERGY SUPPLY LIMITED,789920,55042.9
Ministry of Defence,Ministry of Defence,11/05/2011,Food and clothing,Land Forces,RANDSTAD DEUTSCHLAND GMBH,5000055850,55025.86
Ministry of Defence,Ministry of Defence,27/05/2011,Fuel for military use,Air Command,EXXONMOBIL PETROLEUM & CHEMICAL BVBA,2000011737,55023.14
Ministry of Defence,Defence Support Group,12/05/2011,Electricity,Business Stream 1,Scottish Hydro- Electric,10125470,54998.48
Ministry of Defence,Ministry of Defence,09/05/2011,Payment of utilities,Navy Command,KELDA WATER SERVICES LIMITED,791089,54800.17
Ministry of Defence,Ministry of Defence,31/05/2011,Medical treatment & stores and welfare services.,Central TLB,KINGS COLLEGE LONDON,801053,54792
Ministry of Defence,Ministry of Defence,19/05/2011,Externally delivered education and training.,Land Forces,THE BRITISH SCHOOL OF MOTORING LIMITED,160035,54671.2
Ministry of Defence,Ministry of Defence,16/05/2011,Estate management,Defence Infrastructure Organisation ,DEBUT SERVICES LIMITED,793944,54641.4
Ministry of Defence,Defence Science and Technology Laboratory,20/05/2011,IT Software,Operations,CENTURY DYNAMICS LIMITED,V - 9000132780 - 00106272,54463
Ministry of Defence,Defence Science and Technology Laboratory,13/05/2011,Sub Contracted Work,Operations,QINETIQ LIMITED,V - 9000132656 - 00103263,54444.46
Ministry of Defence,Ministry of Defence,06/05/2011,Payment of utilities,Defence Infrastructure Organisation ,NVV AG,5000055549,54353.98
Ministry of Defence,Ministry of Defence,31/05/2011,International contributions,Central TLB,OFFICERS MESS RMCS SHRIVENHAM,801186,54270.53
Ministry of Defence,Met Office,19/05/2011,Services,Science,Stars Aviation Services,13115,54195.78
Ministry of Defence,Ministry of Defence,25/05/2011,Payment of utilities,Air Command,TOTAL GAS & POWER LIMITED,799415,54096.79
Ministry of Defence,Ministry of Defence,09/05/2011,Purchase of inventory and services ,Defence Equipment & Support,CORPORATE DOCUMENT SERVICES  LIMITED,790921,54057.92
Ministry of Defence,Ministry of Defence,20/05/2011,Transport hire charges,Land Forces,LEASEDRIVE VELO RENTAL  MANAGEMENT LIMITED,796943,54053.4
Ministry of Defence,Ministry of Defence,18/05/2011,Payment of utilities,Defence Infrastructure Organisation ,ESSO PETROLEUM COMPANY LIMITED,795417,54051.45
Ministry of Defence,Ministry of Defence,26/05/2011,IT and communication services,Defence Equipment & Support,L.A. INTERNATIONAL COMPUTER  CONSULTANTS LIMITED,799776,54029.41
Ministry of Defence,Met Office,19/05/2011,Services,Science,Stars Aviation Services,307839,54024.44
Ministry of Defence,Defence Science and Technology Laboratory,20/05/2011,Sub Contracted Work,Operations,ROKE MANOR RESEARCH LIMITED,V - 9000132783 - 00106668,54000
Ministry of Defence,Ministry of Defence,09/05/2011,Fees for professional services,Defence Infrastructure Organisation ,JACOBS U.K. LTD,791077,53835.93
Ministry of Defence,Ministry of Defence,06/05/2011,Rent and rates,Air Command,PRIMARY HEALTH INVESTMENT  PROPERTIES LIMITED,790557,53700
Ministry of Defence,British Defence Staff -United States,26/05/2011,Medical treatment & stores and welfare services.,Central TLB,MERITAIN HEALTH,274517,53511.34
Ministry of Defence,Ministry of Defence,04/05/2011,Payment of utilities,Defence Infrastructure Organisation ,MABANAFT DEUTSCHLAND GMBH,5000055353,53430.44
Ministry of Defence,Ministry of Defence,17/05/2011,Rent and rates,Central TLB,GVA GRIMLEY LIMITED,794781,53419.76
Ministry of Defence,Ministry of Defence,27/05/2011,Purchase of buildings and military equipment ,Defence Equipment & Support,DEVONPORT ROYAL DOCKYARD LIMITED,800298,53233
Ministry of Defence,Ministry of Defence,13/05/2011,Food and clothing,Land Forces,ARAMARK LTD,793212,53218.25
Ministry of Defence,Ministry of Defence,05/05/2011,"Purchase of munitions, other inventory or fuel",Defence Equipment & Support,NYCO SA,3000005459,53167.04
Ministry of Defence,Ministry of Defence,03/05/2011,Purchase of inventory and services ,Defence Equipment & Support,ELGIN MEDICAL LIMITED,788336,53160
Ministry of Defence,Ministry of Defence,13/05/2011,"Transportation of personnel, freight and travel expenses",Defence Equipment & Support,DSV AIR & SEA LIMITED,793354,53127.63
Ministry of Defence,Ministry of Defence,27/05/2011,IT and communication services,Defence Equipment & Support,CIVICA UK LIMITED,800267,53094
Ministry of Defence,Ministry of Defence,27/05/2011,Purchase of buildings and military equipment ,Defence Infrastructure Organisation ,TURNER FACILITIES MANAGEMENT LTD,800733,53085.85
Ministry of Defence,Ministry of Defence,26/05/2011,"Adminstration, claims, compensation and awards",Land Forces,AGENCE COMPTABLE DES SERVICES  INDUSTRIELS DE L ARMEMENT,5000056768,53006.98
Ministry of Defence,Ministry of Defence,27/05/2011,IT and communication services,Defence Infrastructure Organisation ,INFOTECH ENTERPRISES EUROPE LTD,800407,52900
Ministry of Defence,Ministry of Defence,16/05/2011,Estate management,Defence Infrastructure Organisation ,SODEXO LTD,794423,52877.45
Ministry of Defence,Defence Science and Technology Laboratory,20/05/2011,Sub Contracted Work,Operations,ATKINS LIMITED,V - 9000132767 - 00108058,52792.5
Ministry of Defence,Ministry of Defence,10/05/2011,Payment of utilities,Land Forces,TOTAL GAS & POWER LIMITED,792015,52757.26
Ministry of Defence,Ministry of Defence,27/05/2011,IT and communication services,Land Forces,GREENROAD TECHNOLOGIES UK  LIMITED,800375,52683.64
Ministry of Defence,Ministry of Defence,05/05/2011,Transport hire charges,Defence Equipment & Support,BABCOCK LAND (WHITEFLEET MANAGEMENT) LIMITED,789383,52590.78
Ministry of Defence,Ministry of Defence,12/05/2011,General services and support,Land Forces,FBS LIMITED,792770,52551.77
Ministry of Defence,Ministry of Defence,13/05/2011,Purchase of buildings and military equipment ,Defence Equipment & Support,DYTECNA ENGINEERING LIMITED,793357,52547.22
Ministry of Defence,Ministry of Defence,10/05/2011,Estates-Stores/Equipment,DIO-SSG,CHUBB LOCKS CUSTODIAL SERVICES,PMT-AP021112002,52531.2
Ministry of Defence,Ministry of Defence,03/05/2011,Rent and rates,Defence Infrastructure Organisation ,SOUTH CAMBRIDGESHIRE DISTRICT COUNCIL,788681,52467.08
Ministry of Defence,Ministry of Defence,18/05/2011,Rent and rates,Defence Infrastructure Organisation ,SOUTH CAMBRIDGESHIRE DISTRICT COUNCIL,795748,52467.08
Ministry of Defence,Ministry of Defence,20/05/2011,Externally delivered education and training.,Land Forces,RIGHT MANAGEMENT LIMITED,797160,52454.45
Ministry of Defence,Ministry of Defence,06/05/2011,"Purchase of munitions, other inventory or fuel",Defence Equipment & Support,BP OIL INTERNATIONAL LIMITED,2000011535,52452.24
Ministry of Defence,Ministry of Defence,06/05/2011,"Purchase of munitions, other inventory or fuel",Defence Equipment & Support,ROLLS-ROYCE POWER ENGINEERING PLC,790592,52345.82
Ministry of Defence,Ministry of Defence,27/05/2011,Design services and minor equipment purchases,Defence Equipment & Support,FRANCIS SEARCHLIGHTS LTD,800353,52325.75
Ministry of Defence,Ministry of Defence,20/05/2011,Design services and minor equipment purchases,Defence Equipment & Support,CONWAY PACKING SERVICES LTD,796707,52228.64
Ministry of Defence,Met Office,16/05/2011,Plant And Equipment,Chief Financial Officer,Socomec Sicon Ltd,306298,52000
Ministry of Defence,Ministry of Defence,23/05/2011,Food and clothing,Land Forces,LIFE FITNESS (U K) LTD,797754,51971.52
Ministry of Defence,Ministry of Defence,26/05/2011,Design services and minor equipment purchases,Defence Equipment & Support,SELEX GALILEO LTD,800012,51821
Ministry of Defence,Ministry of Defence,17/05/2011,Transport hire charges,Central TLB,BABCOCK LAND (WHITEFLEET MANAGEMENT) LIMITED,794599,51741.14
Ministry of Defence,Ministry of Defence,05/05/2011,Development costs for military equipment,Defence Equipment & Support,ORACLE CORPORATION U K LTD,789803,51725.12
Ministry of Defence,Ministry of Defence,11/05/2011,Payment of utilities,Land Forces,NVV AG,5000055845,51467.83
Ministry of Defence,Ministry of Defence,25/05/2011,Fuel for military use,Air Command,MULTI SERVICE AVIATION,799148,51456.66
Ministry of Defence,Ministry of Defence,25/05/2011,Transport hire charges,Air Command,BABCOCK LAND (WHITEFLEET MANAGEMENT) LIMITED,798868,51253.65
Ministry of Defence,Ministry of Defence,27/05/2011,Fuel for military use,Air Command,EUROSHELL DEUTSCHLAND GMBH,5000056904,51233.33
Ministry of Defence,Defence Science and Technology Laboratory,20/05/2011,Sub Contracted Research,Programme Office,UNIVERSITY OF WARWICK,V - 9000132835 - 00107602,51217
Ministry of Defence,Ministry of Defence,03/05/2011,Rent and rates,Defence Infrastructure Organisation ,EAST HAMPSHIRE DISTRICT COUNCIL,788324,51164.39
Ministry of Defence,Ministry of Defence,20/05/2011,Rent and rates,Defence Infrastructure Organisation ,EAST HAMPSHIRE DISTRICT COUNCIL,796786,51164.39
Ministry of Defence,Defence Science and Technology Laboratory,13/05/2011,Sub Contracted Work,Operations,PA CONSULTING SERVICES LIMITED (T/AS,V - 9000132585 - 00109148,51097
Ministry of Defence,Ministry of Defence,10/05/2011,Design services and minor equipment purchases,Defence Equipment & Support,VARIVANE INDUSTRIES LIMITED,792028,51029.65
Ministry of Defence,Ministry of Defence,18/05/2011,Purchase of buildings and military equipment ,Defence Infrastructure Organisation ,SECURITY SERVICES GROUP,2.00E+11,50962.19
Ministry of Defence,Ministry of Defence,06/05/2011,Fees for professional services,Central TLB,DEFENCE SCIENCE & TECHNOLOGY LABORATORY,790196,50880.89
Ministry of Defence,Ministry of Defence,18/05/2011,Estate management,Air Command,ARAMARK LTD,795207,50824.44
Ministry of Defence,Ministry of Defence,19/05/2011,Rent and rates,Defence Infrastructure Organisation ,WINCHESTER CITY COUNCIL,796530,50809.75
Ministry of Defence,Ministry of Defence,25/05/2011,"Transportation of personnel, freight and travel expenses",Defence Equipment & Support,DHL GLOBAL FORWARDING (UK)  LIMITED,798968,50754.87
Ministry of Defence,Met Office,04/05/2011,Equipment Maintenance,Technology,Hewlett Packard Ltd,307098,50738.4
Ministry of Defence,Ministry of Defence,11/05/2011,Design services and minor equipment purchases,Defence Equipment & Support,TERADYNE LIMITED,792511,50719.49
Ministry of Defence,Ministry of Defence,27/05/2011,"Transportation of personnel, freight and travel expenses",Defence Equipment & Support,DHL GLOBAL FORWARDING (UK)  LIMITED,800299,50646.88
Ministry of Defence,Ministry of Defence,04/05/2011,Purchase of buildings and military equipment ,Defence Infrastructure Organisation ,CARILLIONENTERPRISE LIMITED,788870,50402.95
Ministry of Defence,Defence Science and Technology Laboratory,27/05/2011,Sub Contracted Research,Programme Office,QINETIQ LIMITED,V - 9000133104 - 00106595,50385.3
Ministry of Defence,Ministry of Defence,03/05/2011,Estate management,Defence Infrastructure Organisation ,RENTOKIL INITIAL UK CLEANING  LIMITED,788628,50233.32
Ministry of Defence,Ministry of Defence,27/05/2011,Design services and minor equipment purchases,Air Command,CENTRAL OFFICE OF INFORMATION,800253,50182.05
Ministry of Defence,Defence Science and Technology Laboratory,13/05/2011,Sub Contracted Work,Operations,QINETIQ LIMITED,V - 9000132656 - 00108649,50161.36
Ministry of Defence,Ministry of Defence,05/05/2011,Payment of utilities,Land Forces,TOTAL GAS & POWER LIMITED,789966,50137.26
Ministry of Defence,Defence Science and Technology Laboratory,13/05/2011,Sub Contracted Research,Programme Office,QINETIQ LIMITED,V - 9000132656 - 00106105,50000
Ministry of Defence,Defence Science and Technology Laboratory,20/05/2011,Sub Contracted Work,Programme Office,AEROSYSTEMS INTERNATIONAL LIMITED,V - 9000132884 - 00108524,50000
Ministry of Defence,Defence Science and Technology Laboratory,20/05/2011,Sub Contracted Work,Operations,KIRINTEC LIMITED,V - 9000132890 - 00109312,50000
Ministry of Defence,Defence Science and Technology Laboratory,27/05/2011,Sub Contracted Research,Programme Office,BAE SYSTEMS (OPERATIONS) LIMITED,V - 9000132957 - 00109445,50000
Ministry of Defence,Ministry of Defence,24/05/2011,Externally delivered education and training.,Land Forces,TQ EDUCATION AND TRAINING  LIMITED,798779,49976.52
Ministry of Defence,Ministry of Defence,23/05/2011,Payment of utilities,Navy Command,SSE ENERGY SUPPLY LIMITED,798122,49939.97
Ministry of Defence,Ministry of Defence,12/05/2011,Fees for professional services,Defence Infrastructure Organisation ,SINCLAIR KNIGHT MERZ (EUROPE) LTD,793069,49892.35
Ministry of Defence,Ministry of Defence,20/05/2011,Design services and minor equipment purchases,Defence Equipment & Support,GE AVIATION SYSTEMS LIMITED,796839,49878.93
Ministry of Defence,Defence Science and Technology Laboratory,27/05/2011,Sub Contracted Research,Programme Office,QINETIQ LIMITED,V - 9000133104 - 00109697,49829
Ministry of Defence,Defence Science and Technology Laboratory,20/05/2011,Sub Contracted Research,Programme Office,QINETIQ LIMITED,V - 9000132877 - 00106095,49803
Ministry of Defence,Ministry of Defence,03/05/2011,Rent and rates,Defence Infrastructure Organisation ,HUNTINGDONSHIRE DISTRICT COUNCIL,788420,49790.08
Ministry of Defence,Ministry of Defence,18/05/2011,Rent and rates,Defence Infrastructure Organisation ,HUNTINGDONSHIRE DISTRICT COUNCIL,795476,49790.08
Ministry of Defence,Ministry of Defence,04/05/2011,IT and communication services,Defence Equipment & Support,ACTICA CONSULTING LIMITED,788787,49788.65
Ministry of Defence,Ministry of Defence,13/05/2011,"Transportation of personnel, freight and travel expenses",Land Forces,DSV AIR & SEA LIMITED,793354,49783.01
Ministry of Defence,Defence Science and Technology Laboratory,20/05/2011,Sub Contracted Research,Programme Office,UNIVERSITY OF YORK,V - 9000132787 - 00108525,49760
Ministry of Defence,Defence Science and Technology Laboratory,27/05/2011,Professional Services,Operations,BLASTECH LIMITED,V - 9000133068 - 00108137,49721.26
Ministry of Defence,Ministry of Defence,01/05/2011,Food and clothing,Land Forces,Shamrock Foods,Cash Office AP02 02,49721.17
Ministry of Defence,Defence Science and Technology Laboratory,27/05/2011,Sub Contracted Work,Operations,CAMBRIDGE CONSULTANTS LIMITED,V - 9000132931 - 00109871,49532
Ministry of Defence,Defence Science and Technology Laboratory,27/05/2011,Sub Contracted Work,Operations,DETICA LIMITED,V - 9000132967 - 00110156,49458.93
Ministry of Defence,Ministry of Defence,03/05/2011,Rent and rates,Defence Infrastructure Organisation ,PURBECK DISTRICT COUNCIL,788612,49455.31
Ministry of Defence,Ministry of Defence,18/05/2011,Rent and rates,Defence Infrastructure Organisation ,PURBECK DISTRICT COUNCIL,795678,49455.31
Ministry of Defence,Ministry of Defence,31/05/2011,Purchase of buildings and military equipment ,Defence Equipment & Support,HOLYHEAD MARINE SERVICES LIMITED,801016,49135.43
Ministry of Defence,Ministry of Defence,20/05/2011,Transport hire charges,Defence Equipment & Support,BABCOCK LAND (WHITEFLEET MANAGEMENT) LIMITED,796604,49016.15
Ministry of Defence,Defence Science and Technology Laboratory,27/05/2011,Sub Contracted Work,Programme Office,QINETIQ LIMITED,V - 9000133104 - 00106229,48961
Ministry of Defence,Ministry of Defence,27/05/2011,"Transportation of personnel, freight and travel expenses",Central TLB,FOREIGN & COMMONWEALTH OFFICE,2.00E+11,48933.93
Ministry of Defence,Ministry of Defence,06/05/2011,Purchase of plant and machinery,Defence Equipment & Support,STS DEFENCE LIMITED,159662,48705.89
Ministry of Defence,Ministry of Defence,09/05/2011,Medical treatment & stores and welfare services.,Land Forces,NHS FIFE,791189,48653.96
Ministry of Defence,Ministry of Defence,06/05/2011,Fuel for military use,Defence Infrastructure Organisation ,CALOR GAS LIMITED,790143,48615.53
Ministry of Defence,Ministry of Defence,06/05/2011,IT and communication services,Defence Equipment & Support,SERCO LIMITED,790619,48359.38
Ministry of Defence,Ministry of Defence,06/05/2011,Research and development,Defence Equipment & Support,SERCO LIMITED,790619,48359.37
Ministry of Defence,Defence Science and Technology Laboratory,06/05/2011,Sub Contracted Work,Operations,GAS DYNAMICS LIMITED,V - 9000132423 - 00106299,48315.2
Ministry of Defence,Ministry of Defence,31/05/2011,IT and communication services,Defence Equipment & Support,T F D EUROPE LTD,801305,48298
Ministry of Defence,Ministry of Defence,25/05/2011,"Transportation of personnel, freight and travel expenses",Land Forces,PLANT SPEED LIMITED,799293,48283.26
Ministry of Defence,Defence Science and Technology Laboratory,20/05/2011,Materials & Equipment,Operations,NATIONAL INSTRUMENTS LIMITED,V - 9000132750 - 00105882,48243.14
Ministry of Defence,Ministry of Defence,06/05/2011,Estate management,Defence Infrastructure Organisation ,BOVIS LEND LEASE LIMITED,790111,48198.74
Ministry of Defence,Ministry of Defence,17/05/2011,Food and clothing,Defence Equipment & Support,SODEXO LTD,795075,48116.88
Ministry of Defence,Ministry of Defence,11/05/2011,Fuel for military use,Land Forces,EXXONMOBIL PETROLEUM & CHEMICAL BVBA,2000011588,48114.23
Ministry of Defence,Ministry of Defence,18/05/2011,Design services and minor equipment purchases,Defence Equipment & Support,MARSHALL OF CAMBRIDGE AEROSPACE LIMITED,795552,48108.61
Ministry of Defence,Ministry of Defence,27/05/2011,Design services and minor equipment purchases,Defence Equipment & Support,DEFENCE SUPPORT GROUP  (DSG),800294,48064.02
Ministry of Defence,Defence Science and Technology Laboratory,20/05/2011,Consumable Materials,Infrastructure,BARCLAYCARD,G - 9000132907 - 00110525,47875.09
Ministry of Defence,Ministry of Defence,16/05/2011,IT and communication services,Defence Equipment & Support,IBM UNITED KINGDOM LIMITED,794071,47826.15
Ministry of Defence,Ministry of Defence,17/05/2011,Property leases,Land Forces,HOLDFAST TRAINING SERVICES LTD,794808,47678.16
Ministry of Defence,Ministry of Defence,18/05/2011,General services and support,Defence Equipment & Support,THALES ATM LIMITED,795782,47601.84
Ministry of Defence,Ministry of Defence,05/05/2011,Estate management,Defence Infrastructure Organisation ,TURNER FACILITIES MANAGEMENT LTD,789974,47582.21
Ministry of Defence,Ministry of Defence,17/05/2011,Purchase of inventory and services ,Central TLB,THE ROYAL MINT,795119,47574.02
Ministry of Defence,Ministry of Defence,09/05/2011,Externally delivered education and training.,Land Forces,BLUE SCREEN IT LIMITED,790841,47570
Ministry of Defence,Defence Science and Technology Laboratory,20/05/2011,Sub Contracted Research,Programme Office,QINETIQ LIMITED,V - 9000132877 - 00106538,47508
Ministry of Defence,Ministry of Defence,06/05/2011,Purchase of buildings and military equipment ,Defence Equipment & Support,HP ENTERPRISE SERVICES DEFENCE & SECURITY UK LIMITED,790319,47288.38
Ministry of Defence,Ministry of Defence,23/05/2011,IT and communication services,Defence Equipment & Support,S.COM GROUP LTD,798074,47190
Ministry of Defence,Defence Science and Technology Laboratory,27/05/2011,Sub Contracted Work,Operations,ATKINS LIMITED,V - 9000132965 - 00109818,47163
Ministry of Defence,Ministry of Defence,13/05/2011,Design services and minor equipment purchases,Land Forces,THE AUTOMOBILE ASSOCIATION LIMITED,159885,47090.24
Ministry of Defence,Ministry of Defence,05/05/2011,Payment of utilities,Defence Infrastructure Organisation ,GB OILS LIMITED,789576,47090.11
Ministry of Defence,Ministry of Defence,03/05/2011,Rent and rates,Defence Infrastructure Organisation ,ST EDMUNDSBURY BOROUGH COUNCIL,788699,47002.07
Ministry of Defence,Ministry of Defence,18/05/2011,Rent and rates,Defence Infrastructure Organisation ,ST EDMUNDSBURY BOROUGH COUNCIL,795764,47002.07
Ministry of Defence,Ministry of Defence,18/05/2011,Estate management,Land Forces,HARSCO INFRASTRUCT,GPC AP02 014,46962.74
Ministry of Defence,Ministry of Defence,11/05/2011,"Purchase of munitions, other inventory or fuel",Defence Equipment & Support,UNIVAR LIMITED,792548,46945.09
Ministry of Defence,Ministry of Defence,10/05/2011,Purchase of inventory and services ,Air Command,BOC LIMITED,791551,46942.8
Ministry of Defence,Ministry of Defence,27/05/2011,Externally delivered education and training.,Land Forces,BABCOCK TRAINING LIMITED,160310,46855.33
Ministry of Defence,Ministry of Defence,09/05/2011,IT and communication services,Defence Equipment & Support,TRANSFLO INSTRUMENTS LIMITED,791419,46773.54
Ministry of Defence,Ministry of Defence,06/05/2011,Rent and rates,Defence Infrastructure Organisation ,LONDON BOROUGH OF CAMDEN,790383,46576.23
Ministry of Defence,Defence Science and Technology Laboratory,20/05/2011,Sub Contracted Research,Programme Office,QINETIQ LIMITED,V - 9000132877 - 00106103,46529
Ministry of Defence,Ministry of Defence,06/05/2011,Design services and minor equipment purchases,Defence Equipment & Support,ULTRA ELECTRONICS LIMITED,159667,46370.07
Ministry of Defence,Ministry of Defence,18/05/2011,Design services and minor equipment purchases,Defence Equipment & Support,MANITOWOC CRANE GROUP (UK) LTD,795545,46326.17
Ministry of Defence,Defence Science and Technology Laboratory,20/05/2011,Sub Contracted Work,Operations,THREAD DESIGN AND DEVELOPMENT LIMITED,V - 9000132881 - 00109483,46210
Ministry of Defence,Ministry of Defence,17/05/2011,Development costs for military equipment,Defence Equipment & Support,DEFENCE SCIENCE & TECHNOLOGY LABORATORY,794707,46199.1
Ministry of Defence,Ministry of Defence,13/05/2011,Purchase of inventory and services ,Land Forces,AAH PHARMACEUTICALS LTD,793185,46180.28
Ministry of Defence,Ministry of Defence,03/05/2011,Rent and rates,Defence Infrastructure Organisation ,SOUTH SOMERSET DISTRICT COUNCIL,788688,46172.74
Ministry of Defence,Ministry of Defence,18/05/2011,Rent and rates,Defence Infrastructure Organisation ,SOUTH SOMERSET DISTRICT COUNCIL,795755,46172.74
Ministry of Defence,Ministry of Defence,12/05/2011,Purchase of buildings and military equipment ,Defence Infrastructure Organisation ,ARCHITETTO FIORENZO PETILLO,5000055881,46128.32
Ministry of Defence,Defence Science and Technology Laboratory,27/05/2011,Sub Contracted Work,Operations,SUMMIT OXYGEN INTERNATIONAL LIMITED,V - 9000133122 - 00108731,46125
Ministry of Defence,Defence Science and Technology Laboratory,27/05/2011,Sub Contracted Work,Operations,SUMMIT OXYGEN INTERNATIONAL LIMITED,V - 9000133122 - 00109389,46125
Ministry of Defence,Ministry of Defence,03/05/2011,Rent and rates,Defence Infrastructure Organisation ,MEDWAY COUNCIL,788467,46028.38
Ministry of Defence,Ministry of Defence,18/05/2011,Rent and rates,Defence Infrastructure Organisation ,MEDWAY COUNCIL,795555,46028.38
Ministry of Defence,Ministry of Defence,12/05/2011,IT and communication services,Defence Equipment & Support,COMPUTACENTER (UK) LIMITED,792701,45944.11
Ministry of Defence,Ministry of Defence,10/05/2011,Estates-Stores/Equipment,DIO-SSG,C & D (SHEET METAL) ENG LTD,PMT-AP021112003,45881
Ministry of Defence,Ministry of Defence,11/05/2011,Design services and minor equipment purchases,Defence Equipment & Support,IMES LTD.,792241,45860.8
Ministry of Defence,Defence Science and Technology Laboratory,06/05/2011,Sub Contracted Research,Programme Office,QINETIQ LIMITED,V - 9000132443 - 00107250,45782
Ministry of Defence,Ministry of Defence,03/05/2011,Rent and rates,Defence Infrastructure Organisation ,PETERBOROUGH CITY COUNCIL,788598,45722.65
Ministry of Defence,Ministry of Defence,18/05/2011,Rent and rates,Defence Infrastructure Organisation ,PETERBOROUGH CITY COUNCIL,795656,45722.65
Ministry of Defence,Ministry of Defence,06/05/2011,Fees for professional services,Land Forces,L.A. INTERNATIONAL COMPUTER  CONSULTANTS LIMITED,790362,45666.56
Ministry of Defence,Ministry of Defence,18/05/2011,Food and clothing,Land Forces,NAVY ARMY AND AIR FORCE INSTITUES (THE),5000056332,45566.48
Ministry of Defence,Ministry of Defence,26/05/2011,"Transportation of personnel, freight and travel expenses",Central TLB,HOGG ROBINSON (TRAVEL) LIMITED,799742,45471.93
Ministry of Defence,Ministry of Defence,13/05/2011,IT and communication services,Defence Equipment & Support,EMC COMPUTER SYSTEMS (U.K.) LIMITED,793370,45317.25
Ministry of Defence,Ministry of Defence,16/05/2011,Food and clothing,Land Forces,C V FITNESS LTD,793874,45315.04
Ministry of Defence,Ministry of Defence,20/05/2011,Design services and minor equipment purchases,Defence Equipment & Support,IBM UNITED KINGDOM LIMITED,796896,45294.9
Ministry of Defence,Ministry of Defence,18/05/2011,Purchase of inventory and services ,Land Forces,AAH PHARMACEUTICALS LTD,795172,45266.42
Ministry of Defence,Ministry of Defence,24/05/2011,Purchase of plant and machinery,Defence Equipment & Support,RUBB BUILDINGS LTD,798699,45246
Ministry of Defence,Defence Science and Technology Laboratory,20/05/2011,Sub Contracted Research,Programme Office,SYSTEMS ENGINEERING & ASSESSMENT LIMITED,V - 9000132778 - 00107213,45201
Ministry of Defence,Ministry of Defence,17/05/2011,Purchase of inventory and services ,Central TLB,CORPORATE DOCUMENT SERVICES  LIMITED,794691,45126.79
Ministry of Defence,Defence Science and Technology Laboratory,06/05/2011,Sub Contracted Research,Programme Office,UNIVERSITY OF BRISTOL,V - 9000132371 - 00104686,45000
Ministry of Defence,Defence Science and Technology Laboratory,06/05/2011,Sub Contracted Research,Programme Office,UNIVERSITY OF BRISTOL,V - 9000132371 - 00105633,45000
Ministry of Defence,Defence Science and Technology Laboratory,20/05/2011,Sub Contracted Work,Programme Office,QINETIQ LIMITED,V - 9000132823 - 00109413,45000
Ministry of Defence,Defence Science and Technology Laboratory,13/05/2011,Sub Contracted Work,Operations,THALES UK LIMITED,V - 9000132543 - 00107609,44975
Ministry of Defence,Ministry of Defence,16/05/2011,Purchase of inventory and services ,Air Command,BOC LIMITED,793846,44890.56
Ministry of Defence,Ministry of Defence,18/05/2011,IT and communication services,Navy Command,BLUE ARROW,GPC AP02 013,44823.82
Ministry of Defence,Defence Science and Technology Laboratory,13/05/2011,Sub Contracted Work,Operations,QINETIQ LIMITED,V - 9000132656 - 00106536,44679
Ministry of Defence,Ministry of Defence,06/05/2011,Estate management,Air Command,SODEXO LTD,790631,44651.1
Ministry of Defence,Ministry of Defence,04/05/2011,Food and clothing,Defence Equipment & Support,PURPLE FOODSERVICE SOLUTIONS LIMITED,789204,44624.72
Ministry of Defence,Ministry of Defence,25/05/2011,"Transportation of personnel, freight and travel expenses",Defence Equipment & Support,PLANT SPEED LIMITED,799293,44623.47
Ministry of Defence,Ministry of Defence,24/05/2011,Payment of utilities,Defence Infrastructure Organisation ,STADTWERKE GUETERSLOH GMBH,5000056622,44454.87
Ministry of Defence,Ministry of Defence,03/05/2011,Rent and rates,Defence Infrastructure Organisation ,SOUTH GLOUCESTERSHIRE COUNCIL,788683,44318.2
Ministry of Defence,Ministry of Defence,18/05/2011,Rent and rates,Defence Infrastructure Organisation ,SOUTH GLOUCESTERSHIRE COUNCIL,795750,44318.2
Ministry of Defence,Ministry of Defence,20/05/2011,Estate management,Air Command,SODEXO LTD,797210,44305.91
Ministry of Defence,Defence Science and Technology Laboratory,20/05/2011,Consumable Materials,Operations,VWR INTERNATIONAL,V - 9000132906 - 00106587,44264.32
Ministry of Defence,Ministry of Defence,05/05/2011,Estate management,Central TLB,SERCO LIMITED,789893,44219.25
Ministry of Defence,Defence Science and Technology Laboratory,06/05/2011,Professional Services,Operations,ORDNANCE TEST SOLUTIONS LIMITED,V - 9000132421 - 00106637,44026
Ministry of Defence,Ministry of Defence,20/05/2011,Estate management,Defence Infrastructure Organisation ,TURNER FACILITIES MANAGEMENT LTD,797297,44010.93
Ministry of Defence,Ministry of Defence,26/05/2011,Estate management,Land Forces,LANKES ENTSORGUNG UND UMWELTSERVICE GMBH,5000056836,43990.31
Ministry of Defence,Ministry of Defence,06/05/2011,Rent and rates,Defence Infrastructure Organisation ,HARTNELL TAYLOR COOK LLP,790303,43750.2
Ministry of Defence,Ministry of Defence,24/05/2011,Payment of utilities,Land Forces,STADTWERKE MUNSTER GMBH,5000056623,43724.98
Ministry of Defence,Ministry of Defence,17/05/2011,Estates-Stores/Equipment,DIO-SSG,CHUBB LOCKS CUSTODIAL SERVICES,PMT-AP021112004,43651.2
Ministry of Defence,Ministry of Defence,06/05/2011,Design services and minor equipment purchases,Defence Equipment & Support,FIRE VEHICLE SERVICES LIMITED,790259,43594.14
Ministry of Defence,Ministry of Defence,19/05/2011,Rent and rates,Defence Infrastructure Organisation ,CITY OF YORK COUNCIL,796010,43592.25
Ministry of Defence,Ministry of Defence,17/05/2011,Fees for professional services,Central TLB,DEFENCE MANAGEMENT (WATCHFIELD) LIMITED,794706,43481.98
Ministry of Defence,Ministry of Defence,27/05/2011,Payment of utilities,Land Forces,TOTAL GAS & POWER LIMITED,800723,43457.1
Ministry of Defence,Ministry of Defence,24/05/2011,Payment of utilities,Land Forces,GB OILS LIMITED,798452,43440.09
Ministry of Defence,Ministry of Defence,09/05/2011,Purchase of buildings and military equipment ,Air Command,TURNER FACILITIES MANAGEMENT LTD,791425,43323.06
Ministry of Defence,Ministry of Defence,26/05/2011,Design services and minor equipment purchases,Defence Equipment & Support,CONWAY PACKING SERVICES LTD,799611,43228.51
Ministry of Defence,Council of Reserve Forces and Cadets Associations,05/05/2011,Rates/NDR,Infrastructure,LB Hammersmith & Fulham,425,43213.29
Ministry of Defence,Ministry of Defence,26/05/2011,Grants to NDPBs,Central TLB,THE ARMED FORCES MEMORIAL TRUST,800060,43180
Ministry of Defence,Ministry of Defence,13/05/2011,Design services and minor equipment purchases,Defence Equipment & Support,ATKINS LIMITED,793219,43141.28
Ministry of Defence,Ministry of Defence,25/05/2011,Fuel for military use,Defence Infrastructure Organisation ,ARVAL UK LTD,798850,43114.72
Ministry of Defence,Ministry of Defence,19/05/2011,Rent and rates,Defence Infrastructure Organisation ,WEST BERKSHIRE DISTRICT COUNCIL,796518,43067.45
Ministry of Defence,Ministry of Defence,03/05/2011,Rent and rates,Defence Infrastructure Organisation ,FAREHAM BOROUGH COUNCIL,788352,43057.76
Ministry of Defence,Ministry of Defence,20/05/2011,Rent and rates,Defence Infrastructure Organisation ,FAREHAM BOROUGH COUNCIL,796814,43057.76
Ministry of Defence,Ministry of Defence,19/05/2011,Fuel for military use,Land Forces,EXXONMOBIL PETROLEUM & CHEMICAL BVBA,2000011660,42973.75
Ministry of Defence,Ministry of Defence,09/05/2011,Fees for professional services,Central TLB,IBM UNITED KINGDOM LIMITED,791064,42951
Ministry of Defence,Ministry of Defence,16/05/2011,Food and clothing,Defence Equipment & Support,SODEXO LTD,794423,42842.42
Ministry of Defence,Ministry of Defence,05/05/2011,Property leases,Defence Infrastructure Organisation ,ASPIRE DEFENCE LIMITED,789370,42833.37
Ministry of Defence,Defence Science and Technology Laboratory,20/05/2011,Sub Contracted Research,Programme Office,PHOTONIS FRANCE SAS,V - 0000000663 - 00109541,42789.9
Ministry of Defence,Defence Science and Technology Laboratory,13/05/2011,Sub Contracted Work,Operations,THALES UK LIMITED,V - 9000132543 - 00107265,42785
Ministry of Defence,Ministry of Defence,09/05/2011,Medical treatment & stores and welfare services.,Air Command,CHELSEA AND WESTMINSTER HOSPITAL NHS FOUNDATION TRUST,790899,42727
Ministry of Defence,Ministry of Defence,18/05/2011,IT and communication services,Navy Command,QINETIQ LTD,GPC AP02 012,42511.1
Ministry of Defence,Ministry of Defence,09/05/2011,Fees for professional services,Land Forces,QINETIQ LIMITED,791293,42483.6
Ministry of Defence,Met Office,04/05/2011,Services,Technology,Ecmwf,306816,42479.34
Ministry of Defence,Ministry of Defence,18/05/2011,"Transportation of personnel, freight and travel expenses",Central TLB,REST EASY LLC MFVWA,GPC AP02 011,42468.16
Ministry of Defence,Ministry of Defence,09/05/2011,Estate management,Defence Infrastructure Organisation ,SCOTT WILSON LTD,791334,42434.8
Ministry of Defence,Defence Science and Technology Laboratory,20/05/2011,Sub Contracted Work,Programme Office,QINETIQ LIMITED,V - 9000132823 - 00106557,42345
Ministry of Defence,Met Office,04/05/2011,Miscellaneous,Chief Financial Officer,Xerox (Uk) Ltd,307093,42249.24
Ministry of Defence,Defence Science and Technology Laboratory,20/05/2011,Sub Contracted Work,Operations,MORF PRODUCTS LIMITED,V - 9000132837 - 00109250,42200
Ministry of Defence,Ministry of Defence,12/05/2011,Fuel for military use,Land Forces,UNITED AVIATION SERVICES,2000011612,42199.99
Ministry of Defence,Ministry of Defence,05/05/2011,International contributions,Central TLB,FOREIGN & COMMONWEALTH OFFICE,2.00E+11,42103.7
Ministry of Defence,Ministry of Defence,19/05/2011,IT and communication services,Defence Equipment & Support,L.A. INTERNATIONAL COMPUTER  CONSULTANTS LIMITED,796175,42063.3
Ministry of Defence,Ministry of Defence,16/05/2011,Estate management,Defence Infrastructure Organisation ,REMONDIS GMBH & CO KG,5000056141,42028.79
Ministry of Defence,Met Office,25/05/2011,Plant And Equipment,Chief Financial Officer,Mitie Infrastructure Ltd,307945,42028.74
Ministry of Defence,Ministry of Defence,05/05/2011,Payment of utilities,Air Command,GB OILS LIMITED,789576,41945.16
Ministry of Defence,Ministry of Defence,19/05/2011,Rent and rates,Defence Infrastructure Organisation ,WOKINGHAM DISTRICT COUNCIL,796534,41905.3
Ministry of Defence,Ministry of Defence,18/05/2011,"Transportation of personnel, freight and travel expenses",Air Command,FLUGHAFEN HANNOVER LANGENHAGEN GMBH,5000056299,41902.43
Ministry of Defence,Ministry of Defence,24/05/2011,Estates-Stores/Equipment,DIO-SSG,NORBAIN SD LTD,PMT-AP021112005,41846.21
Ministry of Defence,Ministry of Defence,23/05/2011,Grants to NDPBs,Navy Command,THE NATIONAL MUSEUM OF THE ROYAL NAVY,798170,41784
Ministry of Defence,Ministry of Defence,09/05/2011,Estate management,Navy Command,CORPS OF COMMISSIONAIRES  MANAGEMENT LIMITED,790922,41625.79
Ministry of Defence,Ministry of Defence,06/05/2011,Fuel for military use,Air Command,MULTI SERVICE AVIATION,790442,41583.44
Ministry of Defence,Ministry of Defence,04/05/2011,"Purchase of munitions, other inventory or fuel",Defence Equipment & Support,ZOK INTERNATIONAL GROUP LIMITED,789334,41583.36
Ministry of Defence,Ministry of Defence,25/05/2011,International contributions,Land Forces,METEOROLOGICAL OFFICE,799130,41500
Ministry of Defence,Ministry of Defence,25/05/2011,Design services and minor equipment purchases,Defence Equipment & Support,DEVONPORT ROYAL DOCKYARD LIMITED,798967,41482.75
Ministry of Defence,Ministry of Defence,05/05/2011,Purchase of inventory and services ,Defence Equipment & Support,AAH PHARMACEUTICALS LTD,789339,41479.62
Ministry of Defence,United Kingdom Hydrographic Office,16/05/2011,Raw Material/ Finished Goods,Print & Supply,FUJIFILM UK LTD,2000054170,41444.73
Ministry of Defence,Ministry of Defence,10/05/2011,Design services and minor equipment purchases,Air Command,SAFESKYS LTD,791950,41418.99
Ministry of Defence,Defence Science and Technology Laboratory,13/05/2011,Sub Contracted Work,Operations,KORE TECHNOLOGY LIMITED,V - 9000132594 - 00106711,41400
Ministry of Defence,Ministry of Defence,19/05/2011,Estate management,Navy Command,VT FLAGSHIP LTD,796509,41375.98
Ministry of Defence,Ministry of Defence,13/05/2011,Medical treatment & stores and welfare services.,Land Forces,AMD TUEV ARBEITSMED DIENSTE GMBH,5000055942,41370
Ministry of Defence,Ministry of Defence,06/05/2011,Medical treatment & stores and welfare services.,Land Forces,PROFESSOR DR. MED. BERTIN DUFAUX & PARTNERS T/AS LABOR KRONE,5000055555,41297.94
Ministry of Defence,Ministry of Defence,25/05/2011,Estate management,Defence Infrastructure Organisation ,VSM ESTATES LIMITED,799433,41153
Ministry of Defence,Ministry of Defence,09/05/2011,Design services and minor equipment purchases,Defence Equipment & Support,CONWAY PACKING SERVICES LTD,790920,41049.42
Ministry of Defence,Defence Science and Technology Laboratory,06/05/2011,Sub Contracted Work,Operations,UNIVERSITY OF SHEFFIELD,V - 9000132370 - 00107543,41000
Ministry of Defence,Defence Science and Technology Laboratory,27/05/2011,Sub Contracted Work,Operations,ROKE MANOR RESEARCH LIMITED,V - 9000132984 - 00109812,41000
Ministry of Defence,Ministry of Defence,25/05/2011,Purchase of inventory and services ,Defence Equipment & Support,LABCOLD LIMITED,799099,40987.5
Ministry of Defence,Defence Science and Technology Laboratory,27/05/2011,Materials & Equipment,Operations,SELEX COMMUNICATIONS LIMITED,V - 9000133107 - 00110193,40960
Ministry of Defence,Ministry of Defence,23/05/2011,Transport hire charges,Defence Equipment & Support,FBS LIMITED,797655,40817.76
Ministry of Defence,Ministry of Defence,20/05/2011,Transport hire charges,Defence Equipment & Support,FBS LIMITED,796815,40749.98
Ministry of Defence,Ministry of Defence,03/05/2011,Fuel for military use,Air Command,BP INTERNATIONAL LIMITED,2000011500,40711.74
Ministry of Defence,Ministry of Defence,23/05/2011,Design services and minor equipment purchases,Land Forces,FBS LIMITED,797655,40708.45
Ministry of Defence,Ministry of Defence,20/05/2011,Design services and minor equipment purchases,Land Forces,FBS LIMITED,796815,40640.85
Ministry of Defence,Ministry of Defence,20/05/2011,Rent and rates,Defence Infrastructure Organisation ,NORTHUMBERLAND COUNTY COUNCIL,797084,40626.32
Ministry of Defence,Ministry of Defence,05/05/2011,Payment of utilities,Land Forces,GB OILS LIMITED,789576,40615.26
Ministry of Defence,Ministry of Defence,19/05/2011,Design services and minor equipment purchases,Defence Equipment & Support,SELEX SYSTEMS INTEGRATION LTD,796381,40527.2
Ministry of Defence,Ministry of Defence,16/05/2011,Estate management,Air Command,ARAMARK LTD,793793,40460
Ministry of Defence,Ministry of Defence,17/05/2011,Design services and minor equipment purchases,Defence Equipment & Support,QINETIQ LIMITED,795013,40372.14
Ministry of Defence,Defence Science and Technology Laboratory,13/05/2011,Sub Contracted Work,Operations,QINETIQ LIMITED,V - 9000132656 - 00108650,40287.6
Ministry of Defence,Ministry of Defence,18/05/2011,Estate management,Air Command,SODEXO LTD,795742,40238.12
Ministry of Defence,Ministry of Defence,05/05/2011,IT and communication services,Defence Equipment & Support,SERCO LIMITED,789893,40231.21
Ministry of Defence,Ministry of Defence,18/05/2011,Rent and rates,Defence Infrastructure Organisation ,CHICHESTER DISTRICT COUNCIL,795339,40191.79
Ministry of Defence,Ministry of Defence,05/05/2011,Payment of utilities,Defence Equipment & Support,GB OILS LIMITED,789576,40159.78
Ministry of Defence,Ministry of Defence,03/05/2011,Rent and rates,Defence Infrastructure Organisation ,HERTSMERE BOROUGH COUNCIL,788409,40133.94
Ministry of Defence,Ministry of Defence,20/05/2011,Rent and rates,Defence Infrastructure Organisation ,HERTSMERE BOROUGH COUNCIL,796881,40133.94
Ministry of Defence,Ministry of Defence,06/05/2011,IT and communication services,Defence Equipment & Support,L.A. INTERNATIONAL COMPUTER  CONSULTANTS LIMITED,790362,40100.82
Ministry of Defence,Council of Reserve Forces and Cadets Associations,18/05/2011,Rates/NDR,Infrastructure,LB Lewisham,1001,40090.5
Ministry of Defence,Defence Science and Technology Laboratory,20/05/2011,Materials & Equipment,Operations,WIRED FOR SOUND (STUDIOS) LIMITED,V - 9000132894 - 00108113,40005
Ministry of Defence,Ministry of Defence,04/05/2011,Purchase of buildings and military equipment ,Defence Equipment & Support,LOCKHEED MARTIN AEROSPACE SYSTEMS INTEGRATION CORPORATION,789040,40000
Ministry of Defence,Defence Science and Technology Laboratory,13/05/2011,Professional Services,Operations,NEWMAN & SPURR CONSULTANCY LIMITED,V - 9000132524 - 00106789,40000
Ministry of Defence,Defence Science and Technology Laboratory,13/05/2011,Sub Contracted Work,Operations,ROKE MANOR RESEARCH LIMITED,V - 9000132552 - 00105307,40000
Ministry of Defence,Defence Science and Technology Laboratory,27/05/2011,Sub Contracted Work,Programme Office,QINETIQ LIMITED,V - 9000133104 - 00106603,40000
Ministry of Defence,Defence Science and Technology Laboratory,27/05/2011,Sub Contracted Research,Programme Office,QINETIQ LIMITED,V - 9000133104 - 00109747,40000
Ministry of Defence,Defence Science and Technology Laboratory,27/05/2011,Sub Contracted Work,Operations,SR EDDOLLS,V - 9000133080 - 00110258,40000
Ministry of Defence,Ministry of Defence,31/05/2011,Payment of utilities,Central TLB,TOTAL GAS & POWER LIMITED,801335,39984.17
Ministry of Defence,Defence Science and Technology Laboratory,20/05/2011,Materials & Equipment,Operations,LASER SHOT INCORPORATED,V - 0000000602 - 00109510,39977.66
Ministry of Defence,Defence Science and Technology Laboratory,13/05/2011,Contracted out Office Services,Programme Office,QINETIQ LIMITED,V - 9000132596 - 00107478,39821
Ministry of Defence,Defence Science and Technology Laboratory,20/05/2011,Sub Contracted Work,Operations,FLUID GRAVITY ENGINEERING LIMITED,V - 9000132811 - 00107292,39795
Ministry of Defence,Defence Science and Technology Laboratory,13/05/2011,Sub Contracted Work,Operations,SYSTEMS ENGINEERING & ASSESSMENT LIMITED,V - 9000132546 - 00107212,39731
Ministry of Defence,Ministry of Defence,26/05/2011,"Adminstration, claims, compensation and awards",Land Forces,BUNDESANSTALT FUER IMMOBLIENAUFGABEN,5000056781,39708.21
Ministry of Defence,Ministry of Defence,05/05/2011,Purchase of inventory and services ,Defence Equipment & Support,CALUMET PHOTOGRAPHIC LTD,789446,39682.08
Ministry of Defence,Ministry of Defence,24/05/2011,IT and communication services,Defence Equipment & Support,IBM UNITED KINGDOM LIMITED,798491,39668.46
Ministry of Defence,Defence Science and Technology Laboratory,20/05/2011,Energy & Utility,Infrastructure,SCOTTISH HYDRO ELECTRIC GAS LIMITED,V - 9000132876 - 00108927,39660.44
Ministry of Defence,Ministry of Defence,20/05/2011,Transport hire charges,Air Command,BABCOCK LAND (WHITEFLEET MANAGEMENT) LIMITED,796604,39591.32
Ministry of Defence,Ministry of Defence,26/05/2011,Food and clothing,Defence Equipment & Support,ARAMARK LTD,799487,39513.13
Ministry of Defence,Ministry of Defence,03/05/2011,Fees for professional services,Land Forces,UNIVERSITY OF LIVERPOOL,788755,39500
Ministry of Defence,Defence Science and Technology Laboratory,13/05/2011,Sub Contracted Work,Operations,ERA TECHNOLOGY LIMITED,V - 9000132520 - 00106334,39500
Ministry of Defence,Ministry of Defence,13/05/2011,Externally delivered education and training.,Land Forces,ARMY CATERING TRAINING TRUST,793213,39465.03
Ministry of Defence,Ministry of Defence,10/05/2011,Estate management,Defence Infrastructure Organisation ,OBERFINANZDIREKTION NIEDERSACHSEN,5000055729,39425.22
Ministry of Defence,Ministry of Defence,20/05/2011,Medical treatment & stores and welfare services.,Central TLB,SPIRE HEALTHCARE LIMITED,797224,39420.2
Ministry of Defence,Ministry of Defence,10/05/2011,Fees for professional services,Defence Infrastructure Organisation ,GVA GRIMLEY LIMITED,791706,39330
Ministry of Defence,Ministry of Defence,04/05/2011,"Transportation of personnel, freight and travel expenses",Central TLB,FOREIGN & COMMONWEALTH OFFICE,2.00E+11,39303.94
Ministry of Defence,Ministry of Defence,12/05/2011,Design services and minor equipment purchases,Defence Equipment & Support,B M T DEFENCE SERVICES LTD,792617,39263.85
Ministry of Defence,Ministry of Defence,20/05/2011,Design services and minor equipment purchases,Defence Equipment & Support,UNIVERSAL ENGINEERING LIMITED,797308,39238.24
Ministry of Defence,Ministry of Defence,17/05/2011,Payment of utilities,Defence Infrastructure Organisation ,E.ON UK PLC,794728,39190.62
Ministry of Defence,Ministry of Defence,18/05/2011,Fuel for military use,Central TLB,ARVAL UK LTD,795209,39159.58
Ministry of Defence,Ministry of Defence,13/05/2011,IT and communication services,Defence Equipment & Support,STS DEFENCE LIMITED,793667,39056.04
Ministry of Defence,Ministry of Defence,13/05/2011,Food and clothing,Defence Equipment & Support,ARAMARK LTD,793212,39011.19
Ministry of Defence,Ministry of Defence,11/05/2011,IT and communication services,Defence Equipment & Support,AGILE IDEAS LIMITED,792061,38899.35
Ministry of Defence,Ministry of Defence,03/05/2011,Food and clothing,Navy Command,TURNER VIRR & CO. LTD,788743,38870.55
Ministry of Defence,Ministry of Defence,31/05/2011,Medical treatment & stores and welfare services.,Central TLB,HEALIX INTERNATIONAL LTD,801009,38859
Ministry of Defence,Ministry of Defence,18/05/2011,Payment of utilities,Land Forces,NEW ENERGIE GMBH,5000056334,38813.04
Ministry of Defence,Ministry of Defence,18/05/2011,Rent and rates,Defence Infrastructure Organisation ,HCR LTD,795461,38755
Ministry of Defence,Defence Science and Technology Laboratory,10/05/2011,Materials & Equipment,Operations,VWR INTERNATIONAL,V - 9000132508 - 00108614,38640.17
Ministry of Defence,Ministry of Defence,27/05/2011,IT and communication services,Land Forces,ASPIRE DEFENCE LIMITED,800168,38630.82
Ministry of Defence,Ministry of Defence,20/05/2011,Food and clothing,Defence Infrastructure Organisation ,SODEXO LTD,797210,38624.02
Ministry of Defence,Defence Science and Technology Laboratory,06/05/2011,Materials & Equipment,Operations,QINETIQ LIMITED,V - 9000132443 - 00104978,38600
Ministry of Defence,Ministry of Defence,25/05/2011,Fuel for military use,Air Command,WORLD FUEL SERVICES EUROPE  LTD.,2000011724,38502.86
Ministry of Defence,Defence Science and Technology Laboratory,20/05/2011,Energy & Utility,Infrastructure,SCOTTISH HYDRO ELECTRIC GAS LIMITED,V - 9000132876 - 00109386,38478.61
Ministry of Defence,Ministry of Defence,26/05/2011,Payment of utilities,Defence Infrastructure Organisation ,NEW ENERGIE GMBH,5000056849,38478.3
Ministry of Defence,Ministry of Defence,10/05/2011,Design services and minor equipment purchases,Defence Equipment & Support,EUROCOPTER,3000005474,38436
Ministry of Defence,Defence Science and Technology Laboratory,06/05/2011,Sub Contracted Research,Programme Office,QINETIQ LIMITED,V - 9000132443 - 00108585,38400
Ministry of Defence,Defence Science and Technology Laboratory,20/05/2011,Sub Contracted Work,Operations,UNIVERSITY OF STRATHCLYDE,V - 9000132789 - 00107175,38400
Ministry of Defence,Ministry of Defence,11/05/2011,Purchase of inventory and services ,Land Forces,CANON (UK) LIMITED,792127,38398.76
Ministry of Defence,Ministry of Defence,20/05/2011,Payment of utilities,Defence Infrastructure Organisation ,BRITISH GAS TRADING LIMITED,796653,38387.41
Ministry of Defence,Ministry of Defence,23/05/2011,Purchase of buildings and military equipment ,Defence Equipment & Support,ANTEON LIMITED,797381,38379.03
Ministry of Defence,Ministry of Defence,20/05/2011,Fees for professional services,Central TLB,GIFFORD OWEN LTD,796843,38360
Ministry of Defence,Ministry of Defence,16/05/2011,Transport hire charges,Defence Equipment & Support,BABCOCK LAND (WHITEFLEET MANAGEMENT) LIMITED,793815,38330.12
Ministry of Defence,Ministry of Defence,17/05/2011,Rent and rates,Defence Infrastructure Organisation ,HCR LTD,794798,38323
Ministry of Defence,Ministry of Defence,25/05/2011,Rent and rates,Land Forces,SAVILLS COMMERCIAL LTD,799339,38284.26
Ministry of Defence,Ministry of Defence,04/05/2011,Transport hire charges,Air Command,BABCOCK LAND (WHITEFLEET MANAGEMENT) LIMITED,788823,38260.04
Ministry of Defence,Defence Science and Technology Laboratory,20/05/2011,Sub Contracted Work,Programme Office,AWE,V - 9000132797 - 00108206,38122.67
Ministry of Defence,Ministry of Defence,03/05/2011,Food and clothing,Land Forces,NAVY ARMY AND AIR FORCE INSTITUES (THE),5000055207,38110.19
Ministry of Defence,Ministry of Defence,17/05/2011,Purchase of inventory and services ,Land Forces,CORPORATE DOCUMENT SERVICES  LIMITED,794691,38079.94
Ministry of Defence,Ministry of Defence,27/05/2011,General services and support,Defence Equipment & Support,MARSHALL OF CAMBRIDGE AEROSPACE LIMITED,800469,38054.21
Ministry of Defence,Defence Science and Technology Laboratory,13/05/2011,Sub Contracted Research,Operations,SWARM SYSTEMS LIMITED,V - 9000132681 - 00107896,38000
Ministry of Defence,Ministry of Defence,17/05/2011,Purchase of inventory and services ,Land Forces,CARWOOD MOTOR UNITS LTD,794661,37927.81
Ministry of Defence,Ministry of Defence,03/05/2011,Design services and minor equipment purchases,Defence Equipment & Support,CLAN TOOLS & PLANT LIMITED,788271,37911.34
Ministry of Defence,Council of Reserve Forces and Cadets Associations,31/05/2011,Rates/NDR,Infrastructure,WOLVERHAMPTON CITY COUNCIL,931,37887.5
Ministry of Defence,British Defence Staff -United States,26/05/2011,Medical treatment & stores and welfare services.,Central TLB,MERITAIN HEALTH,272455,37864.22
Ministry of Defence,Ministry of Defence,11/05/2011,Design services and minor equipment purchases,Defence Equipment & Support,OCENCO INCORPORATED,3000005488,37815.36
Ministry of Defence,Defence Science and Technology Laboratory,13/05/2011,Sub Contracted Work,Operations,QINETIQ LIMITED,V - 9000132656 - 00108893,37786.85
Ministry of Defence,Ministry of Defence,17/05/2011,Medical treatment & stores and welfare services.,Air Command,SOUTHAMPTON UNIVERSITY HOSPITALS NHS TRUST,2.00E+11,37750.33
Ministry of Defence,Defence Science and Technology Laboratory,20/05/2011,Sub Contracted Work,Programme Office,TRW LIMITED TRADING AS TRW CONEKT,V - 9000132885 - 00109209,37750
Ministry of Defence,Ministry of Defence,16/05/2011,Purchase of plant and machinery,Defence Equipment & Support,MARINE & INDUSTRIAL TRANSMISSIONS LTD,794134,37702.85
Ministry of Defence,Ministry of Defence,06/05/2011,Research and development,Defence Equipment & Support,DEFENCE SCIENCE & TECHNOLOGY LABORATORY,790196,37700.91
Ministry of Defence,Defence Science and Technology Laboratory,13/05/2011,Sub Contracted Work,Programme Office,NATIONAL NUCLEAR LABORATORY LIMITED,V - 9000132662 - 00107243,37664.69
Ministry of Defence,Ministry of Defence,13/05/2011,Fees for professional services,Defence Infrastructure Organisation ,WYG MANAGEMENT SERVICES LIMITED,793743,37653
Ministry of Defence,Ministry of Defence,26/05/2011,Property leases,Air Command,KELDA WATER SERVICES (ESTATES) LIMITED,799771,37470.85
Ministry of Defence,Ministry of Defence,04/05/2011,Payment of utilities,Central TLB,SSE ENERGY SUPPLY LIMITED,789262,37467.82
Ministry of Defence,Ministry of Defence,12/05/2011,IT and communication services,Defence Equipment & Support,VEGA CONSULTING SERVICES LTD,793151,37343.5
Ministry of Defence,Ministry of Defence,06/05/2011,Miscellaneous Administration Costs,Central TLB,FOREIGN & COMMONWEALTH OFFICE,2.00E+11,37343.32
Ministry of Defence,Ministry of Defence,26/05/2011,Purchase of inventory and services ,Navy Command,CORPORATE DOCUMENT SERVICES  LIMITED,799613,37289.46
Ministry of Defence,Defence Science and Technology Laboratory,13/05/2011,Sub Contracted Research,Programme Office,QINETIQ LIMITED,V - 9000132656 - 00108615,37230
Ministry of Defence,Council of Reserve Forces and Cadets Associations,04/05/2011,Injections / Projects RDEL and MNW,Estates Management,Pyramid Construction (UK) Ltd,737,37168.8
Ministry of Defence,Ministry of Defence,18/05/2011,Food and clothing,Defence Equipment & Support,TURNER VIRR & CO. LTD,795814,37132.47
Ministry of Defence,Ministry of Defence,19/05/2011,Design services and minor equipment purchases,Defence Equipment & Support,GRAPHICS RESEARCH CORPORATION LIMITED,796106,37049
Ministry of Defence,Defence Science and Technology Laboratory,27/05/2011,Rent/Lease of Land & Bldgs,Infrastructure,QINETIQ LIMITED,V - 9000133104 - 00109570,37001.22
Ministry of Defence,Defence Science and Technology Laboratory,20/05/2011,Consumable Materials,Infrastructure,BARCLAYCARD,G - 9000132907 - 00110524,36920.81
Ministry of Defence,Ministry of Defence,17/05/2011,Externally delivered education and training.,Air Command,BOURNEMOUTH UNIVERSITY,794627,36900
Ministry of Defence,Ministry of Defence,18/05/2011,Building maintenance and accommodation stores,Land Forces,MILLBROOK FURNISH IND-PR,GPC AP02 010,36864
Ministry of Defence,Ministry of Defence,24/05/2011,Payment of utilities,Defence Equipment & Support,SSE ENERGY SUPPLY LIMITED,798739,36850.48
Ministry of Defence,Ministry of Defence,17/05/2011,Estates-Equipment/Works,DIO-SSG,COMMEND UK LTD,PMT-AP021112006,36778.42
Ministry of Defence,Ministry of Defence,23/05/2011,Design services and minor equipment purchases,Defence Equipment & Support,PARK AIR SYSTEMS LTD,797989,36682.37
Ministry of Defence,Ministry of Defence,12/05/2011,Miscellaneous Administration Costs,Central TLB,SOFTWARE BOX LTD,793074,36642.1
Ministry of Defence,Ministry of Defence,23/05/2011,International contributions,Central TLB,CRANFIELD UNIVERSITY,797543,36597
Ministry of Defence,Defence Science and Technology Laboratory,13/05/2011,IT Software,Operations,THALES UK LIMITED,V - 9000132543 - 00105751,36563
Ministry of Defence,Defence Science and Technology Laboratory,20/05/2011,Repairs & Maintenance,Infrastructure,SERCO LIMITED,V - 9000132879 - 00109552,36493.93
Ministry of Defence,Ministry of Defence,12/05/2011,Purchase of inventory and services ,Land Forces,AAH PHARMACEUTICALS LTD,792579,36301.26
Ministry of Defence,Defence Science and Technology Laboratory,10/05/2011,Materials & Equipment,Operations,VWR INTERNATIONAL,V - 9000132508 - 00108612,36267.01
Ministry of Defence,Ministry of Defence,23/05/2011,Estate management,Air Command,SODEXO LTD,798105,36237.52
Ministry of Defence,Ministry of Defence,30/05/2011,IT and communication services,Central TLB,Etihad Etisalat Co - Mobily,Cash Office AP02 09,36234.71
Ministry of Defence,Ministry of Defence,26/05/2011,General services and support,Defence Equipment & Support,QINETIQ LIMITED,799964,36207.25
Ministry of Defence,Ministry of Defence,05/05/2011,Payment of utilities,Land Forces,ESSO PETROLEUM COMPANY LIMITED,789547,36109.68
Ministry of Defence,Ministry of Defence,17/05/2011,Design services and minor equipment purchases,Land Forces,BABCOCK LAND (WHITEFLEET MANAGEMENT) LIMITED,794599,36072.26
Ministry of Defence,Ministry of Defence,05/05/2011,Design services and minor equipment purchases,Defence Equipment & Support,GE AVIATION SYSTEMS LIMITED,789578,36070.88
